Workbook

Sheet Welcome
B18: Model Information | E18: Developer Contact Details:
B19: Version | C19: BEAC2015 | E19: beac_model@decc.gsi.gov.uk
B20: Last updated | C20: 2015-01-09

Sheet Legend
B2: Legend
B4: Name | C4: Colour | D4: Colour Description/Purpose
B5: Input data | C5: Input data | D5: Cells containing input data from external sources.
B6: Calculations | C6: Calculations | D6: Cells containing formulae/calculations.
B7: User inputs | C7: Parameters | D7: Cells containing parameters (e.g. user defined values for setting up scenarios)
B8: Reference Tables | C8: Reference Tables | D8: Cells containing reference tables (e.g. lists for data validation, lookup tables for non-data related conversions such as January -> 1, February -> 2 etc).
B9: Data selected from Lookup Tables | C9: Data selected from Lookup Tables | D9: Cells containing model data which has been retrived from lookup tables
B10: Ouput | C10: Output | D10: Model Outputs and key data

Sheet Model Structure
B2: Model Structure

Sheet Results_Biopathways
B1: Last scenario ran was: | C1: Scenario 32 : Heat from wood chips produced from UK small roundwood that would otherwise be used for particleboard.
A17: Input data below: | C17: ="Counterfactual: "&Chosen_counterfactual -> Counterfactual: MDF (replacing plasterwork) | E17: =Calculations!B446 -> 0.01154272351 | F17: (energy carrier basis)
E18: =Calculations!B448 -> 80.74060241 | F18: (primary energy basis)
A19: General Analysis Questions
A20: Time Frame Analysed Over | C20: 40 | D20: years
A22: Land Type Questions | F22: ='Choice Check'!B4 -> Selected combinations OK
A23: What type of land is used? | C23: Long Rotation Forestry (LRF)
A24: What was the counterfactual land use? | C24: LRF Conifer for wood products, residues unused | D24: =INDEX('Land Data'!N32:N674,MATCH(Lookupname_Previous_Land_Use,Lookup_previous_land_names,0)) -> Forest Research C-SORT model. Modelled as Sitka Spruce, Yield Class 12, Management Table Thinning, 59 year rotation. | F24: ='Choice Check'!B10 -> OK
A25: Country/Region | C25: UK | F25: ='Choice Check'!F10 -> OK
A26: What is the new land use (bioenergy scenario)? | C26: LRF Conifer for wood products and bioenergy | D26: =INDEX('Land Data'!K712:K1388,MATCH(Lookupname_New_Land_Use,Lookup_new_land_names,0)) -> Forest Research C-SORT model. Modelled as Sitka Spruce, 59 year rotation | F26: ='Choice Check'!J10 -> OK
A28: Biomass Questions
A29: What biomass is used for bioenergy? | C29: Small Roundwood (50 wt% moisture) | F29: ='Choice Check'!N10 -> OK
A30: If you chose woody debris, what type of debris? | C30: Fine Woody Debris (< 10 cm diameter)
A31: What is the counterfactual to using the biomass for bioenergy? | C31: MDF (replacing plasterwork) | D31: =INDEX(Lists!B419:B440,MATCH(Chosen_counterfactual,lookup_counterfactual_list_names,0)) -> Wood product is now replaced by non-wood product | F31: ='Choice Check'!Q10 -> OK
A32: The default exponential decay factor for the residue is (in yr-1): | C32: =IF(debris_choice=Lists!A385,'Land Data'!B1420,'Land Data'!B1421) -> 0.185 | D32: =IF(debris_choice=Lists!A385,'Land Data'!E1420,'Land Data'!E1421) -> Mattson, 1987. Specific to South East USA, however, decay rate of fine residues not shown to vary with location in temperate regions.
A33: Change from default | C33: 0
A34: Exponential decay factor used in residue calculations: | C34: =C32*(1+decay_change) -> 0.185
A35: For forestry, if you have chosen 'leave the land unharvested', how frequent are natural disturbances? | C35: Predicted frequency of natural disturbances
A37: New Land Management Questions
A38: Will the land conversion involve peat drainage? | C38: No peat drainage | F38: ='Choice Check'!AP10 -> OK
A39: The assumed yield for this land type is: | C39: =INDEX(lookup_base_yields_biopathways,MATCH(Lookupname_New_Land_Use,Lookup_new_land_names,0)) -> 3.731 | D39: oven dry tonnes per hectare per year (average over all stands)
A40: Typical Nitrogen fertiliser requirement | C40: =INDEX(NFert_recommend_newland,MATCH(Lookupname_New_Land_Use,Lookup_new_land_names,0)) -> 0 | D40: kg N/Ha/y
A41: Change from default | C41: 0
A42: Please indicate any additional N fertiliser requirements | C42: =C40*(1+fertiliser_change) -> 0 | D42: kg N/ha/y
A43: Please enter irrigation requirements, if applicable | C43: 0 | D43: mm/year
A44: What is the source of water? | C44: Ground Water
A45: What is the pump powered by? | C45: Electrical Pump
A47: Technology Questions
A48: Please select the pre-treatment method | C48: Natural dry and chip | F48: ='Choice Check'!U10 -> OK
A49: Please select the drying used in pretreatment | C49: Natural or No Drying | F49: ='Choice Check'!Y10 -> OK
A50: Please select the electricity requirement of the pelletiser (excluding drying) | C50: Default 2014 | D50: =INDEX('Technology Data'!B37:B40,MATCH(Chosen_Pellet_Energy,Pelletiser_Energy,0))&" MJ electricity per tonne of pellets produced" -> 684 MJ electricity per tonne of pellets produced
A51: Please select how the power required for the process is provided | C51: Predicted Grid Intensity 2020
A52: This corresponds to the following default figures:
A53: Emissions: | C53: =IF(Chosen_grid_intensity=Lists!A509,INDEX(lookup_EF_country_powerEFs, MATCH(Results_Biopathways!C25,lookup_EF_countries,0)),IF(Chosen_grid_intensity=Lists!A510, INDEX(lookup_EF_country_2020, MATCH(Results_Biopathways!C25,lookup_EF_countries,0)),IF(Chosen_grid_intensity=Lists!A511,INDEX(lookup_EF_country_2030, MATCH(Results_Biopathways!C25,lookup_EF_countries,0)),0))) -> 244 | D53: kg CO2e/MWh
A54: MWh primary energy/MWh power | C54: =IF(Chosen_grid_intensity=Lists!A509,INDEX(lookup_EF_country_power_Ens, MATCH(Results_Biopathways!C25,lookup_EF_countries,0)),IF(Chosen_grid_intensity=Lists!A510, INDEX(lookup_En_country_2020, MATCH(Results_Biopathways!C25,lookup_EF_countries,0)),IF(Chosen_grid_intensity=Lists!A511,INDEX(lookup_En_country_2030, MATCH(Results_Biopathways!C25,lookup_EF_countries,0)),IF(Chosen_grid_intensity=Lists!A512,1.5,0)))) -> 1.998871637
A55: Please include a proportion change from the default
A56: For emissions: | C56: 0 | D56: greater than default
A57: For MWh primary fossil energy/MWh power | C57: 0 | D57: greater than default
A58: Assumed emission factor | C58: =C53*(1+C56) -> 244 | D58: kg CO2e/MWh
A59: MWh primary energy/MWh power | C59: =C54*(1+C57) -> 1.998871637
A60: What is the final use of the biomass? | C60: Heat from Biomass Boiler | F60: ='Choice Check'!AE10 -> OK
A61: This corresponds to the following default efficiency: | C61: =INDEX(Technologies_eff_biopathways,MATCH(Lookupname_technology,Lookup_technologies,0)) -> 0.85
A62: Please include a proportion change from the default | C62: 0 | D62: greater than default
A63: Assumed technology efficiency | C63: =C61*(1+C62) -> 0.85
A65: Transport Questions
A66: Please select transport emission scenario | C66: Predicted transport GHG emissions 2020
A67: Leg 1: Transport from forest/farm | C67: Truck
A68: Default distance | C68: =INDEX(Default_leg1,MATCH(Chosen_region_biopathways,Countries_regions,0)) -> 50 | D68: km
A69: Please include a proportion change from the default | C69: 0 | D69: greater than default
A70: Assumed distance | C70: =C68*(1+C69) -> 50 | D70: km
A71: Leg 2: Transport of Pretreated Biomass | C71: Truck
A72: Assumed distance | C72: 0 | D72: km
A73: Leg 3: Transport of Pretreated Biomass | C73: Shipping - Product Tanker
A74: Default distance | C74: =INDEX(sea_distances,MATCH(Chosen_region_biopathways,Countries_regions,0)) -> 0 | D74: ="km " & INDEX(Shipping_assumption,MATCH(Chosen_region_biopathways,Countries_regions,0)) -> km Assume biomass from UK and no shipping required
A75: Please include a proportion change from the default | C75: 0 | D75: greater than default
A76: Distance | C76: =C74*(1+C75) -> 0 | D76: km
A77: Leg 4: Transport of Pretreated Biomass | C77: Truck
A78: Distance | C78: 0 | D78: km

Sheet Calculations
B1: Data 1 | C1: Units 1 | D1: Error 1 | E1: Assumption/Reference | F1: Data 2 | G1: Units 2 | H1: Error 2
A3: Calculation Overview
A4: The calculations are performed using the following structure:
A139: Biomass Outputs from Land
A140: Biomass Output for Bioenergy
A141: The calculations below determine the amount, and type, of biomass produced by the bioenergy scenario in comparion to the counterfactual
A143: Counterfactual Scenario | B143: =Lookupname_Previous_Land_Use -> Long Rotation Forestry (LRF):LRF Conifer for wood products, residues unused:UK:40
A144: =Lists!A374 -> All the wood harvested over the rotation (50 wt% moisture) | B144: ='Land Data'!B12 -> 3.449 | C144: odt/ha/y | E144: Data taken from 'Land Data' tab
A145: Of which:
A146: =Lists!$A$380 -> Saw logs (50 wt% moisture) | B146: =B144*E146 -> 2.4781065 | C146: odt/ha/y | E146: ='Land Data'!B14 -> 0.7185
A147: =Lists!$A$381 -> Small Roundwood (50 wt% moisture) | B147: =B144*E147 -> 0.9708935 | C147: odt/ha/y | E147: ='Land Data'!B15 -> 0.2815
A148: =Lists!$A$382 -> Woody Debris (25 wt% moisture). Continuous removal. | B148: =B144*E148 -> 0 | C148: odt/ha/y | E148: ='Land Data'!B16 -> 0
A150: Bioenergy Scenario | B150: =Lookupname_New_Land_Use -> LRF Conifer for wood products and bioenergy:UK:40
A151: =Lists!A374 -> All the wood harvested over the rotation (50 wt% moisture) | B151: ='Land Data'!B688 -> 3.731 | C151: odt/ha/y | E151: Data taken from 'Land Data' tab
A152: Of which:
A153: =Lists!$A$380 -> Saw logs (50 wt% moisture) | B153: =E153*$B$151 -> 2.4781302 | C153: odt/ha/y | E153: ='Land Data'!B690 -> 0.6642
A154: =Lists!$A$381 -> Small Roundwood (50 wt% moisture) | B154: 0.9708062 | C154: odt/ha/y | E154: ='Land Data'!B691 -> 0.2602
A155: =Lists!$A$382 -> Woody Debris (25 wt% moisture). Continuous removal. | B155: 0.2820636 | C155: odt/ha/y | E155: ='Land Data'!B692 -> 0.0756 | F155: Different residues removal strategies are investigated, and are shown here as different outputs (note though that these represent the same residues, therefore only count it once when considering the different wood outputs)
A156: =Lists!$A$383 -> Woody Debris (25 wt% moisture). Remove for 15 years only. | B156: 0.2820636 | C156: odt/ha/y | E156: ='Land Data'!B692 -> 0.0756
A157: =Lists!$A$386 -> SRC Chips (50 wt% moisture) | B157: 0 | C157: odt/ha/y | E157: ='Land Data'!B693 -> 0
A158: =Lists!$A$387 -> Miscanthus Chips (30 wt% moisture) | B158: 0 | C158: odt/ha/y | E158: ='Land Data'!B694 -> 0
A159: =Lists!$A$388 -> Eucalyptus Roundwood (50 wt% moisture) | B159: 0 | C159: odt/ha/y | E159: ='Land Data'!B695 -> 0
A160: =Lists!$A$389 -> Palm Fruit (34 wt% moisture) | B160: 0 | C160: odt/ha/y | E160: ='Land Data'!B696 -> 0
A161: =Lists!$A$390 -> Maize Whole Crop (70 wt% moisture) | B161: 0 | C161: odt/ha/y | E161: ='Land Data'!B697 -> 0
A163: Additional Biomass for Bioenergy Output of Bioenergy Scenario, compared to Counterfactual Scenario
A164: =Lists!A375 -> All additional wood compared to counterfactual (50 wt% moisture) | B164: =B151-B144 -> 0.282 | C164: odt/ha/y
A165: =Lists!A376 -> All additional non-saw log wood compared to counterfactual (50 wt% moisture). Saw logs to construction (flooring). | B165: =B164-IF(E153*B151>B144*E146,(B151*E153-B144*E146)*Sawlog_construction,0) -> 0.28198578 | C165: odt/ha/y | E165: Assuming additional saw logs are used for construction products, with 60% of the saw logs converted to products, and off-cuts to bioenergy.
A166: =Lists!A377 -> All additional non-saw log wood compared to counterfactual (50 wt% moisture). Saw logs to construction (window frame). | B166: =B164-IF(B151*E153>B144*E146,(B151*E153-B144*E146)*Sawlog_construction,0) -> 0.28198578 | C166: odt/ha/y | E166: Assuming additional saw logs are used for construction products, with 60% of the saw logs converted to products, and off-cuts to bioenergy.
A167: =Lists!A378 -> All additional wood created by new management (50 wt% moisture) | B167: =B151 -> 3.731 | C167: odt/ha/y
A169: Chosen Biomass Form used for Energy | B169: =Results_Biopathways!C29 -> Small Roundwood (50 wt% moisture)
A170: Biomass Output for Bioenergy | B170: =INDEX(B151:B167,MATCH($B$169,$A$151:$A$167,0)) -> 0.9708062 | C170: odt/ha/y
A171: Counterfactual to using this biomass for bioenergy | B171: =Chosen_counterfactual -> MDF (replacing plasterwork)
A172: Counterfactual Name | B172: =B169&":"&B171 -> Small Roundwood (50 wt% moisture):MDF (replacing plasterwork)
A174: Biomass Output for Construction Products
A175: The calculations below determine the difference in wood used for construction purposes of the bioenergy scenario, in comparison to the counterfactual
A177: GHG Emissions from additional construction products of Counterfactual Scenario
A178: CO2 sequestered by using this biomass in wood product and displacing non-wood product (negative = sequestration) | B178: ='Wood Product Data'!B18*Output_Biomass/Conv_te_kg -> -0.8215983302 | C178: t CO2e/ha/y | D178: ='Wood Product Data'!C18*Output_Biomass/Conv_te_kg -> 0.4107991651
A180: Additional Biomass for construction products of Bioenergy Scenario
A181: Sawn timber, replacing concrete screed flooring | B181: =IF(B169=A165,B164-B165,0) -> 0 | C181: odt/ha/y | E181: Offcuts are not included in this figure (assumed to have gone for bioenergy)
A182: Sawn timber, replacing upvc window | B182: =IF(B169=A166,B164-B166,0) -> 0 | C182: odt/ha/y | E182: Offcuts are not included in this figure (assumed to have gone for bioenergy)
A184: GHG Emissions from additional construction products of Bioenergy Scenario
A185: Saw logs, replacing concrete screed flooring | B185: =-B181*'Wood Product Data'!AA4/Conv_te_kg -> 0 | C185: t CO2e/ha/y | D185: =ABS(B185*Error_displacement) -> 0
A186: Saw logs, replacing upvc window | B186: =-B182*'Wood Product Data'!AA5/Conv_te_kg -> 0 | C186: t CO2e/ha/y | D186: =ABS(B186*Error_displacement) -> 0
A188: Land Carbon Stock Change
A189: Emissions from Soil Carbon Stock Change
A190: The calculations below determine the actual carbon emissions from the soil, from changing land management from the counterfactual to the bioenergy scenario
A192: Soil Carbon Stock Change if the soils are Mineral
A193: Previous Land Soil Carbon Content, if mineral soil | B193: ='Land Data'!B6 -> 72.54545455 | C193: t C/ha | D193: ='Land Data'!D6 -> 32.64545455
A194: Previous Land Use IPCC Land Management Factor | B194: ='Land Data'!B7 -> 1 | D194: ='Land Data'!D7 -> 0
A195: New Land Use IPCC Land Management Factor | B195: ='Land Data'!B683 -> 1 | D195: ='Land Data'!D683 -> 0
A196: Carbon Stock Change | B196: =B193*(B194-B195) -> 0 | C196: t C/ha | D196: =IF(B194=B195,0,(((((((B194*D194)^2+(B195*D195)^2)^0.5)/(B194-B195))^2)+(D193/B193)^2)^0.5)*B196) -> 0
A197: CO2 emission from Carbon Stock Change | B197: =B196*MM_CO2/MM_C -> 0 | C197: t CO2/ha | D197: =D196*MM_CO2/MM_C -> 0
A198: No of stands, with 1 stand being converted each year | B198: =Chosen_NoStands_New -> 59
A199: Proportion of soil which has undergone change of management by the end of the time horizon | B199: =IF((Chosen_Time_frame_biopathways/Calculations!B198)>1,1,(Chosen_Time_frame_biopathways/Calculations!B198)) -> 0.6779661017
A201: Soil Carbon Stock Change if the soils are Peaty
A202: IPCC Peat Emission Factor | B202: ='Land Data'!B685 -> 0 | C202: t C/ha/y | D202: ='Land Data'!D685 -> 0
A203: CO2 emission from Carbon Stock Change | B203: =B202*MM_CO2/MM_C -> 0 | C203: t CO2/ha/y | D203: =D202*MM_CO2/MM_C -> 0
A205: Emissions from non-Soil Carbon Stock Change
A206: The calculations below determine the actual carbon emissions from the change in stock of non-soil biomass (above and below ground biomass) caused by changing land management from the counterfactual to the bioenergy scenario. This excludes any change in carbon from any increase.decrease in biomass residue harvesting. This is determined in the next section of the calculations.
A208: Previous Carbon Stock at t=0 | B208: ='Land Data'!B9 -> 69.5 | C208: t C/ha
A209: New Carbon Stock at t=0 | B209: ='Land Data'!B686 -> 69.5 | C209: t C/ha
A210: New Carbon Stock at end of time frame (excludes any reduction in C stock from introduction of branchwood harvest) | B210: ='Land Data'!B687 -> 69.5 | C210: t C/ha | E210: Excludes any additional reduction in C stock from introduction of additional branchwood harvest. This is calculated below, if chosen by user.
A211: Carbon Stock Change | B211: =B208-B210 -> 0 | C211: t C/ha | D211: =B211*Error_carbon_stock -> 0
A212: CO2 emission from Carbon Stock Change | B212: =B211*MM_CO2/MM_C -> 0 | C212: t CO2/ha | D212: =D211*MM_CO2/MM_C -> 0
A214: Reduction in C Stock caused by increased, continuous harvesting of Residues
A215: The calculations below determine the actual carbon emissions from the change in carbon stock caused by increasing the removal of residues from the land for the bioenergy scenario, compared to the counterfactual
A217: =Lists!A382&":"&Lists!A435 -> Woody Debris (25 wt% moisture). Continuous removal.:Leave residues to decay in forest | B217: =INDEX('Land Data'!D1427:D1527,MATCH(Chosen_Time_frame_biopathways,'Land Data'!B1427:B1527,0)) -> 0.2327405326 | C217: t CO2/odt residue
A218: =Lists!A383&":"&Lists!A435 -> Woody Debris (25 wt% moisture). Remove for 15 years only.:Leave residues to decay in forest | B218: =INDEX('Land Data'!H1427:H1527,MATCH(Chosen_Time_frame_biopathways,'Land Data'!B1427:B1527,0)) -> 0.005708675046 | C218: t CO2/odt residue
A219: Reduction in C stock from harvesting residues | B219: =IF(B172=A217,Output_Biomass*B217,IF(B172=A218,Output_Biomass*B218,0)) -> 0 | C219: t CO2e/ha/y | D219: =B219*Error_carbon_stock -> 0 | E219: Residue decay rate is highly variable (Harmon, 1986). Assume error +- 50% to account for varying decay rates.
A221: Reduction in C Stock caused by one-off harvesting of dead trees
A222: The calculations below determine the actual carbon emissions from the change in carbon stock caused by increasing the removal of dead trees from the land, for the bioenergy scenario, compared to the counterfactual
A224: Exponential decay constant for dead trees | B224: ='Land Data'!B26 -> 0.028 | C224: y-1 | E224: Decay constant for coarse residues
A225: Proportion C left at end of time frame | B225: =EXP(-B224*Chosen_Time_frame_biopathways) -> 0.3262797946
A226: Reduction in C stock from harvesting dead trees | B226: =IF(B171=Lists!A436,Output_Biomass*C_biomass*B225*MM_CO2/MM_C,0) -> 0 | C226: t CO2e/ha/y | D226: =B226*Error_carbon_stock -> 0
A228: Counterfactual Land Carbon Stock Change
A229: The calculation below determines the forgone carbon emissions/sequestration of the bioenergy scenario from both the soils and the non-soil biomass, by determining how the counterfactual land type would change in carbon stock, if it hadn't been chnaged to the bioenergy scenario land type
A231: Forgone Biomass Growth of Bioenergy Scenario (negative = sequestration) | B231: =IF(Results_Biopathways!C35=Lists!A493,'Land Data'!B10,IF(Results_Biopathways!C35=Lists!A494,'Land Data'!B11,0)) -> 0 | C231: t CO2e/ha/y | D231: =ABS(B231*Error_forgone_sequestration) -> 0
A233: Other Land Emissions
A234: Counterfactual Scenario
A235: Land Management and Operations, excluding irrigation | B235: ='Land Data'!B18 -> 0.07452847787 | C235: t CO2e/ha/y | D235: =B235*Error_land_management -> 0.01863211947
A236: Carbon impact from residue removal fuel requirement (if not included above) | B236: ='Land Data'!B19 -> 0 | C236: t CO2e/ha/y | D236: =B236*Error_land_management -> 0
A237: Fertiliser Use | B237: ='Land Data'!B17 -> 0 | C237: kg N/ha/y | D237: 0
A238: Direct emissions from Fertiliser | B238: =B237*EF_Nfert/Conv_te_kg -> 0 | C238: t CO2e/ha/y | D238: =B238*Error_fertiliser -> 0
A239: Fertiliser N2O emissions from soils | B239: =B237*Conv_Nfert_N2O/Conv_te_kg -> 0 | C239: t N2O/ha/y | D239: =IF(B237=0,0,(((Conv_Nfert_N2O_SD/Conv_Nfert_N2O)^2+(D237/B237)^2)^0.5)*B239) -> 0
A240: Land N2O Emissions (excluding fertiliser) | B240: ='Land Data'!B24 -> 0.001144 | C240: t N2O/ha/y
A241: Land CH4 emissions (e.g. from living plants) | B241: ='Land Data'!B25 -> -0.003613504 | C241: t CH4/ha/y
A242: N2O from burning wood onsite | B242: =IF(Chosen_counterfactual=Lists!A437,Output_Biomass*Chosen_LHV_biomass*Combustion_N2O_wood_smallscale/GWP_N2O,0) -> 0 | C242: t N2O/ha/y | E242: Assuming emissions from burning similar to those from combustion in a biomass boiler. Emission factors for N2O (4 g/GJ HHV). EPA, 2008, Direct Emissions from Stationary Combustion Sources
A243: CH4 from burning wood onsite | B243: =IF(Chosen_counterfactual=Lists!A437,B170*Chosen_LHV_biomass*Combustion_CH4_wood_smallscale/GWP_CH4,0) -> 0 | C243: t CH4/ha/y | E243: Assuming emissions from burning similar to those from combustion in a biomass boiler. Emission factors for CH4 (300 g/GJ HHV). EPA, 2008, Direct Emissions from Stationary Combustion Sources
A245: Bioenergy Scenario
A246: Land Management and Operations, excluding irrigation | B246: ='Land Data'!B699 -> 0.07452725019 | C246: t CO2e/ha/y | D246: =B246*Error_land_management -> 0.01863181255
A247: Carbon impact from residue removal fuel requirement (if not included above) | B247: ='Land Data'!B700 -> 0.003653513398 | C247: t CO2e/ha/y | D247: =B247*Error_land_management -> 0.0009133783495
A248: Carbon impact from residue removal (depending on scenario) | B248: =IF(Chosen_biomass_form_biopathways=Lists!A382,Calculations!B247,IF(Chosen_biomass_form_biopathways=Lists!A383,B247,0)) -> 0 | C248: t CO2e/ha/y | D248: =B248*Error_land_management -> 0
A249: Fertiliser Use | B249: =Chosen_NFert_specific -> 0 | C249: kg N/ha/y | D249: 0
A250: Direct emissions from Fertiliser | B250: =B249*EF_Nfert/Conv_te_kg -> 0 | C250: t CO2e/ha/y | D250: =B250*Error_fertiliser -> 0
A251: Fertiliser N2O emissions from soils | B251: =B249*Conv_Nfert_N2O/Conv_te_kg -> 0 | C251: t N2O/ha/y | D251: =IF(B249=0,0,(((Conv_Nfert_N2O_SD/Conv_Nfert_N2O)^2+(D249/B249)^2)^0.5)*B251) -> 0
A252: Land N2O Emissions (excluding fertiliser) | B252: ='Land Data'!B705 -> 0.001144 | C252: t N2O/ha/y
A253: Land CH4 emissions (e.g. from living plants) | B253: ='Land Data'!B706 -> -0.003613504 | C253: t CH4/ha/y
A254: No burning of wood onsite
A256: New Land Type Irrigation
A257: Chosen total dynamic head | B257: ='Land Data'!B1393 -> 150 | C257: m | D257: ='Land Data'!D1393 -> 75
A258: Chosen efficiency | B258: ='Land Data'!B1394 -> 0.85 | D258: ='Land Data'!D1394 -> 0.085
A259: Chosen irrigation quantity | B259: =Results_Biopathways!C43 -> 0 | C259: mm/year
A260: Chosen irrigation quantity | B260: =B259/Conv_m_mm*Conv_Ha_m2 -> 0 | C260: m3/year/ha
A261: Energy required by pump | B261: =B257*Density_Water*Gravity*B260/B258/Conv_MJ_J -> 0 | C261: MJ/Ha/year | D261: =B261*(((D257/B257)^2+(D258/B258)^2)^0.5) -> 0
A262: Energy required by pump | B262: =B261/Conv_kwh_MJ -> 0 | C262: kWh/ha/y | D262: =D261/Conv_kwh_MJ -> 0
A263: Grid Intensity | B263: =Chosen_Power_EF -> 244 | C263: kg CO2e/MWh power | D263: ='Technology Data'!C44 -> 61
A264: Grid primary energy requirement | B264: =Chosen_Grid_Prim_Energy -> 1.998871637 | C264: MWh/MWh power | D264: ='Technology Data'!C45 -> 0.4997179094
A265: Irrigation GHG Emissions | B265: =IF(Chosen_irrigation_power='Land Data'!$A$1401,B262*EF_diesel_LHVenergybasis/1000,IF(Chosen_irrigation_power='Land Data'!$A$1402,B262*B263/1000000,0)) -> 0 | C265: t CO2/ha/y | D265: =IF(Chosen_irrigation_biopathways=0,0,IF(Chosen_irrigation_power='Land Data'!$A$1401,Irrigation_CO2_Specific*(D262/B262),IF(Chosen_irrigation_power='Land Data'!$A$1402,Irrigation_CO2_Specific*((Calculations!D262/Calculations!B262)^2+((D263/B263)^2))^0.5,0))) -> 0
A267: Land Energy Requirement
A268: Counterfactual Scenario
A269: Direct Energy
A270: Land Management and Operations | B270: ='Land Data'!B20 -> 0.2300301772 | C270: MWh/ha/y | D270: =B270*Error_land_management -> 0.05750754431
A271: Residue removal fuel requirement (if not included above) | B271: ='Land Data'!B22 -> 0 | C271: MWh/ha/y | D271: =B271*Error_land_management -> 0
A272: Fertiliser Energy Requirement | B272: =B237*En_F_Nfert/Conv_MWh_KWh -> 0 | C272: MWh/ha/y | D272: =B272*Error_fertiliser -> 0
A274: Primary Energy
A275: Land Management and Operations | B275: ='Land Data'!B21 -> 0.2452689649 | C275: MWh/ha/y | D275: =B275*Error_land_management -> 0.06131724123
A276: Residue removal fuel requirement (if not included above) | B276: ='Land Data'!B23 -> 0 | C276: MWh/ha/y | D276: =B276*Error_land_management -> 0
A277: Fertiliser Energy Requirement | B277: =B272*Prim_En_Nfert -> 0 | C277: MWh/ha/y | D277: =B277*Error_fertiliser -> 0
A280: Bioenergy Scenario
A281: Direct Energy
A282: Land Management and Operations | B282: ='Land Data'!B701 -> 0.2300263934 | C282: MWh/ha/y | D282: =B282*Error_land_management -> 0.05750659834
A283: Residue removal fuel requirement (if not included above) | B283: ='Land Data'!B703 -> 0.01126063615 | C283: MWh/ha/y | D283: =B283*Error_land_management -> 0.002815159037
A284: Residue removal (depending on scenario) | B284: =IF(Chosen_biomass_form_biopathways=Lists!A382,Calculations!B283,IF(Chosen_biomass_form_biopathways=Lists!A383,B283,0)) -> 0 | C284: MWh/ha/y | D284: =B284*Error_land_management -> 0
A285: N Fertiliser Energy Requirement | B285: =B249*En_F_Nfert/Conv_MWh_KWh -> 0 | C285: MWh/ha/y | D285: =B285*Error_fertiliser -> 0
A286: Irrigation Direct Energy Requirement | B286: =IF(Chosen_irrigation_power='Land Data'!$A$1402,B262,IF(Chosen_irrigation_power='Land Data'!$A$1401,B262,0)) -> 0 | C286: kWh/ha/y | D286: =IF(Chosen_irrigation_power='Land Data'!$A$1402,D262,IF(Chosen_irrigation_power='Land Data'!$A$1401,D262,0)) -> 0
A287: Irrigation Direct Energy Requirement | B287: =Irrigation_energy_Specific/Conv_MWh_KWh -> 0 | C287: MWh/ha/y | D287: =Irrigation_energy_error_Specific/Conv_MWh_KWh -> 0
A288: Biomass required to power irrigation (primary energy) | B288: =IF(AND(Chosen_irrigation_power='Land Data'!A1402,Chosen_grid_intensity=Lists!A513),Calculations!B262/'Technology Data'!D221,0) -> 0 | C288: kWh/ha/y
A290: Primary Energy
A291: Land Management and Operations | B291: ='Land Data'!B702 -> 0.2452649048 | C291: MWh/ha/y | D291: =B291*Error_land_management -> 0.06131622621
A292: Residue removal fuel requirement (if not included above) | B292: ='Land Data'!B704 -> 0.01208266259 | C292: MWh/ha/y | D292: =B292*Error_land_management -> 0.003020665647
A293: Residue removal (depending on scenario) | B293: =IF(Chosen_biomass_form_biopathways=Lists!A382,Calculations!B292,IF(Chosen_biomass_form_biopathways=Lists!A383,B292,0)) -> 0 | C293: MWh/ha/y | D293: =B293*Error_land_management -> 0
A294: N Fertiliser Energy Requirement | B294: =B285*Prim_En_Nfert -> 0 | C294: MWh/ha/y | D294: =B294*Error_fertiliser -> 0
A295: Irrigation Primary Energy Requirement | B295: =IF(Chosen_irrigation_power='Land Data'!$A$1402,B262*Chosen_Grid_Prim_Energy,IF(Chosen_irrigation_power='Land Data'!$A$1401,B262*Prim_En_Diesel,0)) -> 0 | C295: kWh/ha/y | D295: =IF(Chosen_irrigation_power='Land Data'!$A$1402,D262*Chosen_Grid_Prim_Energy,IF(Chosen_irrigation_power='Land Data'!$A$1401,D262*Prim_En_Diesel,0)) -> 0
A296: Irrigation Primary Energy Requirement | B296: =Irrigation_energy_Specific/Conv_MWh_KWh -> 0 | C296: MWh/ha/y | D296: =Irrigation_energy_Specific/Conv_MWh_KWh -> 0
A300: Transport of Biomass from Harvest (Leg 1)
A301: Biomass Form Transported | B301: =Calculations!B169 -> Small Roundwood (50 wt% moisture)
A302: Dry mass transported | B302: =Calculations!B170 -> 0.9708062 | C302: odt/ha/y
A303: Moisture content | B303: =INDEX(Biomass_forms_moisture_biopathways,MATCH(B301,Biomass_forms_total_biopathways,0)) -> 0.5
A304: LHV value of fuel | B304: =INDEX(LHV_Bioenergypathways,MATCH(B301,Biomass_forms_total_biopathways,0)) -> 2.327166667 | C304: kWh/kg
A305: Wet mass transported | B305: =B302/(1-B303) -> 1.9416124 | C305: wet t/ha/y
A306: Energy Available in Biomass (based on LHV) | B306: =B304*B305 -> 4.518455657 | C306: MWh LHV/ha/y
A307: External Direct Energy Required for transport | B307: ='Transport Data'!B70 -> 0.2970261438 | C307: kwh/t km
B308: =B305*B307*Chosen_leg1_distance_biopathways/Conv_MWh_KWh -> 0.0288354822 | C308: MWh/ha/y
A309: Primary Energy Required for transport | B309: ='Transport Data'!B71 -> 0.3187090523 | C309: kwh/t km
B310: =B305*B309*Chosen_leg1_distance_biopathways/Conv_MWh_KWh -> 0.0309404724 | C310: MWh/ha/y
A311: GHG emissions from transport | B311: ='Transport Data'!B72 -> 0.09637013235 | C311: kg CO2e/t km
B312: =Chosen_leg1_distance_biopathways*B305*B311/Conv_te_kg -> 0.009355672198 | C312: t CO2e/ha/y
A313: Primary Energy from Biomass Required for Transport | B313: ='Transport Data'!B73 -> 0 | C313: kwh/tekm
B314: =B313*B305*Chosen_leg1_distance_biopathways/Conv_MWh_KWh -> 0 | C314: MWh/ha/y
A315: Losses during transport | B315: =IF(Chosen_leg1_distance_biopathways=0,0,'Transport Data'!B74) -> 0.001
A317: Pretreatment of Biomass
A318: Biomass Form Pretreated | B318: =B301 -> Small Roundwood (50 wt% moisture)
A319: Lookup Name for Pretreatment | B319: =Results_Biopathways!C48&":"&B301&":"&Results_Biopathways!C49 -> Natural dry and chip:Small Roundwood (50 wt% moisture):Natural or No Drying
A320: Dry mass pretreated | B320: =B302*(1-$B$315) -> 0.9698353938 | C320: odt/ha/y
A321: Moisture content | B321: =INDEX(Biomass_forms_moisture_biopathways,MATCH(B318,Biomass_forms_total_biopathways,0)) -> 0.5
A322: LHV value of fuel | B322: =INDEX(LHV_Bioenergypathways,MATCH(B318,Biomass_forms_total_biopathways,0)) -> 2.327166667 | C322: kWh/kg
A323: Wet mass pretreated | B323: =B320/(1-B321) -> 1.939670788 | C323: wet t/ha/y
A324: Energy Available in Biomass (based on LHV) | B324: =B322*B323 -> 4.513937201 | C324: MWh LHV/ha/y
A325: Pretreatment External Direct Energy Requirement (excludes biomass energy input) | B325: ='Technology Data'!B105 -> 0.01013888889 | C325: MWh/ wet t in
B326: =B325*$B$323 -> 0.0196661066 | C326: MWh/ha/y
A327: Pretreatment Primary Energy Requirement | B327: ='Technology Data'!B106 -> 0.01087902778 | C327: MWh/ wet t in
B328: =B327*$B$323 -> 0.02110173238 | C328: MWh/ha/y
A329: GHG Emissions from pretreatment | B329: ='Technology Data'!B107 -> 0.0032895625 | C329: ='Technology Data'!AE115 -> t CO2e/ wet t in
B330: =B329*$B$323 -> 0.006380668285 | C330: t CO2e/ha/y
A331: Primary Energy from Biomass Required for Processing | B331: ='Technology Data'!B108 -> 0 | C331: ='Technology Data'!AI115 -> MWh/ wet t in
B332: =B331*$B$323 -> 0 | C332: MWh/ha/y
A333: Energy Available in Biomass Output (based on LHV) | B333: ='Technology Data'!B109*B323-B332 -> 4.952949356 | C333: MWh LHV/ha/y
A335: Transport of Biomass (Leg 2)
A336: Biomass Form Transported | B336: =INDEX(Biomass_forms_output_biopathways,MATCH(B319,lookup_pretreatment_biopathways,0)) -> Wood Chips (25 wt% moisture)
A337: Dry mass transported | B337: =B340*(1-B338) -> 0.9698353938 | C337: odt/ha/y
A338: Moisture content | B338: =INDEX(Biomass_forms_moisture_biopathways,MATCH(B336,Biomass_forms_total_biopathways,0)) -> 0.25
A339: LHV value of fuel | B339: =INDEX(LHV_Bioenergypathways,MATCH(B336,Biomass_forms_total_biopathways,0)) -> 3.83025 | C339: kWh/kg
A340: Wet mass transported | B340: =B333/B339 -> 1.293113858 | C340: wet t/ha/y
A341: Energy Available in Biomass (based on LHV) | B341: =B333 -> 4.952949356 | C341: MWh LHV/ha/y
A342: External Energy Required for transport | B342: ='Transport Data'!B78 -> 0.2970261438 | C342: kwh/t km
B343: =B340*B342*Chosen_leg2_distance_biopathways/Conv_MWh_KWh -> 0 | C343: MWh/ha/y
A344: Primary Energy Required for transport | B344: ='Transport Data'!B79 -> 0.3187090523 | C344: kwh/t km
B345: =B340*B344*Chosen_leg2_distance_biopathways/Conv_MWh_KWh -> 0 | C345: MWh/ha/y
A346: GHG emissions from transport | B346: ='Transport Data'!B80 -> 0.09637013235 | C346: kg CO2e/t km
B347: =Chosen_leg2_distance_biopathways*B340*B346/Conv_te_kg -> 0 | C347: t CO2e/ha/y
A348: Primary Energy from Biomass Required for Transport | B348: ='Transport Data'!B81 -> 0 | C348: kwh/tekm
B349: =B348*B340*Chosen_leg2_distance_biopathways/Conv_MWh_KWh -> 0 | C349: MWh/ha/y
A350: Losses during transport | B350: =IF(Chosen_leg2_distance_biopathways=0,0,'Transport Data'!B82) -> 0
A353: Transport of Biomass (Leg 3)
A354: Biomass Form Transported | B354: =B336 -> Wood Chips (25 wt% moisture)
A355: Dry mass transported | B355: =B337*(1-$B$350) -> 0.9698353938 | C355: odt/ha/y
A356: Moisture content | B356: =INDEX(Biomass_forms_moisture_biopathways,MATCH(B354,Biomass_forms_total_biopathways,0)) -> 0.25
A357: LHV value of fuel | B357: =INDEX(LHV_Bioenergypathways,MATCH(B354,Biomass_forms_total_biopathways,0)) -> 3.83025 | C357: kWh/kg
A358: Wet mass transported | B358: =B340*(1-$B$350) -> 1.293113858 | C358: wet t/ha/y
A359: Energy Available in Biomass (based on LHV) | B359: =B357*B358 -> 4.952949356 | C359: MWh LHV/ha/y
A360: External Energy Required for transport | B360: ='Transport Data'!B86 -> 0.027075 | C360: kwh/t km
B361: =B358*B360*Chosen_leg3_distance_biopathways/Conv_MWh_KWh -> 0 | C361: MWh/ha/y
A362: Primary Energy Required for transport | B362: ='Transport Data'!B87 -> 0.03005325 | C362: kwh/t km
B363: =B358*B362*Chosen_leg3_distance_biopathways/Conv_MWh_KWh -> 0 | C363: MWh/ha/y
A364: GHG emissions from transport | B364: ='Transport Data'!B88 -> 0.008176890667 | C364: kg CO2e/t km
B365: =Chosen_leg3_distance_biopathways*B358*B364/Conv_te_kg -> 0 | C365: t CO2e/ha/y
A366: Primary Energy from Biomass Required for Transport | B366: ='Transport Data'!B89 -> 0 | C366: kwh/tkm
B367: =B366*B358*Chosen_leg3_distance_biopathways/Conv_MWh_KWh -> 0 | C367: MWh/ha/y
A368: Losses during transport | B368: ='Transport Data'!B90 -> 0.001
A371: Transport of Biomass (Leg 4)
... 71 more rows

Sheet Graphs Data
A1: Overall GHG Emissions Graph
B2: kg CO2e/MWh delivered
B3: Mean | C3: Error
A4: Soil C Stock Change | B4: =Calculations!F409 -> 0 | C4: =Calculations!H409 -> 0
A5: Land Biomass C Stock Change | B5: =Calculations!F410 -> 0 | C5: =Calculations!H410 -> 0
A6: Land Emissions | B6: =Calculations!F412+Calculations!F413+Calculations!F414+Calculations!F415+Calculations!F416 -> -0.0002921939753 | C6: =(Calculations!H412^2+Calculations!H413^2+Calculations!H414^2+Calculations!H415^2+Calculations!H416^2)^0.5 -> 0
A7: Pre-treatment | B7: =Calculations!F419 -> 1.518631409 | C7: =Calculations!H419 -> 0.7593157044
A8: Transport | B8: =Calculations!F420 -> 2.226697427 | C8: =Calculations!H420 -> 0.5566743566
A9: Energy Technology | B9: =Calculations!F421 -> 39.47190588 | C9: =Calculations!H421 -> 9.867976471
A10: Wood Products | B10: =Calculations!F411+Calculations!F418 -> 195.544569 | C10: =(Calculations!H411^2+Calculations!H418^2)^0.5 -> 97.77228449
A11: cfl C Stock Change | B11: =Calculations!F417 -> 0 | C11: =Calculations!H417 -> 0
A12: Total | B12: =SUM(B4:B11) -> 238.7615115 | C12: =SUMPRODUCT(C4:C11,C4:C11)^0.5 -> 98.27351129
A15: Overall Energy Requirement Graph
B16: MWh/MWh delivered
B17: Mean | C17: Error
A18: Land Management | B18: =Calculations!F425+Calculations!F426+Calculations!F427+Calculations!F428 -> -9.005824482e-07 | C18: =(Calculations!H425^2+Calculations!H426^2+Calculations!H427^2+Calculations!H428^2)^0.5 -> 2.25145612e-07
A19: Pre-treatment | B19: =Calculations!F429 -> 0.004680633098 | C19: =Calculations!H429 -> 0.002340316549
A20: Transport | B20: =Calculations!F430 -> 0.006862990989 | C20: =Calculations!H430 -> 0.001715747747
A21: Energy Technology | B21: =Calculations!F431 -> 0 | C21: =Calculations!H431 -> 0
A22: Total | B22: =SUM(B18:B21) -> 0.01154272351 | C22: =SUMPRODUCT(C18:C21,C18:C21)^0.5 -> 0.002901873866
A25: Technology Emission Comparisons Graph (kg CO2e/MWh)
A26: kg CO2e/MWh delivered
B27: =Results_Biopathways!C60 -> Heat from Biomass Boiler | C27: =INDEX(Comparitor_name_2,MATCH(B27,'Technology Data'!A293:A305,0)) -> Heat from Natural Gas | D27: =INDEX(Comparitor_name_3,MATCH(B27,'Technology Data'!A293:A305,0)) -> Heat Pump using 2013 UK power, COP=3 | E27: =IF(A31=0,0,INDEX(Comparitor_name_4,MATCH(A31,'Technology Data'!B293:B305,0))) -> Heat from Burning Oil
A28: Other GHG Impacts | B28: =SUM('Graphs Data'!B4:B10) -> 238.7615115 | C28: =INDEX(Comparitor_value_2,MATCH(B27,'Technology Data'!A293:A305,0)) -> 261.5444444 | D28: =INDEX(Comparitor_value_3,MATCH(B27,'Technology Data'!A293:A305,0)) -> 184.6333333 | E28: =INDEX(Comparitor_values_4,MATCH(B27,'Technology Data'!A293:A305,0)) -> 377.5111111
A29: cfl GHG Impacts | B29: =SUM('Graphs Data'!B11) -> 0 | C29: 0 | D29: 0 | E29: 0
A30: Total | B30: =B28+B29 -> 238.7615115 | C30: =C28+C29 -> 261.5444444 | D30: 184.6333333 | E30: 377.5111111
A31: =INDEX(Comparitor_name_1,MATCH(B27,'Technology Data'!A293:A305,0)) -> Bioheat Sust. Std. 2013 | B31: =INDEX(Comparitor_value_1,MATCH(B27,'Technology Data'!A293:A305,0)) -> 125.28 | C31: =B31 -> 125.28 | D31: =B31 -> 125.28 | E31: =B31 -> 125.28

Sheet Lists
A1: This page contains lists of choices for the user
A3: Time Horizons (years)
A4: 20
A5: 40
A6: 100
A8: All Land Types
A9: Forestry | B9: LRF Conifer for wood products, residues unused
B10: LRF Conifer for wood products, 50% residues used
B11: Intensely managed SRF Conifer, rotation length increasing from 25 to 35 years
B12: Intensely managed SRF Conifer, rotation length reduced from 25 to 20 years
B13: Intensely managed SRF Conifer, rotation length increasing from 25 to 35 years (for a period of 15 years, then wood extraction increases again)
B14: Intensely managed SRF Conifer, about to be managed less intensively as natural Loblolly stand
B15: Intensely managed SRF Conifer, about to be harvested then left to regenerate naturally, without future harvesting
B16: LRF Conifer for wood products and bioenergy
B17: LRF Conifer for Bioenergy, residues unused
B18: Newly Abandoned LRF Conifer, residues unused
B19: Old Growth Fast Growing Conifer (> 200 years old)
B20: Old Growth Slow Growing Conifer (> 200 years old)
B21: Newly Established Intensively managed SRF Conifer, 20 years rotation
B22: Newly Established Intensively managed SRF Conifer, 25 years rotation
B23: Intensely managed SRF Conifer, rotation length 25 years
B24: Medium intensity managed SRF Conifer, rotation length 25 years
B25: SRF Conifer, increased management intensity, 25 year rotation
B26: Intensely managed SRF Conifer, 25 year rotation, about to be converted to cotton plantation
B27: LRF Conifer, rotation length reduced to 50y
B28: LRF Conifer, rotation length reduced to 80y
B29: Conversion of LRF Conifer to intensively managed SRF plantation, 20 year rotation
B30: Conversion of LRF Conifer to intensively managed SRF plantation, 25 year rotation
B31: Conversion of LRF Conifer to SRC Willow over 3 y
B32: Conversion of LRF Conifer to SRC Willow over 50 y
B33: Conversion of LRF Broadleaf to intensively managed SRF plantation, 20 year rotation
B34: Conversion of LRF Broadleaf to intensively managed SRF plantation, 25 year rotation
B35: Conversion of LRF Broadleaf to SRC Willow over 3 y
B36: Conversion of LRF Broadleaf to SRC Willow over 70 y
B37: LRF Broadleaf for wood products, residues unused
B38: LRF Broadleaf for wood products, rotation length increasing
B39: LRF Broadleaf for wood products and bioenergy; rotation stays the same
B40: LRF Broadleaf for wood products and bioenergy
B41: LRF Broadleaf for wood products, 50% residues used
B42: LRF Broadleaf for bioenergy, residues unused
B43: Newly Abandoned LRF Broadleaf, residues unused
B44: LRF Broadleaf, rotation length reduced to 50y
B45: LRF Broadleaf, rotation length reduced to 60y
B46: LRF Broadleaf, rotation length reduced to 80y
B47: Unmanaged Temperate Broadleaf
B48: Newly Managed LRF Broadleaf
B49: Newly Managed LRF Conifer (slow growing)
B50: Newly Managed LRF Conifer (fast growing)
B51: Unmanaged Tropical Non-Peat Rainforest
B52: Unmanaged Tropical Peat Forest
A53: Non-Forest Natural Ecosystems | B53: Northern Peatland
B54: Marsh and Swamp
B55: Tundra Woodland
B56: Temperate shrub land
B57: Temperate grassland (e.g. Steppes, grassland praires)
B58: Tropical Woody Savannah
B59: Tropical Grassland Savannah
A60: Abandoned Land | B60: Land reverting to Tropical Rainforest
B61: Land reverting to Tropical Moist Deciduous Forest
B62: Land reverting to Tropical Dry Forest
B63: Land reverting to Tropical Mountain System
B64: Land reverting to Tropical Woody Savanna
B65: Land reverting to Temperate Oceanic Forest
B66: Land reverting to Temperate Continental Forest
B67: Land reverting to Temperate Mountain System
B68: Land reverting to Temperate Shrub or Grassland
B69: Land reverting to Boreal Coniferous Forest
B70: Land reverting to Boreal Tundra
B71: Land reverting to Boreal Mountain System
A72: Bioenergy | B72: SRC Willow Plantation
B73: SRF Eucalyptus Plantation
B74: Palm Plantation
B75: Maize Cropland
B76: Miscanthus Plantation
A80: Previous Land Use
A81: Chosen | B81: Options
B82: Long Rotation Forestry (LRF) | C82: Short Rotation Forestry (SRF) | D82: Unmanaged Forests | E82: =A53 -> Non-Forest Natural Ecosystems | F82: Abandoned Annual Crop Land | G82: Abandoned Perennial Cropland | H82: Abandoned Pasture
A83: =IF(INDEX(B83:H83,MATCH(Chosen_land_category_biopathways,Land_types_biopathways,0))="","",INDEX(B83:H83,MATCH(Chosen_land_category_biopathways,Land_types_biopathways,0))) -> LRF Conifer for wood products, residues unused | B83: =B9 -> LRF Conifer for wood products, residues unused | C83: =B11 -> Intensely managed SRF Conifer, rotation length increasing from 25 to 35 years | D83: =B47 -> Unmanaged Temperate Broadleaf | E83: =B53 -> Northern Peatland | F83: =B60 -> Land reverting to Tropical Rainforest | G83: =B60 -> Land reverting to Tropical Rainforest | H83: =B60 -> Land reverting to Tropical Rainforest
A84: LRF Conifer for wood products, 50% residues used | B84: =B10 -> LRF Conifer for wood products, 50% residues used | C84: =B13 -> Intensely managed SRF Conifer, rotation length increasing from 25 to 35 years (for a period of 15 years, then wood extraction increases again) | D84: =B52 -> Unmanaged Tropical Peat Forest | E84: Marsh and Swamp | F84: Land reverting to Tropical Moist Deciduous Forest | G84: Land reverting to Tropical Moist Deciduous Forest | H84: Land reverting to Tropical Moist Deciduous Forest
A85: Newly Abandoned LRF Conifer, residues unused | B85: =B18 -> Newly Abandoned LRF Conifer, residues unused | C85: =B26 -> Intensely managed SRF Conifer, 25 year rotation, about to be converted to cotton plantation | D85: =B51 -> Unmanaged Tropical Non-Peat Rainforest | E85: Tundra Woodland | F85: Land reverting to Tropical Dry Forest | G85: Land reverting to Tropical Dry Forest | H85: Land reverting to Tropical Dry Forest
A86: LRF Broadleaf for wood products, residues unused | B86: =B37 -> LRF Broadleaf for wood products, residues unused | C86: =B14 -> Intensely managed SRF Conifer, about to be managed less intensively as natural Loblolly stand | D86: =B19 -> Old Growth Fast Growing Conifer (> 200 years old) | E86: Temperate shrub land | F86: Land reverting to Tropical Mountain System | G86: Land reverting to Tropical Mountain System | H86: Land reverting to Tropical Mountain System
A87: LRF Broadleaf for wood products, 50% residues used | B87: =B41 -> LRF Broadleaf for wood products, 50% residues used | C87: =B15 -> Intensely managed SRF Conifer, about to be harvested then left to regenerate naturally, without future harvesting | D87: =B20 -> Old Growth Slow Growing Conifer (> 200 years old) | E87: Temperate grassland (e.g. Steppes, grassland praires) | F87: Land reverting to Tropical Woody Savanna | G87: Land reverting to Tropical Woody Savanna | H87: Land reverting to Tropical Woody Savanna
A88: Newly Abandoned LRF Broadleaf, residues unused | B88: =B43 -> Newly Abandoned LRF Broadleaf, residues unused | C88: =B23 -> Intensely managed SRF Conifer, rotation length 25 years | E88: Tropical Woody Savannah | F88: Land reverting to Temperate Oceanic Forest | G88: Land reverting to Temperate Oceanic Forest | H88: Land reverting to Temperate Oceanic Forest
A89: LRF Broadleaf for wood products, rotation length increasing | B89: =B38 -> LRF Broadleaf for wood products, rotation length increasing | C89: =B24 -> Medium intensity managed SRF Conifer, rotation length 25 years | E89: Tropical Grassland Savannah | F89: Land reverting to Temperate Continental Forest | G89: Land reverting to Temperate Continental Forest | H89: Land reverting to Temperate Continental Forest
F90: Land reverting to Temperate Mountain System | G90: Land reverting to Temperate Mountain System | H90: Land reverting to Temperate Mountain System
F91: Land reverting to Temperate Shrub or Grassland | G91: Land reverting to Temperate Shrub or Grassland | H91: Land reverting to Temperate Shrub or Grassland
F92: Land reverting to Boreal Coniferous Forest | G92: Land reverting to Boreal Coniferous Forest | H92: Land reverting to Boreal Coniferous Forest
F93: Land reverting to Boreal Tundra | G93: Land reverting to Boreal Tundra | H93: Land reverting to Boreal Tundra
F94: Land reverting to Boreal Mountain System | G94: Land reverting to Boreal Mountain System | H94: Land reverting to Boreal Mountain System
A107: Countries
A108: Chosen | B108: Options
B109: =B9 -> LRF Conifer for wood products, residues unused | C109: =B10 -> LRF Conifer for wood products, 50% residues used | D109: =B11 -> Intensely managed SRF Conifer, rotation length increasing from 25 to 35 years | E109: =B13 -> Intensely managed SRF Conifer, rotation length increasing from 25 to 35 years (for a period of 15 years, then wood extraction increases again) | F109: =B26 -> Intensely managed SRF Conifer, 25 year rotation, about to be converted to cotton plantation | G109: =B14 -> Intensely managed SRF Conifer, about to be managed less intensively as natural Loblolly stand | H109: =B15 -> Intensely managed SRF Conifer, about to be harvested then left to regenerate naturally, without future harvesting | I109: =B23 -> Intensely managed SRF Conifer, rotation length 25 years | J109: =B24 -> Medium intensity managed SRF Conifer, rotation length 25 years | K109: =B18 -> Newly Abandoned LRF Conifer, residues unused | L109: =B37 -> LRF Broadleaf for wood products, residues unused | M109: =B41 -> LRF Broadleaf for wood products, 50% residues used | N109: =B43 -> Newly Abandoned LRF Broadleaf, residues unused | O109: =B38 -> LRF Broadleaf for wood products, rotation length increasing | P109: =B47 -> Unmanaged Temperate Broadleaf | Q109: =B52 -> Unmanaged Tropical Peat Forest | R109: =B51 -> Unmanaged Tropical Non-Peat Rainforest | S109: =B19 -> Old Growth Fast Growing Conifer (> 200 years old) | T109: =B20 -> Old Growth Slow Growing Conifer (> 200 years old) | U109: =B53 -> Northern Peatland | V109: =B54 -> Marsh and Swamp | W109: =B55 -> Tundra Woodland | X109: =B56 -> Temperate shrub land | Y109: =B57 -> Temperate grassland (e.g. Steppes, grassland praires) | Z109: =B58 -> Tropical Woody Savannah | AA109: =B59 -> Tropical Grassland Savannah | AB109: =B60 -> Land reverting to Tropical Rainforest | AC109: =B61 -> Land reverting to Tropical Moist Deciduous Forest | AD109: =B62 -> Land reverting to Tropical Dry Forest | AE109: =B63 -> Land reverting to Tropical Mountain System | AF109: =B64 -> Land reverting to Tropical Woody Savanna | AG109: =B65 -> Land reverting to Temperate Oceanic Forest | AH109: =B66 -> Land reverting to Temperate Continental Forest | AI109: =B67 -> Land reverting to Temperate Mountain System | AJ109: =B68 -> Land reverting to Temperate Shrub or Grassland | AK109: =B69 -> Land reverting to Boreal Coniferous Forest | AL109: =B70 -> Land reverting to Boreal Tundra
A110: =IF(INDEX(B110:AM110,MATCH(Chosen_Previous_Land_type_biopathways,Previous_Land_Types_Biopathways,0))="","",INDEX(B110:AM110,MATCH(Chosen_Previous_Land_type_biopathways,Previous_Land_Types_Biopathways,0))) -> UK | B110: ='Transport Data'!A8 -> UK | C110: ='Transport Data'!A13 -> Pacific Canada | D110: ='Transport Data'!A9 -> South USA | E110: ='Transport Data'!A9 -> South USA | F110: ='Transport Data'!A9 -> South USA | G110: ='Transport Data'!A9 -> South USA | H110: ='Transport Data'!A9 -> South USA | I110: ='Transport Data'!A9 -> South USA | J110: ='Transport Data'!A9 -> South USA | K110: ='Transport Data'!A9 -> South USA | L110: ='Transport Data'!A8 -> UK | M110: ='Transport Data'!A16 -> East Canada | N110: ='Transport Data'!A11 -> North-East USA | O110: ='Transport Data'!A9 -> South USA | P110: ='Transport Data'!A8 -> UK | Q110: ='Transport Data'!A20 -> Africa (tropical wet region) | R110: ='Transport Data'!A20 -> Africa (tropical wet region) | S110: ='Transport Data'!A10 -> North West USA | T110: ='Transport Data'!A10 -> North West USA | U110: ='Transport Data'!$A$49 -> Europe (boreal region) | V110: ='Transport Data'!$A$20 -> Africa (tropical wet region) | W110: ='Transport Data'!A49 -> Europe (boreal region) | X110: ='Transport Data'!$A$50 -> Europe (temperate dry region) | Y110: ='Transport Data'!$A$50 -> Europe (temperate dry region) | Z110: ='Transport Data'!$A$18 -> Africa (tropical dry region) | AA110: ='Transport Data'!$A$18 -> Africa (tropical dry region) | AB110: ='Transport Data'!$A$20 -> Africa (tropical wet region) | AC110: ='Transport Data'!A19 -> Africa (tropical moist region) | AD110: ='Transport Data'!A18 -> Africa (tropical dry region) | AE110: ='Transport Data'!A21 -> Africa (tropical montane region) | AF110: ='Transport Data'!$A$18 -> Africa (tropical dry region) | AG110: ='Transport Data'!$A$51 -> Europe (temperate moist region) | AH110: ='Transport Data'!$A$50 -> Europe (temperate dry region) | AI110: ='Transport Data'!$A$51 -> Europe (temperate moist region) | AJ110: ='Transport Data'!$A$50 -> Europe (temperate dry region) | AK110: ='Transport Data'!$A$49 -> Europe (boreal region) | AL110: ='Transport Data'!$A$49 -> Europe (boreal region)
A111: South USA | B111: ='Transport Data'!A9 -> South USA | C111: ='Transport Data'!A14 -> Interior Canada | K111: ='Transport Data'!A10 -> North West USA | L111: ='Transport Data'!A11 -> North-East USA | N111: ='Transport Data'!A12 -> North USA | Q111: ='Transport Data'!A29 -> North America (tropical wet region) | R111: ='Transport Data'!A29 -> North America (tropical wet region) | S111: ='Transport Data'!A9 -> South USA | U111: ='Transport Data'!$A$23 -> North America (boreal region) | V111: ='Transport Data'!$A$29 -> North America (tropical wet region) | W111: ='Transport Data'!A23 -> North America (boreal region) | X111: ='Transport Data'!$A$24 -> North America (temperate dry region) | Y111: ='Transport Data'!$A$24 -> North America (temperate dry region) | Z111: ='Transport Data'!$A$27 -> North America (tropical dry region) | AA111: ='Transport Data'!$A$27 -> North America (tropical dry region) | AB111: ='Transport Data'!$A$29 -> North America (tropical wet region) | AC111: ='Transport Data'!A28 -> North America (tropical moist region) | AD111: ='Transport Data'!A27 -> North America (tropical dry region) | AE111: ='Transport Data'!A26 -> North America (tropical montane region) | AF111: ='Transport Data'!$A$27 -> North America (tropical dry region) | AG111: ='Transport Data'!$A$25 -> North America (temperate moist region) | AH111: ='Transport Data'!$A$24 -> North America (temperate dry region) | AI111: ='Transport Data'!$A$25 -> North America (temperate moist region) | AJ111: ='Transport Data'!$A$24 -> North America (temperate dry region) | AK111: ='Transport Data'!$A$23 -> North America (boreal region) | AL111: ='Transport Data'!$A$23 -> North America (boreal region)
A112: North West USA | B112: ='Transport Data'!A10 -> North West USA | C112: ='Transport Data'!A15 -> Boreal North Canada | K112: ='Transport Data'!A13 -> Pacific Canada | L112: ='Transport Data'!A12 -> North USA | N112: ='Transport Data'!A16 -> East Canada | Q112: ='Transport Data'!A36 -> South America (tropical wet region) | R112: ='Transport Data'!A36 -> South America (tropical wet region) | U112: ='Transport Data'!$A$38 -> Asia Continental (boreal region) | V112: ='Transport Data'!$A$36 -> South America (tropical wet region) | W112: ='Transport Data'!A38 -> Asia Continental (boreal region) | X112: ='Transport Data'!$A$53 -> New Zealand (temperate dry region) | Y112: ='Transport Data'!$A$53 -> New Zealand (temperate dry region) | Z112: ='Transport Data'!$A$34 -> South America (tropical dry region) | AA112: ='Transport Data'!$A$34 -> South America (tropical dry region) | AB112: ='Transport Data'!$A$36 -> South America (tropical wet region) | AC112: ='Transport Data'!A35 -> South America (tropical moist region) | AD112: ='Transport Data'!A34 -> South America (tropical dry region) | AE112: ='Transport Data'!A33 -> South America (tropical montane region) | AF112: ='Transport Data'!$A$34 -> South America (tropical dry region) | AG112: ='Transport Data'!$A$54 -> New Zealand (temperate moist region) | AH112: ='Transport Data'!$A$53 -> New Zealand (temperate dry region) | AI112: ='Transport Data'!$A$54 -> New Zealand (temperate moist region) | AJ112: ='Transport Data'!$A$53 -> New Zealand (temperate dry region) | AK112: ='Transport Data'!$A$38 -> Asia Continental (boreal region) | AL112: ='Transport Data'!$A$38 -> Asia Continental (boreal region)
A113: Pacific Canada | B113: ='Transport Data'!A13 -> Pacific Canada | K113: ='Transport Data'!A14 -> Interior Canada | L113: ='Transport Data'!A16 -> East Canada | Q113: ='Transport Data'!A40 -> Asia Continental (tropical wet region) | R113: ='Transport Data'!A40 -> Asia Continental (tropical wet region) | V113: ='Transport Data'!$A$40 -> Asia Continental (tropical wet region) | X113: ='Transport Data'!$A$31 -> South America (temperate dry region) | Y113: ='Transport Data'!$A$31 -> South America (temperate dry region) | Z113: ='Transport Data'!$A$39 -> Asia Continental (tropical dry region) | AA113: ='Transport Data'!$A$39 -> Asia Continental (tropical dry region) | AB113: ='Transport Data'!$A$40 -> Asia Continental (tropical wet region) | AC113: ='Transport Data'!A41 -> Asia Continental (tropical moist region) | AD113: ='Transport Data'!A39 -> Asia Continental (tropical dry region) | AE113: ='Transport Data'!A42 -> Asia Continental (tropical montane region) | AF113: ='Transport Data'!$A$39 -> Asia Continental (tropical dry region) | AG113: ='Transport Data'!$A$32 -> South America (temperate moist region) | AH113: ='Transport Data'!$A$31 -> South America (temperate dry region) | AI113: ='Transport Data'!$A$32 -> South America (temperate moist region) | AJ113: ='Transport Data'!$A$31 -> South America (temperate dry region)
A114: Interior Canada | B114: ='Transport Data'!A14 -> Interior Canada | K114: ='Transport Data'!A15 -> Boreal North Canada | L114: ='Transport Data'!A9 -> South USA | Q114: ='Transport Data'!A46 -> Asia Insular (tropical wet region) | R114: ='Transport Data'!A46 -> Asia Insular (tropical wet region) | V114: ='Transport Data'!$A$46 -> Asia Insular (tropical wet region) | Z114: ='Transport Data'!$A$44 -> Asia Insular (tropical dry region) | AA114: ='Transport Data'!$A$44 -> Asia Insular (tropical dry region) | AB114: ='Transport Data'!$A$46 -> Asia Insular (tropical wet region) | AC114: ='Transport Data'!A45 -> Asia Insular (tropical moist region) | AD114: ='Transport Data'!A44 -> Asia Insular (tropical dry region) | AE114: ='Transport Data'!A47 -> Asia Insular (tropical montane region) | AF114: ='Transport Data'!$A$44 -> Asia Insular (tropical dry region)
A115: Boreal North Canada | B115: ='Transport Data'!A15 -> Boreal North Canada
A118: Previous Land Use | B118: New Land Use
A119: =$B$109&":"&B110 -> LRF Conifer for wood products, residues unused:UK | B119: =$B$16 -> LRF Conifer for wood products and bioenergy
A120: LRF Conifer for wood products, residues unused:South USA | B120: LRF Conifer for wood products and bioenergy | C120: =B29 -> Conversion of LRF Conifer to intensively managed SRF plantation, 20 year rotation | D120: =B30 -> Conversion of LRF Conifer to intensively managed SRF plantation, 25 year rotation | E120: =B31 -> Conversion of LRF Conifer to SRC Willow over 3 y | F120: =B32 -> Conversion of LRF Conifer to SRC Willow over 50 y
A121: LRF Conifer for wood products, residues unused:North West USA | B121: LRF Conifer for wood products and bioenergy
A122: LRF Conifer for wood products, residues unused:Pacific Canada | B122: LRF Conifer for wood products and bioenergy
A123: LRF Conifer for wood products, residues unused:Interior Canada | B123: LRF Conifer for wood products and bioenergy
A124: LRF Conifer for wood products, residues unused:Boreal North Canada | B124: LRF Conifer for wood products and bioenergy
A125: =D109&":"&D110 -> Intensely managed SRF Conifer, rotation length increasing from 25 to 35 years :South USA | B125: =B23 -> Intensely managed SRF Conifer, rotation length 25 years | C125: =B12 -> Intensely managed SRF Conifer, rotation length reduced from 25 to 20 years
A126: =E109&":"&E110 -> Intensely managed SRF Conifer, rotation length increasing from 25 to 35 years (for a period of 15 years, then wood extraction increases again):South USA | B126: =B23 -> Intensely managed SRF Conifer, rotation length 25 years | C126: =B12 -> Intensely managed SRF Conifer, rotation length reduced from 25 to 20 years
A127: =B14&":"&G110 -> Intensely managed SRF Conifer, about to be managed less intensively as natural Loblolly stand:South USA | B127: =B23 -> Intensely managed SRF Conifer, rotation length 25 years | C127: =B12 -> Intensely managed SRF Conifer, rotation length reduced from 25 to 20 years
A128: =H109&":"&H110 -> Intensely managed SRF Conifer, about to be harvested then left to regenerate naturally, without future harvesting:South USA | B128: =B23 -> Intensely managed SRF Conifer, rotation length 25 years | C128: =B12 -> Intensely managed SRF Conifer, rotation length reduced from 25 to 20 years
A129: =F109&":"&F110 -> Intensely managed SRF Conifer, 25 year rotation, about to be converted to cotton plantation:South USA | B129: =B23 -> Intensely managed SRF Conifer, rotation length 25 years | C129: =B12 -> Intensely managed SRF Conifer, rotation length reduced from 25 to 20 years
A130: =I109&":"&I110 -> Intensely managed SRF Conifer, rotation length 25 years:South USA | B130: =B12 -> Intensely managed SRF Conifer, rotation length reduced from 25 to 20 years
A131: =J109&":"&J110 -> Medium intensity managed SRF Conifer, rotation length 25 years:South USA | B131: =B25 -> SRF Conifer, increased management intensity, 25 year rotation
A132: =$K$109&":"&K110 -> Newly Abandoned LRF Conifer, residues unused:South USA | B132: =$B$17 -> LRF Conifer for Bioenergy, residues unused | C132: =$B$72 -> SRC Willow Plantation | D132: =$B$76 -> Miscanthus Plantation | E132: =$B$75 -> Maize Cropland
A133: =$K$109&":"&K111 -> Newly Abandoned LRF Conifer, residues unused:North West USA | B133: =$B$17 -> LRF Conifer for Bioenergy, residues unused | C133: =$B$72 -> SRC Willow Plantation | D133: =$B$76 -> Miscanthus Plantation | E133: =$B$75 -> Maize Cropland
A134: =$K$109&":"&K112 -> Newly Abandoned LRF Conifer, residues unused:Pacific Canada | B134: =$B$17 -> LRF Conifer for Bioenergy, residues unused | C134: =$B$72 -> SRC Willow Plantation | D134: =$B$76 -> Miscanthus Plantation | E134: =$B$75 -> Maize Cropland
A135: =$K$109&":"&K113 -> Newly Abandoned LRF Conifer, residues unused:Interior Canada | B135: =$B$17 -> LRF Conifer for Bioenergy, residues unused | C135: =$B$72 -> SRC Willow Plantation | D135: =$B$76 -> Miscanthus Plantation | E135: =$B$75 -> Maize Cropland
A136: =$K$109&":"&K114 -> Newly Abandoned LRF Conifer, residues unused:Boreal North Canada | B136: =$B$17 -> LRF Conifer for Bioenergy, residues unused | C136: =$B$72 -> SRC Willow Plantation | D136: =$B$76 -> Miscanthus Plantation | E136: =$B$75 -> Maize Cropland
A137: =C109&":"&C110 -> LRF Conifer for wood products, 50% residues used:Pacific Canada | B137: =$B$27 -> LRF Conifer, rotation length reduced to 50y
A138: =C109&":"&C111 -> LRF Conifer for wood products, 50% residues used:Interior Canada | B138: =$B$27 -> LRF Conifer, rotation length reduced to 50y | C138: =$B$28 -> LRF Conifer, rotation length reduced to 80y
A139: =C109&":"&C112 -> LRF Conifer for wood products, 50% residues used:Boreal North Canada | B139: =$B$27 -> LRF Conifer, rotation length reduced to 50y | C139: =$B$28 -> LRF Conifer, rotation length reduced to 80y
A140: =$L$109&":"&L110 -> LRF Broadleaf for wood products, residues unused:UK | B140: =$B$40 -> LRF Broadleaf for wood products and bioenergy
A141: =$L$109&":"&L111 -> LRF Broadleaf for wood products, residues unused:North-East USA | B141: =$B$40 -> LRF Broadleaf for wood products and bioenergy
A142: =$L$109&":"&L112 -> LRF Broadleaf for wood products, residues unused:North USA | B142: =$B$40 -> LRF Broadleaf for wood products and bioenergy
A143: =$L$109&":"&L113 -> LRF Broadleaf for wood products, residues unused:East Canada | B143: =$B$40 -> LRF Broadleaf for wood products and bioenergy
A144: =$L$109&":"&L114 -> LRF Broadleaf for wood products, residues unused:South USA | B144: =$B$40 -> LRF Broadleaf for wood products and bioenergy | C144: =B33 -> Conversion of LRF Broadleaf to intensively managed SRF plantation, 20 year rotation | D144: =B34 -> Conversion of LRF Broadleaf to intensively managed SRF plantation, 25 year rotation | E144: =B35 -> Conversion of LRF Broadleaf to SRC Willow over 3 y | F144: =B36 -> Conversion of LRF Broadleaf to SRC Willow over 70 y | G144: =B45 -> LRF Broadleaf, rotation length reduced to 60y
A145: =$N$109&":"&N110 -> Newly Abandoned LRF Broadleaf, residues unused:North-East USA | B145: =$B$42 -> LRF Broadleaf for bioenergy, residues unused | C145: =$B$72 -> SRC Willow Plantation | D145: =$B$76 -> Miscanthus Plantation | E145: =$B$75 -> Maize Cropland
A146: =$N$109&":"&N111 -> Newly Abandoned LRF Broadleaf, residues unused:North USA | B146: =$B$42 -> LRF Broadleaf for bioenergy, residues unused | C146: =$B$72 -> SRC Willow Plantation | D146: =$B$76 -> Miscanthus Plantation | E146: =$B$75 -> Maize Cropland
A147: =$N$109&":"&N112 -> Newly Abandoned LRF Broadleaf, residues unused:East Canada | B147: =$B$42 -> LRF Broadleaf for bioenergy, residues unused | C147: =$B$72 -> SRC Willow Plantation | D147: =$B$76 -> Miscanthus Plantation | E147: =$B$75 -> Maize Cropland
A148: =M109&":"&M110 -> LRF Broadleaf for wood products, 50% residues used:East Canada | B148: =B44 -> LRF Broadleaf, rotation length reduced to 50y | C148: =B46 -> LRF Broadleaf, rotation length reduced to 80y
A149: =O109&":"&O110 -> LRF Broadleaf for wood products, rotation length increasing:South USA | B149: =B39 -> LRF Broadleaf for wood products and bioenergy; rotation stays the same
A150: =$P$109&":"&P110 -> Unmanaged Temperate Broadleaf:UK | B150: =B48 -> Newly Managed LRF Broadleaf | C150: =B72 -> SRC Willow Plantation
A151: =$Q$109&":"&Q110 -> Unmanaged Tropical Peat Forest:Africa (tropical wet region) | B151: =$B$73 -> SRF Eucalyptus Plantation | C151: =$B$75 -> Maize Cropland | D151: =$B$74 -> Palm Plantation
A152: =$Q$109&":"&Q111 -> Unmanaged Tropical Peat Forest:North America (tropical wet region) | B152: =$B$73 -> SRF Eucalyptus Plantation | C152: Maize Cropland | D152: Palm Plantation
A153: =$Q$109&":"&Q112 -> Unmanaged Tropical Peat Forest:South America (tropical wet region) | B153: SRF Eucalyptus Plantation | C153: Maize Cropland | D153: Palm Plantation
A154: =$Q$109&":"&Q113 -> Unmanaged Tropical Peat Forest:Asia Continental (tropical wet region) | B154: SRF Eucalyptus Plantation | C154: Maize Cropland | D154: Palm Plantation
A155: =$Q$109&":"&Q114 -> Unmanaged Tropical Peat Forest:Asia Insular (tropical wet region) | B155: SRF Eucalyptus Plantation | C155: Maize Cropland | D155: Palm Plantation
A156: =$R$109&":"&R110 -> Unmanaged Tropical Non-Peat Rainforest:Africa (tropical wet region) | B156: SRF Eucalyptus Plantation | C156: Maize Cropland | D156: Palm Plantation
A157: =$R$109&":"&R111 -> Unmanaged Tropical Non-Peat Rainforest:North America (tropical wet region) | B157: SRF Eucalyptus Plantation | C157: Maize Cropland | D157: Palm Plantation
A158: =$R$109&":"&R112 -> Unmanaged Tropical Non-Peat Rainforest:South America (tropical wet region) | B158: SRF Eucalyptus Plantation | C158: Maize Cropland | D158: Palm Plantation
A159: =$R$109&":"&R113 -> Unmanaged Tropical Non-Peat Rainforest:Asia Continental (tropical wet region) | B159: SRF Eucalyptus Plantation | C159: Maize Cropland | D159: Palm Plantation
A160: =$R$109&":"&R114 -> Unmanaged Tropical Non-Peat Rainforest:Asia Insular (tropical wet region) | B160: SRF Eucalyptus Plantation | C160: Maize Cropland | D160: Palm Plantation
A161: =$S$109&":"&S110 -> Old Growth Fast Growing Conifer (> 200 years old):North West USA | B161: =$B$50 -> Newly Managed LRF Conifer (fast growing)
A162: =$S$109&":"&S111 -> Old Growth Fast Growing Conifer (> 200 years old):South USA | B162: =$B$50 -> Newly Managed LRF Conifer (fast growing)
A163: =$T$109&":"&T110 -> Old Growth Slow Growing Conifer (> 200 years old):North West USA | B163: =$B$49 -> Newly Managed LRF Conifer (slow growing)
A164: =$U$109&":"&U110 -> Northern Peatland:Europe (boreal region) | B164: =$B$72 -> SRC Willow Plantation | C164: =$B$76 -> Miscanthus Plantation | D164: =$B$75 -> Maize Cropland
A165: =$U$109&":"&U111 -> Northern Peatland:North America (boreal region) | B165: =$B$72 -> SRC Willow Plantation | C165: =$B$76 -> Miscanthus Plantation | D165: =$B$75 -> Maize Cropland
A166: =$U$109&":"&U112 -> Northern Peatland:Asia Continental (boreal region) | B166: =$B$72 -> SRC Willow Plantation | C166: =$B$76 -> Miscanthus Plantation | D166: =$B$75 -> Maize Cropland
A167: =$V$109&":"&V110 -> Marsh and Swamp :Africa (tropical wet region) | B167: =$B$73 -> SRF Eucalyptus Plantation | C167: =$B$75 -> Maize Cropland | D167: =$B$74 -> Palm Plantation
A168: =$V$109&":"&V111 -> Marsh and Swamp :North America (tropical wet region) | B168: =$B$73 -> SRF Eucalyptus Plantation | C168: =$B$75 -> Maize Cropland | D168: =$B$74 -> Palm Plantation
A169: =$V$109&":"&V112 -> Marsh and Swamp :South America (tropical wet region) | B169: =$B$73 -> SRF Eucalyptus Plantation | C169: =$B$75 -> Maize Cropland | D169: =$B$74 -> Palm Plantation
A170: =$V$109&":"&V113 -> Marsh and Swamp :Asia Continental (tropical wet region) | B170: =$B$73 -> SRF Eucalyptus Plantation | C170: =$B$75 -> Maize Cropland | D170: =$B$74 -> Palm Plantation
A171: =$V$109&":"&V114 -> Marsh and Swamp :Asia Insular (tropical wet region) | B171: =$B$73 -> SRF Eucalyptus Plantation | C171: =$B$75 -> Maize Cropland | D171: =$B$74 -> Palm Plantation
A172: =$W$109&":"&W110 -> Tundra Woodland:Europe (boreal region) | B172: =$B$72 -> SRC Willow Plantation | C172: =$B$76 -> Miscanthus Plantation | D172: =$B$75 -> Maize Cropland
A173: =$W$109&":"&W111 -> Tundra Woodland:North America (boreal region) | B173: SRC Willow Plantation | C173: Miscanthus Plantation | D173: Maize Cropland
A174: =$W$109&":"&W112 -> Tundra Woodland:Asia Continental (boreal region) | B174: SRC Willow Plantation | C174: Miscanthus Plantation | D174: Maize Cropland
A175: =$X$109&":"&X110 -> Temperate shrub land :Europe (temperate dry region) | B175: SRC Willow Plantation | C175: Miscanthus Plantation | D175: Maize Cropland
A176: =$X$109&":"&X111 -> Temperate shrub land :North America (temperate dry region) | B176: SRC Willow Plantation | C176: Miscanthus Plantation | D176: Maize Cropland
A177: =$X$109&":"&X112 -> Temperate shrub land :New Zealand (temperate dry region) | B177: SRC Willow Plantation | C177: Miscanthus Plantation | D177: Maize Cropland
A178: =$X$109&":"&X113 -> Temperate shrub land :South America (temperate dry region) | B178: SRC Willow Plantation | C178: Miscanthus Plantation | D178: Maize Cropland
A179: =$Y$109&":"&Y110 -> Temperate grassland (e.g. Steppes, grassland praires):Europe (temperate dry region) | B179: SRC Willow Plantation | C179: Miscanthus Plantation | D179: Maize Cropland
A180: =$Y$109&":"&Y111 -> Temperate grassland (e.g. Steppes, grassland praires):North America (temperate dry region) | B180: SRC Willow Plantation | C180: Miscanthus Plantation | D180: Maize Cropland
A181: =$Y$109&":"&Y112 -> Temperate grassland (e.g. Steppes, grassland praires):New Zealand (temperate dry region) | B181: SRC Willow Plantation | C181: Miscanthus Plantation | D181: Maize Cropland
A182: =$Y$109&":"&Y113 -> Temperate grassland (e.g. Steppes, grassland praires):South America (temperate dry region) | B182: SRC Willow Plantation | C182: Miscanthus Plantation | D182: Maize Cropland
A183: =$Z$109&":"&Z110 -> Tropical Woody Savannah:Africa (tropical dry region) | B183: =$B$73 -> SRF Eucalyptus Plantation | C183: =$B$75 -> Maize Cropland | D183: =$B$74 -> Palm Plantation
A184: =$Z$109&":"&Z111 -> Tropical Woody Savannah:North America (tropical dry region) | B184: SRF Eucalyptus Plantation | C184: Maize Cropland | D184: Palm Plantation
A185: =$Z$109&":"&Z112 -> Tropical Woody Savannah:South America (tropical dry region) | B185: SRF Eucalyptus Plantation | C185: Maize Cropland | D185: Palm Plantation
A186: =$Z$109&":"&Z113 -> Tropical Woody Savannah:Asia Continental (tropical dry region) | B186: SRF Eucalyptus Plantation | C186: Maize Cropland | D186: Palm Plantation
A187: =$Z$109&":"&Z114 -> Tropical Woody Savannah:Asia Insular (tropical dry region) | B187: SRF Eucalyptus Plantation | C187: Maize Cropland | D187: Palm Plantation
A188: =$AA$109&":"&AA110 -> Tropical Grassland Savannah:Africa (tropical dry region) | B188: SRF Eucalyptus Plantation | C188: Maize Cropland | D188: Palm Plantation
A189: =$AA$109&":"&AA111 -> Tropical Grassland Savannah:North America (tropical dry region) | B189: SRF Eucalyptus Plantation | C189: Maize Cropland | D189: Palm Plantation
A190: =$AA$109&":"&AA112 -> Tropical Grassland Savannah:South America (tropical dry region) | B190: SRF Eucalyptus Plantation | C190: Maize Cropland | D190: Palm Plantation
A191: =$AA$109&":"&AA113 -> Tropical Grassland Savannah:Asia Continental (tropical dry region) | B191: SRF Eucalyptus Plantation | C191: Maize Cropland | D191: Palm Plantation
A192: =$AA$109&":"&AA114 -> Tropical Grassland Savannah:Asia Insular (tropical dry region) | B192: SRF Eucalyptus Plantation | C192: Maize Cropland | D192: Palm Plantation
A193: =$AB$109&":"&AB110 -> Land reverting to Tropical Rainforest:Africa (tropical wet region) | B193: SRF Eucalyptus Plantation | C193: Maize Cropland | D193: Palm Plantation
A194: =$AB$109&":"&AB111 -> Land reverting to Tropical Rainforest:North America (tropical wet region) | B194: SRF Eucalyptus Plantation | C194: Maize Cropland | D194: Palm Plantation
A195: =$AB$109&":"&AB112 -> Land reverting to Tropical Rainforest:South America (tropical wet region) | B195: SRF Eucalyptus Plantation | C195: Maize Cropland | D195: Palm Plantation
A196: =$AB$109&":"&AB113 -> Land reverting to Tropical Rainforest:Asia Continental (tropical wet region) | B196: SRF Eucalyptus Plantation | C196: Maize Cropland | D196: Palm Plantation
A197: =$AB$109&":"&AB114 -> Land reverting to Tropical Rainforest:Asia Insular (tropical wet region) | B197: SRF Eucalyptus Plantation | C197: Maize Cropland | D197: Palm Plantation
A198: =$AC$109&":"&AC110 -> Land reverting to Tropical Moist Deciduous Forest:Africa (tropical moist region) | B198: SRF Eucalyptus Plantation | C198: Maize Cropland | D198: Palm Plantation
A199: =$AC$109&":"&AC111 -> Land reverting to Tropical Moist Deciduous Forest:North America (tropical moist region) | B199: SRF Eucalyptus Plantation | C199: Maize Cropland | D199: Palm Plantation | E199: =$B$72 -> SRC Willow Plantation | F199: =$B$21 -> Newly Established Intensively managed SRF Conifer, 20 years rotation | G199: =$B$22 -> Newly Established Intensively managed SRF Conifer, 25 years rotation
A200: =$AC$109&":"&AC112 -> Land reverting to Tropical Moist Deciduous Forest:South America (tropical moist region) | B200: SRF Eucalyptus Plantation | C200: Maize Cropland | D200: Palm Plantation
A201: =$AC$109&":"&AC113 -> Land reverting to Tropical Moist Deciduous Forest:Asia Continental (tropical moist region) | B201: SRF Eucalyptus Plantation | C201: Maize Cropland | D201: Palm Plantation
A202: =$AC$109&":"&AC114 -> Land reverting to Tropical Moist Deciduous Forest:Asia Insular (tropical moist region) | B202: SRF Eucalyptus Plantation | C202: Maize Cropland | D202: Palm Plantation
A203: =$AD$109&":"&AD110 -> Land reverting to Tropical Dry Forest:Africa (tropical dry region) | B203: SRF Eucalyptus Plantation | C203: Maize Cropland | D203: Palm Plantation
A204: =$AD$109&":"&AD111 -> Land reverting to Tropical Dry Forest:North America (tropical dry region) | B204: SRF Eucalyptus Plantation | C204: Maize Cropland | D204: Palm Plantation
A205: =$AD$109&":"&AD112 -> Land reverting to Tropical Dry Forest:South America (tropical dry region) | B205: SRF Eucalyptus Plantation | C205: Maize Cropland | D205: Palm Plantation
A206: =$AD$109&":"&AD113 -> Land reverting to Tropical Dry Forest:Asia Continental (tropical dry region) | B206: SRF Eucalyptus Plantation | C206: Maize Cropland | D206: Palm Plantation
A207: =$AD$109&":"&AD114 -> Land reverting to Tropical Dry Forest:Asia Insular (tropical dry region) | B207: SRF Eucalyptus Plantation | C207: Maize Cropland | D207: Palm Plantation
A208: =$AE$109&":"&AE110 -> Land reverting to Tropical Mountain System:Africa (tropical montane region) | B208: SRF Eucalyptus Plantation | C208: Maize Cropland | D208: Palm Plantation
A209: =$AE$109&":"&AE111 -> Land reverting to Tropical Mountain System:North America (tropical montane region) | B209: SRF Eucalyptus Plantation | C209: Maize Cropland | D209: Palm Plantation | E209: =$B$72 -> SRC Willow Plantation | F209: =$B$21 -> Newly Established Intensively managed SRF Conifer, 20 years rotation | G209: =$B$22 -> Newly Established Intensively managed SRF Conifer, 25 years rotation
A210: =$AE$109&":"&AE112 -> Land reverting to Tropical Mountain System:South America (tropical montane region) | B210: SRF Eucalyptus Plantation | C210: Maize Cropland | D210: Palm Plantation
A211: =$AE$109&":"&AE113 -> Land reverting to Tropical Mountain System:Asia Continental (tropical montane region) | B211: SRF Eucalyptus Plantation | C211: Maize Cropland | D211: Palm Plantation
A212: =$AE$109&":"&AE114 -> Land reverting to Tropical Mountain System:Asia Insular (tropical montane region) | B212: SRF Eucalyptus Plantation | C212: Maize Cropland | D212: Palm Plantation
A213: =$AF$109&":"&AF110 -> Land reverting to Tropical Woody Savanna:Africa (tropical dry region) | B213: SRF Eucalyptus Plantation | C213: Maize Cropland | D213: Palm Plantation
A214: =$AF$109&":"&AF111 -> Land reverting to Tropical Woody Savanna:North America (tropical dry region) | B214: SRF Eucalyptus Plantation | C214: Maize Cropland | D214: Palm Plantation
A215: =$AF$109&":"&AF112 -> Land reverting to Tropical Woody Savanna:South America (tropical dry region) | B215: SRF Eucalyptus Plantation | C215: Maize Cropland | D215: Palm Plantation
A216: =$AF$109&":"&AF113 -> Land reverting to Tropical Woody Savanna:Asia Continental (tropical dry region) | B216: SRF Eucalyptus Plantation | C216: Maize Cropland | D216: Palm Plantation
A217: =$AF$109&":"&AF114 -> Land reverting to Tropical Woody Savanna:Asia Insular (tropical dry region) | B217: SRF Eucalyptus Plantation | C217: Maize Cropland | D217: Palm Plantation
A218: =$AG$109&":"&AG110 -> Land reverting to Temperate Oceanic Forest:Europe (temperate moist region) | B218: =$B$72 -> SRC Willow Plantation | C218: =$B$76 -> Miscanthus Plantation | D218: =$B$75 -> Maize Cropland
A219: =$AG$109&":"&AG111 -> Land reverting to Temperate Oceanic Forest:North America (temperate moist region) | B219: SRC Willow Plantation | C219: Miscanthus Plantation | D219: Maize Cropland | E219: =$B$21 -> Newly Established Intensively managed SRF Conifer, 20 years rotation | F219: =$B$22 -> Newly Established Intensively managed SRF Conifer, 25 years rotation
... 327 more rows

Sheet Choice Check
A1: Checking Allowable Choice Combinations
A3: Sum of Countif | B3: =A10+E10+I10+M10+P10+T10+X10+AD10+AO10 -> 9 | E3: Please check your combination of selections
A4: OK combination? | B4: =IF(B3=9,E4,E3) -> Selected combinations OK | E4: Selected combinations OK
A6: Chosen combination | C6: Name | E6: Chosen combination | I6: Chosen combination | M6: Chosen combination | P6: Chosen combination | T6: Chosen combination | X6: Chosen combination | AD6: Chosen combination | AO6: Chosen combination
A7: =Chosen_land_category_biopathways -> Long Rotation Forestry (LRF) | B7: =Chosen_Previous_Land_type_biopathways -> LRF Conifer for wood products, residues unused | C7: =A7&":"&B7 -> Long Rotation Forestry (LRF):LRF Conifer for wood products, residues unused | E7: =Chosen_Previous_Land_type_biopathways -> LRF Conifer for wood products, residues unused | F7: =Chosen_region_biopathways -> UK | G7: =E7&":"&F7 -> LRF Conifer for wood products, residues unused:UK | I7: =G7 -> LRF Conifer for wood products, residues unused:UK | J7: =Chosen_new_landuse_biopathways -> LRF Conifer for wood products and bioenergy | K7: =I7&":"&J7 -> LRF Conifer for wood products, residues unused:UK:LRF Conifer for wood products and bioenergy | M7: =Chosen_new_landuse_biopathways -> LRF Conifer for wood products and bioenergy | N7: =Chosen_biomass_form_biopathways -> Small Roundwood (50 wt% moisture) | O7: =M7&":"&N7 -> LRF Conifer for wood products and bioenergy:Small Roundwood (50 wt% moisture) | P7: =O7 -> LRF Conifer for wood products and bioenergy:Small Roundwood (50 wt% moisture) | Q7: =Chosen_counterfactual -> MDF (replacing plasterwork) | R7: =P7&":"&Q7 -> LRF Conifer for wood products and bioenergy:Small Roundwood (50 wt% moisture):MDF (replacing plasterwork) | T7: =Chosen_biomass_form_biopathways -> Small Roundwood (50 wt% moisture) | U7: =Chosen_pretreatment_biopathways -> Natural dry and chip | V7: =T7&":"&U7 -> Small Roundwood (50 wt% moisture):Natural dry and chip | X7: =Chosen_pretreatment_biopathways -> Natural dry and chip | Y7: =Chosen_pretreatment_drying_biopathways -> Natural or No Drying | Z7: =X7&":"&Y7 -> Natural dry and chip:Natural or No Drying | AD7: =Calculations!B336 -> Wood Chips (25 wt% moisture) | AE7: =Chosen_technology_biopathways -> Heat from Biomass Boiler | AF7: =AD7&":"&AE7 -> Wood Chips (25 wt% moisture):Heat from Biomass Boiler | AO7: =Chosen_Previous_Land_type_biopathways&":"&Chosen_new_landuse_biopathways -> LRF Conifer for wood products, residues unused:LRF Conifer for wood products and bioenergy | AP7: =Chosen_soil_type_biopathways -> No peat drainage | AQ7: =AO7&":"&AP7 -> LRF Conifer for wood products, residues unused:LRF Conifer for wood products and bioenergy:No peat drainage
A9: Is this combination ok (1=yes, 0=No)? | B9: Message | C9: OK | E9: Is this combination ok (1=yes, 0=No)? | F9: Message | G9: OK | I9: Is this combination ok (1=yes, 0=No)? | J9: Message | K9: OK | M9: Is this combination ok (1=yes, 0=No)? | N9: Message | O9: OK | P9: Is this combination ok (1=yes, 0=No)? | Q9: Message | R9: OK | T9: Is this combination ok (1=yes, 0=No)? | U9: Message | V9: OK | X9: Is this combination ok (1=yes, 0=No)? | Y9: Message | Z9: OK | AD9: Is this combination ok (1=yes, 0=No)? | AE9: Message | AF9: OK | AO9: Is this combination ok (1=yes, 0=No)? | AP9: Message | AQ9: OK
A10: =COUNTIF(Countif_1,C7) -> 1 | B10: =IF(A10=1,C9,C10) -> OK | C10: Check combination of Land Type and Counterfactual Land Use | E10: =COUNTIF(countif_2,G7) -> 1 | F10: =IF(E10=1,G9,G10) -> OK | G10: Check combination of Counterfactual Land Use and Country | I10: =COUNTIF(countif_3,K7) -> 1 | J10: =IF(I10=1,K9,K10) -> OK | K10: Check combination of Counterfactual Land Use and New Land Use | M10: =COUNTIF(countif_4,O7) -> 1 | N10: =IF(M10=1,O9,O10) -> OK | O10: Check combination of New Land Use and Biomass Type | P10: =COUNTIF(countif_5,R7) -> 1 | Q10: =IF(P10=1,R9,R10) -> OK | R10: Check combination of Biomass Type and Counterfactual use | T10: =COUNTIF(countif_6,V7) -> 1 | U10: =IF(T10=1,V9,V10) -> OK | V10: Check combination of Biomass Type and Pretreatment Method | X10: =COUNTIF(countif_7,Z7) -> 1 | Y10: =IF(X10=1,Z9,Z10) -> OK | Z10: Check combination of Pretreatment Method and Drying | AD10: =COUNTIF(countif_8,AF7) -> 1 | AE10: =IF(AD10=1,AF9,AF10) -> OK | AF10: Check combination of Biomass Type and Energy Technology | AO10: =COUNTIF(countif_9,AQ7) -> 1 | AP10: =IF(AO10=1,AQ9,AQ10) -> OK | AQ10: Check combination of Land and Soil Types
A12: Category 1: Previous Land Type | B12: Category 2: Countefactual land use | C12: Name | E12: Category 1: Previous Land Use | F12: Category 2: Country | G12: Name | I12: Category 1: Old Land Use | J12: Category 2: New Land Use | K12: Name | M12: Category 1: New land use | N12: Category 2: Biomass type | O12: Name | P12: Category 1: New land use and biomass | Q12: Category 2: Counterfactual | R12: Name | T12: Category 1: Biomass Type | U12: Category 2: Drying Method | V12: Name | X12: Category 1: Drying Method | Y12: Category 2: Fuel | Z12: Name | AD12: Category 1: Biomass Form | AE12: Category 2: Energy Technology | AO12: Category 1:Counterfactual and New Land Use | AP12: Category 2: Soil Type
A13: =Lists!B82 -> Long Rotation Forestry (LRF) | B13: =Lists!B83 -> LRF Conifer for wood products, residues unused | C13: =A13&":"&B13 -> Long Rotation Forestry (LRF):LRF Conifer for wood products, residues unused | E13: =Lists!B109 -> LRF Conifer for wood products, residues unused | F13: =Lists!B110 -> UK | G13: =E13&":"&F13 -> LRF Conifer for wood products, residues unused:UK | I13: =Lists!A119 -> LRF Conifer for wood products, residues unused:UK | J13: =Lists!B119 -> LRF Conifer for wood products and bioenergy | K13: =I13&":"&J13 -> LRF Conifer for wood products, residues unused:UK:LRF Conifer for wood products and bioenergy | M13: ='Land Data'!A712 -> LRF Conifer for wood products and bioenergy | N13: ='Land Data'!AL713 -> Saw logs (50 wt% moisture) | O13: =M13&":"&N13 -> LRF Conifer for wood products and bioenergy:Saw logs (50 wt% moisture) | P13: =Lists!C445 -> LRF Conifer for wood products and bioenergy:Saw logs (50 wt% moisture) | Q13: =Lists!D445 -> Sawn Timber (replacing concrete flooring), off cuts to particle board (replacing breeze blocks) | R13: =P13&":"&Q13 -> LRF Conifer for wood products and bioenergy:Saw logs (50 wt% moisture):Sawn Timber (replacing concrete flooring), off cuts to particle board (replacing breeze blocks) | T13: =Lists!B528 -> All the wood harvested over the rotation (50 wt% moisture) | U13: =Lists!B529 -> Natural dry and chip | V13: =T13&":"&U13 -> All the wood harvested over the rotation (50 wt% moisture):Natural dry and chip | X13: =Lists!A498 -> Dry | Y13: =Lists!$A$538 -> Natural or No Drying | Z13: =X13&":"&Y13 -> Dry:Natural or No Drying | AD13: =Lists!B570 -> Maize Sillage (67 wt% moisture) | AE13: =Lists!B571 -> Anaerobic digestion, electricity from biogas | AF13: =AD13&":"&AE13 -> Maize Sillage (67 wt% moisture):Anaerobic digestion, electricity from biogas | AO13: =Lists!C253 -> LRF Conifer for wood products, residues unused:LRF Conifer for wood products and bioenergy | AP13: =Lists!D253 -> No peat drainage | AQ13: =AO13&":"&AP13 -> LRF Conifer for wood products, residues unused:LRF Conifer for wood products and bioenergy:No peat drainage
A14: =A13 -> Long Rotation Forestry (LRF) | B14: =Lists!B84 -> LRF Conifer for wood products, 50% residues used | C14: =A14&":"&B14 -> Long Rotation Forestry (LRF):LRF Conifer for wood products, 50% residues used | E14: =E13 -> LRF Conifer for wood products, residues unused | F14: =Lists!B111 -> South USA | G14: =E14&":"&F14 -> LRF Conifer for wood products, residues unused:South USA | I14: =Lists!A120 -> LRF Conifer for wood products, residues unused:South USA | J14: =Lists!B120 -> LRF Conifer for wood products and bioenergy | K14: =I14&":"&J14 -> LRF Conifer for wood products, residues unused:South USA:LRF Conifer for wood products and bioenergy | M14: =M13 -> LRF Conifer for wood products and bioenergy | N14: ='Land Data'!AM713 -> Small Roundwood (50 wt% moisture) | O14: =M14&":"&N14 -> LRF Conifer for wood products and bioenergy:Small Roundwood (50 wt% moisture) | P14: =P13 -> LRF Conifer for wood products and bioenergy:Saw logs (50 wt% moisture) | Q14: =Lists!E445 -> Sawn Timber (replacing concrete flooring), off cuts to MDF (replacing plasterwork) | R14: =P14&":"&Q14 -> LRF Conifer for wood products and bioenergy:Saw logs (50 wt% moisture):Sawn Timber (replacing concrete flooring), off cuts to MDF (replacing plasterwork) | T14: =T13 -> All the wood harvested over the rotation (50 wt% moisture) | U14: =Lists!B530 -> Chip, dry and pelletise | V14: =T14&":"&U14 -> All the wood harvested over the rotation (50 wt% moisture):Chip, dry and pelletise | X14: =Lists!A499 -> Dry and pelletise | Y14: =Lists!$A$537 -> Electricity | Z14: =X14&":"&Y14 -> Dry and pelletise:Electricity | AD14: =AD13 -> Maize Sillage (67 wt% moisture) | AE14: =Lists!B572 -> Anaerobic digestion, CHP from biogas | AF14: =AD14&":"&AE14 -> Maize Sillage (67 wt% moisture):Anaerobic digestion, CHP from biogas | AO14: =Lists!C254 -> LRF Conifer for wood products, residues unused:Conversion of LRF Conifer to intensively managed SRF plantation, 20 year rotation | AP14: =Lists!D254 -> No peat drainage | AQ14: =AO14&":"&AP14 -> LRF Conifer for wood products, residues unused:Conversion of LRF Conifer to intensively managed SRF plantation, 20 year rotation:No peat drainage
A15: =A14 -> Long Rotation Forestry (LRF) | B15: =Lists!B85 -> Newly Abandoned LRF Conifer, residues unused | C15: Long Rotation Forestry (LRF):Newly Abandoned LRF Conifer, residues unused | E15: =E14 -> LRF Conifer for wood products, residues unused | F15: =Lists!B112 -> North West USA | G15: LRF Conifer for wood products, residues unused:North West USA | I15: =I14 -> LRF Conifer for wood products, residues unused:South USA | J15: =Lists!C120 -> Conversion of LRF Conifer to intensively managed SRF plantation, 20 year rotation | K15: LRF Conifer for wood products, residues unused:South USA:Conversion of LRF Conifer to intensively managed SRF plantation, 20 year rotation | M15: =M14 -> LRF Conifer for wood products and bioenergy | N15: ='Land Data'!AN713 -> Woody Debris (25 wt% moisture). Continuous removal. | O15: LRF Conifer for wood products and bioenergy:Woody Debris (25 wt% moisture). Continuous removal. | P15: =P14 -> LRF Conifer for wood products and bioenergy:Saw logs (50 wt% moisture) | Q15: =Lists!F445 -> Displacing imported wood products | R15: LRF Conifer for wood products and bioenergy:Saw logs (50 wt% moisture):Displacing imported wood products | T15: =T14 -> All the wood harvested over the rotation (50 wt% moisture) | U15: =Lists!B531 -> Chip, natural dry, dry, pelletise | V15: All the wood harvested over the rotation (50 wt% moisture):Chip, natural dry, dry, pelletise | X15: =X14 -> Dry and pelletise | Y15: =Lists!$A$539 -> Biomass | Z15: Dry and pelletise:Biomass | AD15: =AD14 -> Maize Sillage (67 wt% moisture) | AE15: =Lists!B573 -> Ethanol | AF15: Maize Sillage (67 wt% moisture):Ethanol | AO15: =Lists!C255 -> LRF Conifer for wood products, residues unused:Conversion of LRF Conifer to intensively managed SRF plantation, 25 year rotation | AP15: =Lists!D255 -> No peat drainage | AQ15: LRF Conifer for wood products, residues unused:Conversion of LRF Conifer to intensively managed SRF plantation, 25 year rotation:No peat drainage
A16: Long Rotation Forestry (LRF) | B16: =Lists!B86 -> LRF Broadleaf for wood products, residues unused | C16: Long Rotation Forestry (LRF):LRF Broadleaf for wood products, residues unused | E16: LRF Conifer for wood products, residues unused | F16: =Lists!B113 -> Pacific Canada | G16: LRF Conifer for wood products, residues unused:Pacific Canada | I16: =I15 -> LRF Conifer for wood products, residues unused:South USA | J16: =Lists!D120 -> Conversion of LRF Conifer to intensively managed SRF plantation, 25 year rotation | K16: LRF Conifer for wood products, residues unused:South USA:Conversion of LRF Conifer to intensively managed SRF plantation, 25 year rotation | M16: LRF Conifer for wood products and bioenergy | N16: ='Land Data'!AO713 -> Woody Debris (25 wt% moisture). Remove for 15 years only. | O16: LRF Conifer for wood products and bioenergy:Woody Debris (25 wt% moisture). Remove for 15 years only. | P16: LRF Conifer for wood products and bioenergy:Saw logs (50 wt% moisture) | Q16: =Lists!G445 -> Remove from land and burn | R16: LRF Conifer for wood products and bioenergy:Saw logs (50 wt% moisture):Remove from land and burn | T16: =Lists!C528 -> All additional wood compared to counterfactual (50 wt% moisture) | U16: =Lists!C529 -> Natural dry and chip | V16: All additional wood compared to counterfactual (50 wt% moisture):Natural dry and chip | X16: =X15 -> Dry and pelletise | Y16: =Lists!$A$540 -> Diesel | Z16: Dry and pelletise:Diesel | AD16: =Lists!C570 -> Palm Oil | AE16: =Lists!C571 -> Electricity from Vegetable Oil | AF16: Palm Oil:Electricity from Vegetable Oil | AO16: =Lists!C256 -> LRF Conifer for wood products, residues unused:Conversion of LRF Conifer to SRC Willow over 3 y | AP16: =Lists!D256 -> No peat drainage | AQ16: LRF Conifer for wood products, residues unused:Conversion of LRF Conifer to SRC Willow over 3 y:No peat drainage
A17: Long Rotation Forestry (LRF) | B17: =Lists!B87 -> LRF Broadleaf for wood products, 50% residues used | C17: Long Rotation Forestry (LRF):LRF Broadleaf for wood products, 50% residues used | E17: LRF Conifer for wood products, residues unused | F17: =Lists!B114 -> Interior Canada | G17: LRF Conifer for wood products, residues unused:Interior Canada | I17: LRF Conifer for wood products, residues unused:South USA | J17: =Lists!E120 -> Conversion of LRF Conifer to SRC Willow over 3 y | K17: LRF Conifer for wood products, residues unused:South USA:Conversion of LRF Conifer to SRC Willow over 3 y | M17: ='Land Data'!A736 -> Intensely managed SRF Conifer, rotation length 25 years | N17: ='Land Data'!AL737 -> All additional wood compared to counterfactual (50 wt% moisture) | O17: Intensely managed SRF Conifer, rotation length 25 years:All additional wood compared to counterfactual (50 wt% moisture) | P17: =Lists!C446 -> LRF Conifer for wood products and bioenergy:Small Roundwood (50 wt% moisture) | Q17: =Lists!D446 -> Leave residues to decay in forest | R17: LRF Conifer for wood products and bioenergy:Small Roundwood (50 wt% moisture):Leave residues to decay in forest | T17: =T16 -> All additional wood compared to counterfactual (50 wt% moisture) | U17: =Lists!C530 -> Chip, dry and pelletise | V17: All additional wood compared to counterfactual (50 wt% moisture):Chip, dry and pelletise | X17: Dry and pelletise | Y17: =Lists!$A$541 -> Natural Gas | Z17: Dry and pelletise:Natural Gas | AD17: =AD16 -> Palm Oil | AE17: =Lists!C572 -> Biodiesel | AF17: Palm Oil:Biodiesel | AO17: =AO16 -> LRF Conifer for wood products, residues unused:Conversion of LRF Conifer to SRC Willow over 3 y | AP17: =Lists!E256 -> Peat soil which requires drainage | AQ17: LRF Conifer for wood products, residues unused:Conversion of LRF Conifer to SRC Willow over 3 y:Peat soil which requires drainage
A18: Long Rotation Forestry (LRF) | B18: =Lists!B88 -> Newly Abandoned LRF Broadleaf, residues unused | C18: Long Rotation Forestry (LRF):Newly Abandoned LRF Broadleaf, residues unused | E18: LRF Conifer for wood products, residues unused | F18: =Lists!B115 -> Boreal North Canada | G18: LRF Conifer for wood products, residues unused:Boreal North Canada | I18: LRF Conifer for wood products, residues unused:South USA | J18: =Lists!F120 -> Conversion of LRF Conifer to SRC Willow over 50 y | K18: LRF Conifer for wood products, residues unused:South USA:Conversion of LRF Conifer to SRC Willow over 50 y | M18: ='Land Data'!A740 -> Intensely managed SRF Conifer, rotation length reduced from 25 to 20 years | N18: ='Land Data'!AL741 -> All additional wood compared to counterfactual (50 wt% moisture) | O18: Intensely managed SRF Conifer, rotation length reduced from 25 to 20 years:All additional wood compared to counterfactual (50 wt% moisture) | P18: =P17 -> LRF Conifer for wood products and bioenergy:Small Roundwood (50 wt% moisture) | Q18: =Lists!E446 -> Displacing imported wood products | R18: LRF Conifer for wood products and bioenergy:Small Roundwood (50 wt% moisture):Displacing imported wood products | T18: =Lists!D528 -> All additional non-saw log wood compared to counterfactual (50 wt% moisture). Saw logs to construction (flooring). | U18: =Lists!D529 -> Natural dry and chip | V18: All additional non-saw log wood compared to counterfactual (50 wt% moisture). Saw logs to construction (flooring).:Natural dry and chip | X18: =Lists!A500 -> Natural dry, dry and pelletise | Y18: =Lists!$A$537 -> Electricity | Z18: Natural dry, dry and pelletise:Electricity | AD18: =AD17 -> Palm Oil | AE18: =Lists!C573 -> CHP | AF18: Palm Oil:CHP | AO18: =Lists!C257 -> LRF Conifer for wood products, residues unused:Conversion of LRF Conifer to SRC Willow over 50 y | AP18: =Lists!D257 -> No peat drainage | AQ18: LRF Conifer for wood products, residues unused:Conversion of LRF Conifer to SRC Willow over 50 y:No peat drainage
A19: Long Rotation Forestry (LRF) | B19: =Lists!B89 -> LRF Broadleaf for wood products, rotation length increasing | C19: Long Rotation Forestry (LRF):LRF Broadleaf for wood products, rotation length increasing | E19: =Lists!C109 -> LRF Conifer for wood products, 50% residues used | F19: =Lists!C110 -> Pacific Canada | G19: LRF Conifer for wood products, 50% residues used:Pacific Canada | I19: =Lists!A121 -> LRF Conifer for wood products, residues unused:North West USA | J19: =Lists!B121 -> LRF Conifer for wood products and bioenergy | K19: LRF Conifer for wood products, residues unused:North West USA:LRF Conifer for wood products and bioenergy | M19: ='Land Data'!A744 -> SRF Conifer, increased management intensity, 25 year rotation | N19: ='Land Data'!AL745 -> All additional wood compared to counterfactual (50 wt% moisture) | O19: SRF Conifer, increased management intensity, 25 year rotation:All additional wood compared to counterfactual (50 wt% moisture) | P19: =P18 -> LRF Conifer for wood products and bioenergy:Small Roundwood (50 wt% moisture) | Q19: =Lists!F446 -> Particle board (replacing breeze blocks) | R19: LRF Conifer for wood products and bioenergy:Small Roundwood (50 wt% moisture):Particle board (replacing breeze blocks) | T19: =T18 -> All additional non-saw log wood compared to counterfactual (50 wt% moisture). Saw logs to construction (flooring). | U19: =Lists!D530 -> Chip, dry and pelletise | V19: All additional non-saw log wood compared to counterfactual (50 wt% moisture). Saw logs to construction (flooring).:Chip, dry and pelletise | X19: =X18 -> Natural dry, dry and pelletise | Y19: =Lists!$A$539 -> Biomass | Z19: Natural dry, dry and pelletise:Biomass | AD19: =Lists!D570 -> SRC Chips (25 wt% moisture) | AE19: =Lists!D571 -> BioSNG | AF19: SRC Chips (25 wt% moisture):BioSNG | AO19: =AO18 -> LRF Conifer for wood products, residues unused:Conversion of LRF Conifer to SRC Willow over 50 y | AP19: =Lists!E257 -> Peat soil which requires drainage | AQ19: LRF Conifer for wood products, residues unused:Conversion of LRF Conifer to SRC Willow over 50 y:Peat soil which requires drainage
A20: =Lists!C82 -> Short Rotation Forestry (SRF) | B20: =Lists!C83 -> Intensely managed SRF Conifer, rotation length increasing from 25 to 35 years | C20: Short Rotation Forestry (SRF):Intensely managed SRF Conifer, rotation length increasing from 25 to 35 years | E20: =E19 -> LRF Conifer for wood products, 50% residues used | F20: =Lists!C111 -> Interior Canada | G20: LRF Conifer for wood products, 50% residues used:Interior Canada | I20: =Lists!A122 -> LRF Conifer for wood products, residues unused:Pacific Canada | J20: =Lists!B122 -> LRF Conifer for wood products and bioenergy | K20: LRF Conifer for wood products, residues unused:Pacific Canada:LRF Conifer for wood products and bioenergy | M20: ='Land Data'!A748 -> LRF Conifer for Bioenergy, residues unused | N20: ='Land Data'!AL749 -> All the wood harvested over the rotation (50 wt% moisture) | O20: LRF Conifer for Bioenergy, residues unused:All the wood harvested over the rotation (50 wt% moisture) | P20: LRF Conifer for wood products and bioenergy:Small Roundwood (50 wt% moisture) | Q20: =Lists!G446 -> MDF (replacing plasterwork) | R20: LRF Conifer for wood products and bioenergy:Small Roundwood (50 wt% moisture):MDF (replacing plasterwork) | T20: =Lists!E528 -> All additional non-saw log wood compared to counterfactual (50 wt% moisture). Saw logs to construction (window frame). | U20: =Lists!E529 -> Natural dry and chip | V20: All additional non-saw log wood compared to counterfactual (50 wt% moisture). Saw logs to construction (window frame).:Natural dry and chip | X20: =X19 -> Natural dry, dry and pelletise | Y20: =Lists!$A$540 -> Diesel | Z20: Natural dry, dry and pelletise:Diesel | AD20: =AD19 -> SRC Chips (25 wt% moisture) | AE20: =Lists!D572 -> BtL | AF20: SRC Chips (25 wt% moisture):BtL | AO20: =Lists!C258 -> LRF Conifer for wood products, 50% residues used:LRF Conifer, rotation length reduced to 50y | AP20: =Lists!D258 -> No peat drainage | AQ20: LRF Conifer for wood products, 50% residues used:LRF Conifer, rotation length reduced to 50y:No peat drainage
A21: =A20 -> Short Rotation Forestry (SRF) | B21: =Lists!C84 -> Intensely managed SRF Conifer, rotation length increasing from 25 to 35 years (for a period of 15 years, then wood extraction increases again) | C21: Short Rotation Forestry (SRF):Intensely managed SRF Conifer, rotation length increasing from 25 to 35 years (for a period of 15 years, then wood extraction increases again) | E21: =E20 -> LRF Conifer for wood products, 50% residues used | F21: =Lists!C112 -> Boreal North Canada | G21: LRF Conifer for wood products, 50% residues used:Boreal North Canada | I21: =Lists!A123 -> LRF Conifer for wood products, residues unused:Interior Canada | J21: =Lists!B123 -> LRF Conifer for wood products and bioenergy | K21: LRF Conifer for wood products, residues unused:Interior Canada:LRF Conifer for wood products and bioenergy | M21: ='Land Data'!A768 -> Newly Managed LRF Conifer (fast growing) | N21: ='Land Data'!AL769 -> All the wood harvested over the rotation (50 wt% moisture) | O21: Newly Managed LRF Conifer (fast growing):All the wood harvested over the rotation (50 wt% moisture) | P21: LRF Conifer for wood products and bioenergy:Small Roundwood (50 wt% moisture) | Q21: =Lists!H446 -> Paper and Card (replacing imported paper and card) | R21: LRF Conifer for wood products and bioenergy:Small Roundwood (50 wt% moisture):Paper and Card (replacing imported paper and card) | T21: =T20 -> All additional non-saw log wood compared to counterfactual (50 wt% moisture). Saw logs to construction (window frame). | U21: =Lists!E530 -> Chip, dry and pelletise | V21: All additional non-saw log wood compared to counterfactual (50 wt% moisture). Saw logs to construction (window frame).:Chip, dry and pelletise | X21: Natural dry, dry and pelletise | Y21: =Lists!$A$541 -> Natural Gas | Z21: Natural dry, dry and pelletise:Natural Gas | AD21: =AD20 -> SRC Chips (25 wt% moisture) | AE21: =Lists!D573 -> Ethanol | AF21: SRC Chips (25 wt% moisture):Ethanol | AO21: =Lists!C259 -> LRF Conifer for wood products, 50% residues used:LRF Conifer, rotation length reduced to 80y | AP21: =Lists!D259 -> No peat drainage | AQ21: LRF Conifer for wood products, 50% residues used:LRF Conifer, rotation length reduced to 80y:No peat drainage
A22: =A21 -> Short Rotation Forestry (SRF) | B22: =Lists!C85 -> Intensely managed SRF Conifer, 25 year rotation, about to be converted to cotton plantation | C22: Short Rotation Forestry (SRF):Intensely managed SRF Conifer, 25 year rotation, about to be converted to cotton plantation | E22: =Lists!D109 -> Intensely managed SRF Conifer, rotation length increasing from 25 to 35 years | F22: =Lists!D110 -> South USA | G22: Intensely managed SRF Conifer, rotation length increasing from 25 to 35 years :South USA | I22: =Lists!A124 -> LRF Conifer for wood products, residues unused:Boreal North Canada | J22: =Lists!B124 -> LRF Conifer for wood products and bioenergy | K22: LRF Conifer for wood products, residues unused:Boreal North Canada:LRF Conifer for wood products and bioenergy | M22: ='Land Data'!A776 -> Newly Managed LRF Conifer (slow growing) | N22: ='Land Data'!AL773 -> All the wood harvested over the rotation (50 wt% moisture) | O22: Newly Managed LRF Conifer (slow growing):All the wood harvested over the rotation (50 wt% moisture) | P22: LRF Conifer for wood products and bioenergy:Small Roundwood (50 wt% moisture) | Q22: =Lists!I446 -> Pallets (replacing recycled plastic pallets), off cuts Particle Board (replacing breeze blocks) | R22: LRF Conifer for wood products and bioenergy:Small Roundwood (50 wt% moisture):Pallets (replacing recycled plastic pallets), off cuts Particle Board (replacing breeze blocks) | T22: =Lists!F528 -> All additional wood created by new management (50 wt% moisture) | U22: =Lists!F529 -> Natural dry and chip | V22: All additional wood created by new management (50 wt% moisture):Natural dry and chip | X22: =Lists!A501 -> Natural dry and chip | Y22: =Lists!A538 -> Natural or No Drying | Z22: Natural dry and chip:Natural or No Drying | AD22: SRC Chips (25 wt% moisture) | AE22: =Lists!D574 -> Gas from Slow Pyrolysis (Biochar co-product) | AF22: SRC Chips (25 wt% moisture):Gas from Slow Pyrolysis (Biochar co-product) | AO22: =Lists!C260 -> Intensely managed SRF Conifer, rotation length increasing from 25 to 35 years :Intensely managed SRF Conifer, rotation length 25 years | AP22: =Lists!D260 -> No peat drainage | AQ22: Intensely managed SRF Conifer, rotation length increasing from 25 to 35 years :Intensely managed SRF Conifer, rotation length 25 years:No peat drainage
A23: Short Rotation Forestry (SRF) | B23: =Lists!C86 -> Intensely managed SRF Conifer, about to be managed less intensively as natural Loblolly stand | C23: Short Rotation Forestry (SRF):Intensely managed SRF Conifer, about to be managed less intensively as natural Loblolly stand | E23: =Lists!E109 -> Intensely managed SRF Conifer, rotation length increasing from 25 to 35 years (for a period of 15 years, then wood extraction increases again) | F23: =Lists!E110 -> South USA | G23: Intensely managed SRF Conifer, rotation length increasing from 25 to 35 years (for a period of 15 years, then wood extraction increases again):South USA | I23: =Lists!A125 -> Intensely managed SRF Conifer, rotation length increasing from 25 to 35 years :South USA | J23: =Lists!B125 -> Intensely managed SRF Conifer, rotation length 25 years | K23: Intensely managed SRF Conifer, rotation length increasing from 25 to 35 years :South USA:Intensely managed SRF Conifer, rotation length 25 years | M23: ='Land Data'!A780 -> LRF Conifer, rotation length reduced to 50y | N23: ='Land Data'!AL781 -> All additional wood compared to counterfactual (50 wt% moisture) | O23: LRF Conifer, rotation length reduced to 50y:All additional wood compared to counterfactual (50 wt% moisture) | P23: LRF Conifer for wood products and bioenergy:Small Roundwood (50 wt% moisture) | Q23: =Lists!J446 -> Pallets (replacing recycled plastic pallets), off cuts MDF (replacing plaster work) | R23: LRF Conifer for wood products and bioenergy:Small Roundwood (50 wt% moisture):Pallets (replacing recycled plastic pallets), off cuts MDF (replacing plaster work) | T23: =T22 -> All additional wood created by new management (50 wt% moisture) | U23: =Lists!F530 -> Chip, dry and pelletise | V23: All additional wood created by new management (50 wt% moisture):Chip, dry and pelletise | X23: =Lists!A502 -> Chip, dry and pelletise | Y23: =Lists!$A$537 -> Electricity | Z23: Chip, dry and pelletise:Electricity | AD23: SRC Chips (25 wt% moisture) | AE23: =Lists!D575 -> CHP | AF23: SRC Chips (25 wt% moisture):CHP | AO23: =Lists!C261 -> Intensely managed SRF Conifer, rotation length increasing from 25 to 35 years :Intensely managed SRF Conifer, rotation length reduced from 25 to 20 years | AP23: =Lists!D261 -> No peat drainage | AQ23: Intensely managed SRF Conifer, rotation length increasing from 25 to 35 years :Intensely managed SRF Conifer, rotation length reduced from 25 to 20 years:No peat drainage
A24: Short Rotation Forestry (SRF) | B24: =Lists!C87 -> Intensely managed SRF Conifer, about to be harvested then left to regenerate naturally, without future harvesting | C24: Short Rotation Forestry (SRF):Intensely managed SRF Conifer, about to be harvested then left to regenerate naturally, without future harvesting | E24: =Lists!F109 -> Intensely managed SRF Conifer, 25 year rotation, about to be converted to cotton plantation | F24: =Lists!F110 -> South USA | G24: Intensely managed SRF Conifer, 25 year rotation, about to be converted to cotton plantation:South USA | I24: =I23 -> Intensely managed SRF Conifer, rotation length increasing from 25 to 35 years :South USA | J24: =Lists!C125 -> Intensely managed SRF Conifer, rotation length reduced from 25 to 20 years | K24: Intensely managed SRF Conifer, rotation length increasing from 25 to 35 years :South USA:Intensely managed SRF Conifer, rotation length reduced from 25 to 20 years | M24: =M23 -> LRF Conifer, rotation length reduced to 50y | N24: ='Land Data'!AM781 -> All additional non-saw log wood compared to counterfactual (50 wt% moisture). Saw logs to construction (flooring). | O24: LRF Conifer, rotation length reduced to 50y:All additional non-saw log wood compared to counterfactual (50 wt% moisture). Saw logs to construction (flooring). | P24: LRF Conifer for wood products and bioenergy:Small Roundwood (50 wt% moisture) | Q24: =Lists!K446 -> Fencing (replacing concrete fencing), off cuts Particle Board (replacing breeze blocks) | R24: LRF Conifer for wood products and bioenergy:Small Roundwood (50 wt% moisture):Fencing (replacing concrete fencing), off cuts Particle Board (replacing breeze blocks) | T24: =Lists!G528 -> Biomass from Land Clearance (50 wt% moisture) | U24: =Lists!G529 -> Natural dry and chip | V24: Biomass from Land Clearance (50 wt% moisture):Natural dry and chip | X24: =X23 -> Chip, dry and pelletise | Y24: =Lists!$A$539 -> Biomass | Z24: Chip, dry and pelletise:Biomass | AD24: SRC Chips (25 wt% moisture) | AE24: =Lists!D576 -> Heat from Biomass Boiler | AF24: SRC Chips (25 wt% moisture):Heat from Biomass Boiler | AO24: =Lists!C262 -> Intensely managed SRF Conifer, rotation length increasing from 25 to 35 years (for a period of 15 years, then wood extraction increases again):Intensely managed SRF Conifer, rotation length 25 years | AP24: =Lists!D262 -> No peat drainage | AQ24: Intensely managed SRF Conifer, rotation length increasing from 25 to 35 years (for a period of 15 years, then wood extraction increases again):Intensely managed SRF Conifer, rotation length 25 years:No peat drainage
A25: Short Rotation Forestry (SRF) | B25: =Lists!C88 -> Intensely managed SRF Conifer, rotation length 25 years | C25: Short Rotation Forestry (SRF):Intensely managed SRF Conifer, rotation length 25 years | E25: =Lists!G109 -> Intensely managed SRF Conifer, about to be managed less intensively as natural Loblolly stand | F25: =Lists!G110 -> South USA | G25: Intensely managed SRF Conifer, about to be managed less intensively as natural Loblolly stand:South USA | I25: =Lists!A126 -> Intensely managed SRF Conifer, rotation length increasing from 25 to 35 years (for a period of 15 years, then wood extraction increases again):South USA | J25: =Lists!B126 -> Intensely managed SRF Conifer, rotation length 25 years | K25: Intensely managed SRF Conifer, rotation length increasing from 25 to 35 years (for a period of 15 years, then wood extraction increases again):South USA:Intensely managed SRF Conifer, rotation length 25 years | M25: ='Land Data'!A792 -> LRF Conifer, rotation length reduced to 80y | N25: ='Land Data'!AL793 -> All additional wood compared to counterfactual (50 wt% moisture) | O25: LRF Conifer, rotation length reduced to 80y:All additional wood compared to counterfactual (50 wt% moisture) | P25: =P24 -> LRF Conifer for wood products and bioenergy:Small Roundwood (50 wt% moisture) | Q25: =Lists!L446 -> Fencing (replacing concrete fencing), off cuts MDF (replacing plaster work) | R25: LRF Conifer for wood products and bioenergy:Small Roundwood (50 wt% moisture):Fencing (replacing concrete fencing), off cuts MDF (replacing plaster work) | T25: =T24 -> Biomass from Land Clearance (50 wt% moisture) | U25: =Lists!G530 -> Chip, dry and pelletise | V25: Biomass from Land Clearance (50 wt% moisture):Chip, dry and pelletise | X25: =X24 -> Chip, dry and pelletise | Y25: =Lists!$A$540 -> Diesel | Z25: Chip, dry and pelletise:Diesel | AD25: SRC Chips (25 wt% moisture) | AE25: =Lists!D577 -> Co-fire Bioelectricity | AF25: SRC Chips (25 wt% moisture):Co-fire Bioelectricity | AO25: =Lists!C263 -> Intensely managed SRF Conifer, rotation length increasing from 25 to 35 years (for a period of 15 years, then wood extraction increases again):Intensely managed SRF Conifer, rotation length reduced from 25 to 20 years | AP25: =Lists!D263 -> No peat drainage | AQ25: Intensely managed SRF Conifer, rotation length increasing from 25 to 35 years (for a period of 15 years, then wood extraction increases again):Intensely managed SRF Conifer, rotation length reduced from 25 to 20 years:No peat drainage
A26: Short Rotation Forestry (SRF) | B26: =Lists!C89 -> Medium intensity managed SRF Conifer, rotation length 25 years | C26: Short Rotation Forestry (SRF):Medium intensity managed SRF Conifer, rotation length 25 years | E26: =Lists!H109 -> Intensely managed SRF Conifer, about to be harvested then left to regenerate naturally, without future harvesting | F26: =Lists!H110 -> South USA | G26: Intensely managed SRF Conifer, about to be harvested then left to regenerate naturally, without future harvesting:South USA | I26: =I25 -> Intensely managed SRF Conifer, rotation length increasing from 25 to 35 years (for a period of 15 years, then wood extraction increases again):South USA | J26: =Lists!C126 -> Intensely managed SRF Conifer, rotation length reduced from 25 to 20 years | K26: Intensely managed SRF Conifer, rotation length increasing from 25 to 35 years (for a period of 15 years, then wood extraction increases again):South USA:Intensely managed SRF Conifer, rotation length reduced from 25 to 20 years | M26: =M25 -> LRF Conifer, rotation length reduced to 80y | N26: ='Land Data'!AM793 -> All additional non-saw log wood compared to counterfactual (50 wt% moisture). Saw logs to construction (flooring). | O26: LRF Conifer, rotation length reduced to 80y:All additional non-saw log wood compared to counterfactual (50 wt% moisture). Saw logs to construction (flooring). | P26: LRF Conifer for wood products and bioenergy:Small Roundwood (50 wt% moisture) | Q26: =Lists!M446 -> Remove from land and burn | R26: LRF Conifer for wood products and bioenergy:Small Roundwood (50 wt% moisture):Remove from land and burn | T26: =Lists!H528 -> Saw logs (50 wt% moisture) | U26: =Lists!H529 -> Natural dry and chip | V26: Saw logs (50 wt% moisture):Natural dry and chip | X26: Chip, dry and pelletise | Y26: =Lists!$A$541 -> Natural Gas | Z26: Chip, dry and pelletise:Natural Gas | AD26: SRC Chips (25 wt% moisture) | AE26: =Lists!D578 -> Dedicated Bioelectricity | AF26: SRC Chips (25 wt% moisture):Dedicated Bioelectricity | AO26: =Lists!C264 -> Intensely managed SRF Conifer, 25 year rotation, about to be converted to cotton plantation:Intensely managed SRF Conifer, rotation length 25 years | AP26: =Lists!D264 -> No peat drainage | AQ26: Intensely managed SRF Conifer, 25 year rotation, about to be converted to cotton plantation:Intensely managed SRF Conifer, rotation length 25 years:No peat drainage
A27: =Lists!D82 -> Unmanaged Forests | B27: =Lists!D83 -> Unmanaged Temperate Broadleaf | C27: Unmanaged Forests:Unmanaged Temperate Broadleaf | E27: =Lists!I109 -> Intensely managed SRF Conifer, rotation length 25 years | F27: =Lists!I110 -> South USA | G27: Intensely managed SRF Conifer, rotation length 25 years:South USA | I27: =Lists!A127 -> Intensely managed SRF Conifer, about to be managed less intensively as natural Loblolly stand:South USA | J27: =Lists!B127 -> Intensely managed SRF Conifer, rotation length 25 years | K27: Intensely managed SRF Conifer, about to be managed less intensively as natural Loblolly stand:South USA:Intensely managed SRF Conifer, rotation length 25 years | M27: ='Land Data'!A800 -> Conversion of LRF Conifer to intensively managed SRF plantation, 20 year rotation | N27: ='Land Data'!AL801 -> All additional wood compared to counterfactual (50 wt% moisture) | O27: Conversion of LRF Conifer to intensively managed SRF plantation, 20 year rotation:All additional wood compared to counterfactual (50 wt% moisture) | P27: =Lists!C447 -> LRF Conifer for wood products and bioenergy:Woody Debris (25 wt% moisture). Continuous removal. | Q27: =Lists!D447 -> Leave residues to decay in forest | R27: LRF Conifer for wood products and bioenergy:Woody Debris (25 wt% moisture). Continuous removal.:Leave residues to decay in forest | T27: =T26 -> Saw logs (50 wt% moisture) | U27: =Lists!H530 -> Chip, dry and pelletise | V27: Saw logs (50 wt% moisture):Chip, dry and pelletise | X27: =Lists!A503 -> Chip, natural dry, dry, pelletise | Y27: =Lists!$A$537 -> Electricity | Z27: Chip, natural dry, dry, pelletise:Electricity | AD27: SRC Chips (25 wt% moisture) | AE27: =Lists!D579 -> Dedicated Bioelectricity with CCS | AF27: SRC Chips (25 wt% moisture):Dedicated Bioelectricity with CCS | AO27: =Lists!C265 -> Intensely managed SRF Conifer, 25 year rotation, about to be converted to cotton plantation:Intensely managed SRF Conifer, rotation length reduced from 25 to 20 years | AP27: =Lists!D265 -> No peat drainage | AQ27: Intensely managed SRF Conifer, 25 year rotation, about to be converted to cotton plantation:Intensely managed SRF Conifer, rotation length reduced from 25 to 20 years:No peat drainage
A28: =A27 -> Unmanaged Forests | B28: =Lists!D84 -> Unmanaged Tropical Peat Forest | C28: Unmanaged Forests:Unmanaged Tropical Peat Forest | E28: =Lists!J109 -> Medium intensity managed SRF Conifer, rotation length 25 years | F28: =Lists!J110 -> South USA | G28: Medium intensity managed SRF Conifer, rotation length 25 years:South USA | I28: =I27 -> Intensely managed SRF Conifer, about to be managed less intensively as natural Loblolly stand:South USA | J28: =Lists!C127 -> Intensely managed SRF Conifer, rotation length reduced from 25 to 20 years | K28: Intensely managed SRF Conifer, about to be managed less intensively as natural Loblolly stand:South USA:Intensely managed SRF Conifer, rotation length reduced from 25 to 20 years | M28: ='Land Data'!A804 -> Conversion of LRF Conifer to intensively managed SRF plantation, 25 year rotation | N28: ='Land Data'!AL805 -> All additional wood compared to counterfactual (50 wt% moisture) | O28: Conversion of LRF Conifer to intensively managed SRF plantation, 25 year rotation:All additional wood compared to counterfactual (50 wt% moisture) | P28: =P27 -> LRF Conifer for wood products and bioenergy:Woody Debris (25 wt% moisture). Continuous removal. | Q28: =Lists!E447 -> Remove from land and burn | R28: LRF Conifer for wood products and bioenergy:Woody Debris (25 wt% moisture). Continuous removal.:Remove from land and burn | T28: =T27 -> Saw logs (50 wt% moisture) | U28: =Lists!H531 -> Pelletise only (no drying) | V28: Saw logs (50 wt% moisture):Pelletise only (no drying) | X28: =X27 -> Chip, natural dry, dry, pelletise | Y28: =Lists!$A$539 -> Biomass | Z28: Chip, natural dry, dry, pelletise:Biomass | AD28: =Lists!E570 -> SRC Pellets (10% moisture) | AE28: =Lists!E571 -> BioSNG | AF28: SRC Pellets (10% moisture):BioSNG | AO28: =Lists!C266 -> Intensely managed SRF Conifer, about to be managed less intensively as natural Loblolly stand:Intensely managed SRF Conifer, rotation length 25 years | AP28: =Lists!D266 -> No peat drainage | AQ28: Intensely managed SRF Conifer, about to be managed less intensively as natural Loblolly stand:Intensely managed SRF Conifer, rotation length 25 years:No peat drainage
A29: =A28 -> Unmanaged Forests | B29: =Lists!D85 -> Unmanaged Tropical Non-Peat Rainforest | C29: Unmanaged Forests:Unmanaged Tropical Non-Peat Rainforest | E29: =Lists!K109 -> Newly Abandoned LRF Conifer, residues unused | F29: =Lists!K110 -> South USA | G29: Newly Abandoned LRF Conifer, residues unused:South USA | I29: =Lists!A128 -> Intensely managed SRF Conifer, about to be harvested then left to regenerate naturally, without future harvesting:South USA | J29: =Lists!B128 -> Intensely managed SRF Conifer, rotation length 25 years | K29: Intensely managed SRF Conifer, about to be harvested then left to regenerate naturally, without future harvesting:South USA:Intensely managed SRF Conifer, rotation length 25 years | M29: ='Land Data'!A808 -> Conversion of LRF Conifer to SRC Willow over 3 y | N29: ='Land Data'!AL809 -> All additional wood compared to counterfactual (50 wt% moisture) | O29: Conversion of LRF Conifer to SRC Willow over 3 y:All additional wood compared to counterfactual (50 wt% moisture) | P29: =Lists!C448 -> LRF Conifer for wood products and bioenergy:Woody Debris (25 wt% moisture). Remove for 15 years only. | Q29: =Lists!D448 -> Leave residues to decay in forest | R29: LRF Conifer for wood products and bioenergy:Woody Debris (25 wt% moisture). Remove for 15 years only.:Leave residues to decay in forest | T29: Saw logs (50 wt% moisture) | U29: =Lists!H532 -> Natural dry, dry and pelletise | V29: Saw logs (50 wt% moisture):Natural dry, dry and pelletise | X29: =X28 -> Chip, natural dry, dry, pelletise | Y29: =Lists!$A$540 -> Diesel | Z29: Chip, natural dry, dry, pelletise:Diesel | AD29: =AD28 -> SRC Pellets (10% moisture) | AE29: =Lists!E572 -> BtL | AF29: SRC Pellets (10% moisture):BtL | AO29: =Lists!C267 -> Intensely managed SRF Conifer, about to be managed less intensively as natural Loblolly stand:Intensely managed SRF Conifer, rotation length reduced from 25 to 20 years | AP29: =Lists!D267 -> No peat drainage | AQ29: Intensely managed SRF Conifer, about to be managed less intensively as natural Loblolly stand:Intensely managed SRF Conifer, rotation length reduced from 25 to 20 years:No peat drainage
A30: Unmanaged Forests | B30: =Lists!D86 -> Old Growth Fast Growing Conifer (> 200 years old) | C30: Unmanaged Forests:Old Growth Fast Growing Conifer (> 200 years old) | E30: =E29 -> Newly Abandoned LRF Conifer, residues unused | F30: =Lists!K111 -> North West USA | G30: Newly Abandoned LRF Conifer, residues unused:North West USA | I30: =I29 -> Intensely managed SRF Conifer, about to be harvested then left to regenerate naturally, without future harvesting:South USA | J30: =Lists!C128 -> Intensely managed SRF Conifer, rotation length reduced from 25 to 20 years | K30: Intensely managed SRF Conifer, about to be harvested then left to regenerate naturally, without future harvesting:South USA:Intensely managed SRF Conifer, rotation length reduced from 25 to 20 years | M30: ='Land Data'!A812 -> Conversion of LRF Conifer to SRC Willow over 50 y | N30: ='Land Data'!AL813 -> All additional wood compared to counterfactual (50 wt% moisture) | O30: Conversion of LRF Conifer to SRC Willow over 50 y:All additional wood compared to counterfactual (50 wt% moisture) | P30: =P29 -> LRF Conifer for wood products and bioenergy:Woody Debris (25 wt% moisture). Remove for 15 years only. | Q30: =Lists!E448 -> Remove from land and burn | R30: LRF Conifer for wood products and bioenergy:Woody Debris (25 wt% moisture). Remove for 15 years only.:Remove from land and burn | T30: Saw logs (50 wt% moisture) | U30: =Lists!H533 -> Dry and pelletise | V30: Saw logs (50 wt% moisture):Dry and pelletise | X30: Chip, natural dry, dry, pelletise | Y30: =Lists!$A$541 -> Natural Gas | Z30: Chip, natural dry, dry, pelletise:Natural Gas | AD30: =AD29 -> SRC Pellets (10% moisture) | AE30: =Lists!E573 -> Ethanol | AF30: SRC Pellets (10% moisture):Ethanol | AO30: =Lists!C268 -> Intensely managed SRF Conifer, about to be harvested then left to regenerate naturally, without future harvesting:Intensely managed SRF Conifer, rotation length 25 years | AP30: =Lists!D268 -> No peat drainage | AQ30: Intensely managed SRF Conifer, about to be harvested then left to regenerate naturally, without future harvesting:Intensely managed SRF Conifer, rotation length 25 years:No peat drainage
A31: Unmanaged Forests | B31: =Lists!D87 -> Old Growth Slow Growing Conifer (> 200 years old) | C31: Unmanaged Forests:Old Growth Slow Growing Conifer (> 200 years old) | E31: =E30 -> Newly Abandoned LRF Conifer, residues unused | F31: =Lists!K112 -> Pacific Canada | G31: Newly Abandoned LRF Conifer, residues unused:Pacific Canada | I31: =Lists!A129 -> Intensely managed SRF Conifer, 25 year rotation, about to be converted to cotton plantation:South USA | J31: =Lists!B129 -> Intensely managed SRF Conifer, rotation length 25 years | K31: Intensely managed SRF Conifer, 25 year rotation, about to be converted to cotton plantation:South USA:Intensely managed SRF Conifer, rotation length 25 years | M31: ='Land Data'!A816 -> Conversion of LRF Broadleaf to intensively managed SRF plantation, 20 year rotation | N31: ='Land Data'!AL817 -> All additional wood compared to counterfactual (50 wt% moisture) | O31: Conversion of LRF Broadleaf to intensively managed SRF plantation, 20 year rotation:All additional wood compared to counterfactual (50 wt% moisture) | P31: =Lists!C449 -> Intensely managed SRF Conifer, rotation length 25 years:All additional wood compared to counterfactual (50 wt% moisture) | Q31: =Lists!$D$449 -> Leave forest in previous management | R31: Intensely managed SRF Conifer, rotation length 25 years:All additional wood compared to counterfactual (50 wt% moisture):Leave forest in previous management | T31: =Lists!K528 -> Small Roundwood (50 wt% moisture) | U31: =Lists!K529 -> Natural dry and chip | V31: Small Roundwood (50 wt% moisture):Natural dry and chip | X31: =Lists!A504 -> Pelletise only (no drying) | Y31: =Lists!$A$538 -> Natural or No Drying | Z31: Pelletise only (no drying):Natural or No Drying | AD31: SRC Pellets (10% moisture) | AE31: =Lists!E574 -> Gas from Slow Pyrolysis (Biochar co-product) | AF31: SRC Pellets (10% moisture):Gas from Slow Pyrolysis (Biochar co-product) | AO31: =Lists!C269 -> Intensely managed SRF Conifer, about to be harvested then left to regenerate naturally, without future harvesting:Intensely managed SRF Conifer, rotation length reduced from 25 to 20 years | AP31: =Lists!D269 -> No peat drainage | AQ31: Intensely managed SRF Conifer, about to be harvested then left to regenerate naturally, without future harvesting:Intensely managed SRF Conifer, rotation length reduced from 25 to 20 years:No peat drainage
A32: =Lists!E82 -> Non-Forest Natural Ecosystems | B32: =Lists!E83 -> Northern Peatland | C32: Non-Forest Natural Ecosystems:Northern Peatland | E32: Newly Abandoned LRF Conifer, residues unused | F32: =Lists!K113 -> Interior Canada | G32: Newly Abandoned LRF Conifer, residues unused:Interior Canada | I32: =I31 -> Intensely managed SRF Conifer, 25 year rotation, about to be converted to cotton plantation:South USA | J32: =Lists!C129 -> Intensely managed SRF Conifer, rotation length reduced from 25 to 20 years | K32: Intensely managed SRF Conifer, 25 year rotation, about to be converted to cotton plantation:South USA:Intensely managed SRF Conifer, rotation length reduced from 25 to 20 years | M32: ='Land Data'!A820 -> Conversion of LRF Broadleaf to intensively managed SRF plantation, 25 year rotation | N32: ='Land Data'!AL821 -> All additional wood compared to counterfactual (50 wt% moisture) | O32: Conversion of LRF Broadleaf to intensively managed SRF plantation, 25 year rotation:All additional wood compared to counterfactual (50 wt% moisture) | P32: =Lists!C450 -> Intensely managed SRF Conifer, rotation length reduced from 25 to 20 years:All additional wood compared to counterfactual (50 wt% moisture) | Q32: =Lists!$D$449 -> Leave forest in previous management | R32: Intensely managed SRF Conifer, rotation length reduced from 25 to 20 years:All additional wood compared to counterfactual (50 wt% moisture):Leave forest in previous management | T32: =T31 -> Small Roundwood (50 wt% moisture) | U32: =Lists!K530 -> Chip, dry and pelletise | V32: Small Roundwood (50 wt% moisture):Chip, dry and pelletise | X32: =Lists!A505 -> Sillage | Y32: =Lists!$A$538 -> Natural or No Drying | Z32: Sillage :Natural or No Drying | AD32: SRC Pellets (10% moisture) | AE32: =Lists!E575 -> CHP | AF32: SRC Pellets (10% moisture):CHP | AO32: =Lists!C270 -> Intensely managed SRF Conifer, rotation length 25 years:Intensely managed SRF Conifer, rotation length reduced from 25 to 20 years | AP32: =Lists!D270 -> No peat drainage | AQ32: Intensely managed SRF Conifer, rotation length 25 years:Intensely managed SRF Conifer, rotation length reduced from 25 to 20 years:No peat drainage
A33: =A32 -> Non-Forest Natural Ecosystems | B33: =Lists!E84 -> Marsh and Swamp | C33: Non-Forest Natural Ecosystems:Marsh and Swamp | E33: Newly Abandoned LRF Conifer, residues unused | F33: =Lists!K114 -> Boreal North Canada | G33: Newly Abandoned LRF Conifer, residues unused:Boreal North Canada | I33: =Lists!A130 -> Intensely managed SRF Conifer, rotation length 25 years:South USA | J33: =Lists!B130 -> Intensely managed SRF Conifer, rotation length reduced from 25 to 20 years | K33: Intensely managed SRF Conifer, rotation length 25 years:South USA:Intensely managed SRF Conifer, rotation length reduced from 25 to 20 years | M33: ='Land Data'!A824 -> Conversion of LRF Broadleaf to SRC Willow over 3 y | N33: ='Land Data'!AL825 -> All additional wood compared to counterfactual (50 wt% moisture) | O33: Conversion of LRF Broadleaf to SRC Willow over 3 y:All additional wood compared to counterfactual (50 wt% moisture) | P33: =Lists!C451 -> LRF Conifer for Bioenergy, residues unused:All the wood harvested over the rotation (50 wt% moisture) | Q33: =Lists!D451 -> Leave the land unharvested/unmanaged | R33: LRF Conifer for Bioenergy, residues unused:All the wood harvested over the rotation (50 wt% moisture):Leave the land unharvested/unmanaged | T33: =Lists!L528 -> Woody Debris (25 wt% moisture). Continuous removal. | U33: =Lists!L529 -> Natural dry and chip | V33: Woody Debris (25 wt% moisture). Continuous removal.:Natural dry and chip | X33: =Lists!A506 -> Oil Extraction | Y33: =Lists!$A$538 -> Natural or No Drying | Z33: Oil Extraction :Natural or No Drying | AD33: SRC Pellets (10% moisture) | AE33: =Lists!E576 -> Heat from Biomass Boiler | AF33: SRC Pellets (10% moisture):Heat from Biomass Boiler | AO33: =Lists!C271 -> Medium intensity managed SRF Conifer, rotation length 25 years:SRF Conifer, increased management intensity, 25 year rotation | AP33: =Lists!D271 -> No peat drainage | AQ33: Medium intensity managed SRF Conifer, rotation length 25 years:SRF Conifer, increased management intensity, 25 year rotation:No peat drainage
A34: =A33 -> Non-Forest Natural Ecosystems | B34: =Lists!E85 -> Tundra Woodland | C34: Non-Forest Natural Ecosystems:Tundra Woodland | E34: =Lists!L109 -> LRF Broadleaf for wood products, residues unused | F34: =Lists!L110 -> UK | G34: LRF Broadleaf for wood products, residues unused:UK | I34: =Lists!A131 -> Medium intensity managed SRF Conifer, rotation length 25 years:South USA | J34: =Lists!B131 -> SRF Conifer, increased management intensity, 25 year rotation | K34: Medium intensity managed SRF Conifer, rotation length 25 years:South USA:SRF Conifer, increased management intensity, 25 year rotation | M34: ='Land Data'!A828 -> Conversion of LRF Broadleaf to SRC Willow over 70 y | N34: ='Land Data'!AL829 -> All additional wood compared to counterfactual (50 wt% moisture) | O34: Conversion of LRF Broadleaf to SRC Willow over 70 y:All additional wood compared to counterfactual (50 wt% moisture) | P34: =P33 -> LRF Conifer for Bioenergy, residues unused:All the wood harvested over the rotation (50 wt% moisture) | Q34: =Lists!E451 -> Leave dead trees to decay in forest | R34: LRF Conifer for Bioenergy, residues unused:All the wood harvested over the rotation (50 wt% moisture):Leave dead trees to decay in forest | T34: =T33 -> Woody Debris (25 wt% moisture). Continuous removal. | U34: =Lists!L530 -> Chip, dry and pelletise | V34: Woody Debris (25 wt% moisture). Continuous removal.:Chip, dry and pelletise | AD34: SRC Pellets (10% moisture) | AE34: =Lists!E577 -> Co-fire Bioelectricity | AF34: SRC Pellets (10% moisture):Co-fire Bioelectricity | AO34: =Lists!C272 -> Newly Abandoned LRF Conifer, residues unused:LRF Conifer for Bioenergy, residues unused | AP34: =Lists!D272 -> No peat drainage | AQ34: Newly Abandoned LRF Conifer, residues unused:LRF Conifer for Bioenergy, residues unused:No peat drainage
A35: Non-Forest Natural Ecosystems | B35: =Lists!E86 -> Temperate shrub land | C35: Non-Forest Natural Ecosystems:Temperate shrub land | E35: =E34 -> LRF Broadleaf for wood products, residues unused | F35: =Lists!L111 -> North-East USA | G35: LRF Broadleaf for wood products, residues unused:North-East USA | I35: =Lists!A132 -> Newly Abandoned LRF Conifer, residues unused:South USA | J35: =Lists!B132 -> LRF Conifer for Bioenergy, residues unused | K35: Newly Abandoned LRF Conifer, residues unused:South USA:LRF Conifer for Bioenergy, residues unused | M35: ='Land Data'!A832 -> Newly Established Intensively managed SRF Conifer, 25 years rotation | N35: ='Land Data'!AL833 -> All additional wood compared to counterfactual (50 wt% moisture) | O35: Newly Established Intensively managed SRF Conifer, 25 years rotation:All additional wood compared to counterfactual (50 wt% moisture) | P35: =Lists!C452 -> Newly Managed LRF Conifer (slow growing):All the wood harvested over the rotation (50 wt% moisture) | Q35: =Lists!D452 -> Leave the land unharvested/unmanaged | R35: Newly Managed LRF Conifer (slow growing):All the wood harvested over the rotation (50 wt% moisture):Leave the land unharvested/unmanaged | T35: =Lists!M528 -> Woody Debris (25 wt% moisture). Remove for 15 years only. | U35: =Lists!M529 -> Natural dry and chip | V35: Woody Debris (25 wt% moisture). Remove for 15 years only.:Natural dry and chip | AD35: SRC Pellets (10% moisture) | AE35: =Lists!E578 -> Dedicated Bioelectricity | AF35: SRC Pellets (10% moisture):Dedicated Bioelectricity | AO35: =Lists!C273 -> Newly Abandoned LRF Conifer, residues unused:SRC Willow Plantation | AP35: =Lists!D273 -> No peat drainage | AQ35: Newly Abandoned LRF Conifer, residues unused:SRC Willow Plantation:No peat drainage
A36: Non-Forest Natural Ecosystems | B36: =Lists!E87 -> Temperate grassland (e.g. Steppes, grassland praires) | C36: Non-Forest Natural Ecosystems:Temperate grassland (e.g. Steppes, grassland praires) | E36: =E35 -> LRF Broadleaf for wood products, residues unused | F36: =Lists!L112 -> North USA | G36: LRF Broadleaf for wood products, residues unused:North USA | I36: =I35 -> Newly Abandoned LRF Conifer, residues unused:South USA | J36: =Lists!C132 -> SRC Willow Plantation | K36: Newly Abandoned LRF Conifer, residues unused:South USA:SRC Willow Plantation | M36: ='Land Data'!A840 -> Newly Established Intensively managed SRF Conifer, 20 years rotation | N36: ='Land Data'!AL841 -> All additional wood compared to counterfactual (50 wt% moisture) | O36: Newly Established Intensively managed SRF Conifer, 20 years rotation:All additional wood compared to counterfactual (50 wt% moisture) | P36: =Lists!C453 -> Newly Managed LRF Conifer (fast growing):All the wood harvested over the rotation (50 wt% moisture) | Q36: =Lists!D453 -> Leave the land unharvested/unmanaged | R36: Newly Managed LRF Conifer (fast growing):All the wood harvested over the rotation (50 wt% moisture):Leave the land unharvested/unmanaged | T36: =T35 -> Woody Debris (25 wt% moisture). Remove for 15 years only. | U36: =Lists!M530 -> Chip, dry and pelletise | V36: Woody Debris (25 wt% moisture). Remove for 15 years only.:Chip, dry and pelletise | AD36: SRC Pellets (10% moisture) | AE36: =Lists!E579 -> Dedicated Bioelectricity with CCS | AF36: SRC Pellets (10% moisture):Dedicated Bioelectricity with CCS | AO36: =AO35 -> Newly Abandoned LRF Conifer, residues unused:SRC Willow Plantation | AP36: =Lists!E273 -> Peat soil which requires drainage | AQ36: Newly Abandoned LRF Conifer, residues unused:SRC Willow Plantation:Peat soil which requires drainage
A37: Non-Forest Natural Ecosystems | B37: =Lists!E88 -> Tropical Woody Savannah | C37: Non-Forest Natural Ecosystems:Tropical Woody Savannah | E37: LRF Broadleaf for wood products, residues unused | F37: =Lists!L113 -> East Canada | G37: LRF Broadleaf for wood products, residues unused:East Canada | I37: =I36 -> Newly Abandoned LRF Conifer, residues unused:South USA | J37: =Lists!D132 -> Miscanthus Plantation | K37: Newly Abandoned LRF Conifer, residues unused:South USA:Miscanthus Plantation | M37: ='Land Data'!A848 -> LRF Broadleaf for wood products and bioenergy | N37: ='Land Data'!AL849 -> Saw logs (50 wt% moisture) | O37: LRF Broadleaf for wood products and bioenergy:Saw logs (50 wt% moisture) | P37: =Lists!C454 -> Newly Established Intensively managed SRF Conifer, 20 years rotation:All additional wood compared to counterfactual (50 wt% moisture) | Q37: =Lists!D454 -> Leave the land unharvested/unmanaged | R37: Newly Established Intensively managed SRF Conifer, 20 years rotation:All additional wood compared to counterfactual (50 wt% moisture):Leave the land unharvested/unmanaged | T37: =Lists!N528 -> SRC Chips (50 wt% moisture) | U37: =Lists!N529 -> Dry | V37: SRC Chips (50 wt% moisture):Dry | AD37: =Lists!F570 -> Miscanthus Chips (10 wt% moisture) | AE37: =Lists!F571 -> BioSNG | AF37: Miscanthus Chips (10 wt% moisture):BioSNG | AO37: =Lists!C274 -> Newly Abandoned LRF Conifer, residues unused:Miscanthus Plantation | AP37: =Lists!D274 -> No peat drainage | AQ37: Newly Abandoned LRF Conifer, residues unused:Miscanthus Plantation:No peat drainage
A38: Non-Forest Natural Ecosystems | B38: =Lists!E89 -> Tropical Grassland Savannah | C38: Non-Forest Natural Ecosystems:Tropical Grassland Savannah | E38: LRF Broadleaf for wood products, residues unused | F38: =Lists!L114 -> South USA | G38: LRF Broadleaf for wood products, residues unused:South USA | I38: Newly Abandoned LRF Conifer, residues unused:South USA | J38: =Lists!E132 -> Maize Cropland | K38: Newly Abandoned LRF Conifer, residues unused:South USA:Maize Cropland | M38: =M37 -> LRF Broadleaf for wood products and bioenergy | N38: ='Land Data'!AM849 -> Small Roundwood (50 wt% moisture) | O38: LRF Broadleaf for wood products and bioenergy:Small Roundwood (50 wt% moisture) | P38: =Lists!C455 -> Newly Established Intensively managed SRF Conifer, 25 years rotation:All additional wood compared to counterfactual (50 wt% moisture) | Q38: =Lists!D455 -> Leave the land unharvested/unmanaged | R38: Newly Established Intensively managed SRF Conifer, 25 years rotation:All additional wood compared to counterfactual (50 wt% moisture):Leave the land unharvested/unmanaged | T38: =T37 -> SRC Chips (50 wt% moisture) | U38: =Lists!N530 -> Dry and pelletise | V38: SRC Chips (50 wt% moisture):Dry and pelletise | AD38: =AD37 -> Miscanthus Chips (10 wt% moisture) | AE38: =Lists!F572 -> BtL | AF38: Miscanthus Chips (10 wt% moisture):BtL | AO38: =AO37 -> Newly Abandoned LRF Conifer, residues unused:Miscanthus Plantation | AP38: =Lists!E274 -> Peat soil which requires drainage | AQ38: Newly Abandoned LRF Conifer, residues unused:Miscanthus Plantation:Peat soil which requires drainage
A39: =Lists!F82 -> Abandoned Annual Crop Land | B39: =Lists!F83 -> Land reverting to Tropical Rainforest | C39: Abandoned Annual Crop Land:Land reverting to Tropical Rainforest | E39: =Lists!M109 -> LRF Broadleaf for wood products, 50% residues used | F39: =Lists!M110 -> East Canada | G39: LRF Broadleaf for wood products, 50% residues used:East Canada | I39: =Lists!A133 -> Newly Abandoned LRF Conifer, residues unused:North West USA | J39: =Lists!B133 -> LRF Conifer for Bioenergy, residues unused | K39: Newly Abandoned LRF Conifer, residues unused:North West USA:LRF Conifer for Bioenergy, residues unused | M39: =M38 -> LRF Broadleaf for wood products and bioenergy | N39: ='Land Data'!AN849 -> Woody Debris (25 wt% moisture). Continuous removal. | O39: LRF Broadleaf for wood products and bioenergy:Woody Debris (25 wt% moisture). Continuous removal. | P39: =Lists!C456 -> LRF Conifer, rotation length reduced to 50y:All additional wood compared to counterfactual (50 wt% moisture) | Q39: =Lists!D456 -> Leave forest in previous management | R39: LRF Conifer, rotation length reduced to 50y:All additional wood compared to counterfactual (50 wt% moisture):Leave forest in previous management | T39: =Lists!O528 -> Miscanthus Chips (30 wt% moisture) | U39: =Lists!O529 -> Dry | V39: Miscanthus Chips (30 wt% moisture):Dry | AD39: =AD38 -> Miscanthus Chips (10 wt% moisture) | AE39: =Lists!F573 -> Ethanol | AF39: Miscanthus Chips (10 wt% moisture):Ethanol | AO39: =Lists!C275 -> Newly Abandoned LRF Conifer, residues unused:Maize Cropland | AP39: =Lists!D275 -> No peat drainage | AQ39: Newly Abandoned LRF Conifer, residues unused:Maize Cropland:No peat drainage
A40: =A39 -> Abandoned Annual Crop Land | B40: =Lists!F84 -> Land reverting to Tropical Moist Deciduous Forest | C40: Abandoned Annual Crop Land:Land reverting to Tropical Moist Deciduous Forest | E40: =Lists!N109 -> Newly Abandoned LRF Broadleaf, residues unused | F40: =Lists!N110 -> North-East USA | G40: Newly Abandoned LRF Broadleaf, residues unused:North-East USA | I40: =I39 -> Newly Abandoned LRF Conifer, residues unused:North West USA | J40: =Lists!C133 -> SRC Willow Plantation | K40: Newly Abandoned LRF Conifer, residues unused:North West USA:SRC Willow Plantation | M40: LRF Broadleaf for wood products and bioenergy | N40: ='Land Data'!AO849 -> Woody Debris (25 wt% moisture). Remove for 15 years only. | O40: LRF Broadleaf for wood products and bioenergy:Woody Debris (25 wt% moisture). Remove for 15 years only. | P40: =Lists!C457 -> LRF Conifer, rotation length reduced to 50y:All additional non-saw log wood compared to counterfactual (50 wt% moisture). Saw logs to construction (flooring). | Q40: =Lists!D457 -> Leave forest in previous management | R40: LRF Conifer, rotation length reduced to 50y:All additional non-saw log wood compared to counterfactual (50 wt% moisture). Saw logs to construction (flooring).:Leave forest in previous management | T40: =T39 -> Miscanthus Chips (30 wt% moisture) | U40: =Lists!O530 -> Dry and pelletise | V40: Miscanthus Chips (30 wt% moisture):Dry and pelletise | AD40: Miscanthus Chips (10 wt% moisture) | AE40: =Lists!F574 -> Gas from Slow Pyrolysis (Biochar co-product) | AF40: Miscanthus Chips (10 wt% moisture):Gas from Slow Pyrolysis (Biochar co-product) | AO40: =AO39 -> Newly Abandoned LRF Conifer, residues unused:Maize Cropland | AP40: =Lists!E275 -> Peat soil which requires drainage | AQ40: Newly Abandoned LRF Conifer, residues unused:Maize Cropland:Peat soil which requires drainage
A41: =A40 -> Abandoned Annual Crop Land | B41: =Lists!F85 -> Land reverting to Tropical Dry Forest | C41: Abandoned Annual Crop Land:Land reverting to Tropical Dry Forest | E41: =E40 -> Newly Abandoned LRF Broadleaf, residues unused | F41: =Lists!N111 -> North USA | G41: Newly Abandoned LRF Broadleaf, residues unused:North USA | I41: =I40 -> Newly Abandoned LRF Conifer, residues unused:North West USA | J41: =Lists!D133 -> Miscanthus Plantation | K41: Newly Abandoned LRF Conifer, residues unused:North West USA:Miscanthus Plantation | M41: ='Land Data'!A868 -> LRF Broadleaf for bioenergy, residues unused | N41: ='Land Data'!AL869 -> All the wood harvested over the rotation (50 wt% moisture) | O41: LRF Broadleaf for bioenergy, residues unused:All the wood harvested over the rotation (50 wt% moisture) | P41: =Lists!C458 -> LRF Conifer, rotation length reduced to 80y:All additional wood compared to counterfactual (50 wt% moisture) | Q41: =Lists!D458 -> Leave forest in previous management | R41: LRF Conifer, rotation length reduced to 80y:All additional wood compared to counterfactual (50 wt% moisture):Leave forest in previous management | T41: =Lists!P528 -> Eucalyptus Roundwood (50 wt% moisture) | U41: =Lists!P529 -> Natural dry and chip | V41: Eucalyptus Roundwood (50 wt% moisture):Natural dry and chip | AD41: Miscanthus Chips (10 wt% moisture) | AE41: =Lists!F575 -> CHP | AF41: Miscanthus Chips (10 wt% moisture):CHP | AO41: =Lists!C276 -> LRF Broadleaf for wood products, residues unused:LRF Broadleaf for wood products and bioenergy | AP41: =Lists!D276 -> No peat drainage | AQ41: LRF Broadleaf for wood products, residues unused:LRF Broadleaf for wood products and bioenergy:No peat drainage
A42: Abandoned Annual Crop Land | B42: =Lists!F86 -> Land reverting to Tropical Mountain System | C42: Abandoned Annual Crop Land:Land reverting to Tropical Mountain System | E42: =E41 -> Newly Abandoned LRF Broadleaf, residues unused | F42: =Lists!N112 -> East Canada | G42: Newly Abandoned LRF Broadleaf, residues unused:East Canada | I42: Newly Abandoned LRF Conifer, residues unused:North West USA | J42: =Lists!E133 -> Maize Cropland | K42: Newly Abandoned LRF Conifer, residues unused:North West USA:Maize Cropland | M42: ='Land Data'!A880 -> LRF Broadleaf, rotation length reduced to 50y | N42: ='Land Data'!AL881 -> All additional wood compared to counterfactual (50 wt% moisture) | O42: LRF Broadleaf, rotation length reduced to 50y:All additional wood compared to counterfactual (50 wt% moisture) | P42: =Lists!C459 -> LRF Conifer, rotation length reduced to 80y:All additional non-saw log wood compared to counterfactual (50 wt% moisture). Saw logs to construction (flooring). | Q42: =Lists!D459 -> Leave forest in previous management | R42: LRF Conifer, rotation length reduced to 80y:All additional non-saw log wood compared to counterfactual (50 wt% moisture). Saw logs to construction (flooring).:Leave forest in previous management | T42: =T41 -> Eucalyptus Roundwood (50 wt% moisture) | U42: =Lists!P530 -> Chip, dry and pelletise | V42: Eucalyptus Roundwood (50 wt% moisture):Chip, dry and pelletise | AD42: Miscanthus Chips (10 wt% moisture) | AE42: =Lists!F576 -> Heat from Biomass Boiler | AF42: Miscanthus Chips (10 wt% moisture):Heat from Biomass Boiler | AO42: =Lists!C277 -> LRF Broadleaf for wood products, residues unused:Conversion of LRF Broadleaf to intensively managed SRF plantation, 20 year rotation | AP42: =Lists!D277 -> No peat drainage | AQ42: LRF Broadleaf for wood products, residues unused:Conversion of LRF Broadleaf to intensively managed SRF plantation, 20 year rotation:No peat drainage
A43: Abandoned Annual Crop Land | B43: =Lists!F87 -> Land reverting to Tropical Woody Savanna | C43: Abandoned Annual Crop Land:Land reverting to Tropical Woody Savanna | E43: =Lists!O109 -> LRF Broadleaf for wood products, rotation length increasing | F43: =Lists!O110 -> South USA | G43: LRF Broadleaf for wood products, rotation length increasing:South USA | I43: =Lists!A134 -> Newly Abandoned LRF Conifer, residues unused:Pacific Canada | J43: =Lists!B134 -> LRF Conifer for Bioenergy, residues unused | K43: Newly Abandoned LRF Conifer, residues unused:Pacific Canada:LRF Conifer for Bioenergy, residues unused | M43: =M42 -> LRF Broadleaf, rotation length reduced to 50y | N43: ='Land Data'!AM881 -> All additional non-saw log wood compared to counterfactual (50 wt% moisture). Saw logs to construction (window frame). | O43: LRF Broadleaf, rotation length reduced to 50y:All additional non-saw log wood compared to counterfactual (50 wt% moisture). Saw logs to construction (window frame). | P43: =Lists!C460 -> Conversion of LRF Conifer to intensively managed SRF plantation, 20 year rotation:All additional wood compared to counterfactual (50 wt% moisture) | Q43: =Lists!D460 -> Leave forest in previous management | R43: Conversion of LRF Conifer to intensively managed SRF plantation, 20 year rotation:All additional wood compared to counterfactual (50 wt% moisture):Leave forest in previous management | T43: =Lists!Q528 -> Palm Fruit (34 wt% moisture) | U43: =Lists!Q529 -> Oil Extraction | V43: Palm Fruit (34 wt% moisture):Oil Extraction | AD43: Miscanthus Chips (10 wt% moisture) | AE43: =Lists!F577 -> Co-fire Bioelectricity | AF43: Miscanthus Chips (10 wt% moisture):Co-fire Bioelectricity | AO43: =AO42 -> LRF Broadleaf for wood products, residues unused:Conversion of LRF Broadleaf to intensively managed SRF plantation, 20 year rotation | AP43: =Lists!E277 -> Peat soil which requires drainage | AQ43: LRF Broadleaf for wood products, residues unused:Conversion of LRF Broadleaf to intensively managed SRF plantation, 20 year rotation:Peat soil which requires drainage
A44: Abandoned Annual Crop Land | B44: =Lists!F88 -> Land reverting to Temperate Oceanic Forest | C44: Abandoned Annual Crop Land:Land reverting to Temperate Oceanic Forest | E44: =Lists!P109 -> Unmanaged Temperate Broadleaf | F44: =Lists!P110 -> UK | G44: Unmanaged Temperate Broadleaf:UK | I44: =I43 -> Newly Abandoned LRF Conifer, residues unused:Pacific Canada | J44: =Lists!C134 -> SRC Willow Plantation | K44: Newly Abandoned LRF Conifer, residues unused:Pacific Canada:SRC Willow Plantation | M44: ='Land Data'!A884 -> LRF Broadleaf, rotation length reduced to 80y | N44: ='Land Data'!AL885 -> All additional wood compared to counterfactual (50 wt% moisture) | O44: LRF Broadleaf, rotation length reduced to 80y:All additional wood compared to counterfactual (50 wt% moisture) | P44: =Lists!C461 -> Conversion of LRF Conifer to intensively managed SRF plantation, 25 year rotation:All additional wood compared to counterfactual (50 wt% moisture) | Q44: =Lists!D461 -> Leave forest in previous management | R44: Conversion of LRF Conifer to intensively managed SRF plantation, 25 year rotation:All additional wood compared to counterfactual (50 wt% moisture):Leave forest in previous management | T44: =Lists!R528 -> Maize Whole Crop (70 wt% moisture) | U44: =Lists!R529 -> Sillage | V44: Maize Whole Crop (70 wt% moisture):Sillage | AD44: Miscanthus Chips (10 wt% moisture) | AE44: =Lists!F578 -> Dedicated Bioelectricity | AF44: Miscanthus Chips (10 wt% moisture):Dedicated Bioelectricity | AO44: =Lists!C278 -> LRF Broadleaf for wood products, residues unused:Conversion of LRF Broadleaf to intensively managed SRF plantation, 25 year rotation | AP44: =Lists!D278 -> No peat drainage | AQ44: LRF Broadleaf for wood products, residues unused:Conversion of LRF Broadleaf to intensively managed SRF plantation, 25 year rotation:No peat drainage
A45: Abandoned Annual Crop Land | B45: =Lists!F89 -> Land reverting to Temperate Continental Forest | C45: Abandoned Annual Crop Land:Land reverting to Temperate Continental Forest | E45: =Lists!Q109 -> Unmanaged Tropical Peat Forest | F45: =Lists!Q110 -> Africa (tropical wet region) | G45: Unmanaged Tropical Peat Forest:Africa (tropical wet region) | I45: =I44 -> Newly Abandoned LRF Conifer, residues unused:Pacific Canada | J45: =Lists!D134 -> Miscanthus Plantation | K45: Newly Abandoned LRF Conifer, residues unused:Pacific Canada:Miscanthus Plantation | M45: =M44 -> LRF Broadleaf, rotation length reduced to 80y | N45: ='Land Data'!AM885 -> All additional non-saw log wood compared to counterfactual (50 wt% moisture). Saw logs to construction (window frame). | O45: LRF Broadleaf, rotation length reduced to 80y:All additional non-saw log wood compared to counterfactual (50 wt% moisture). Saw logs to construction (window frame). | P45: =Lists!C462 -> Conversion of LRF Broadleaf to intensively managed SRF plantation, 20 year rotation:All additional wood compared to counterfactual (50 wt% moisture) | Q45: =Lists!D462 -> Leave forest in previous management | R45: Conversion of LRF Broadleaf to intensively managed SRF plantation, 20 year rotation:All additional wood compared to counterfactual (50 wt% moisture):Leave forest in previous management | AD45: Miscanthus Chips (10 wt% moisture) | AE45: =Lists!F579 -> Dedicated Bioelectricity with CCS | AF45: Miscanthus Chips (10 wt% moisture):Dedicated Bioelectricity with CCS | AO45: =AO44 -> LRF Broadleaf for wood products, residues unused:Conversion of LRF Broadleaf to intensively managed SRF plantation, 25 year rotation | AP45: =Lists!E278 -> Peat soil which requires drainage | AQ45: LRF Broadleaf for wood products, residues unused:Conversion of LRF Broadleaf to intensively managed SRF plantation, 25 year rotation:Peat soil which requires drainage
A46: Abandoned Annual Crop Land | B46: =Lists!F90 -> Land reverting to Temperate Mountain System | C46: Abandoned Annual Crop Land:Land reverting to Temperate Mountain System | E46: =E45 -> Unmanaged Tropical Peat Forest | F46: =Lists!Q111 -> North America (tropical wet region) | G46: Unmanaged Tropical Peat Forest:North America (tropical wet region) | I46: Newly Abandoned LRF Conifer, residues unused:Pacific Canada | J46: =Lists!E134 -> Maize Cropland | K46: Newly Abandoned LRF Conifer, residues unused:Pacific Canada:Maize Cropland | M46: ='Land Data'!A888 -> LRF Broadleaf, rotation length reduced to 60y | N46: ='Land Data'!AL889 -> All additional wood compared to counterfactual (50 wt% moisture) | O46: LRF Broadleaf, rotation length reduced to 60y:All additional wood compared to counterfactual (50 wt% moisture) | P46: =Lists!C463 -> Conversion of LRF Broadleaf to intensively managed SRF plantation, 25 year rotation:All additional wood compared to counterfactual (50 wt% moisture) | Q46: =Lists!D463 -> Leave forest in previous management | R46: Conversion of LRF Broadleaf to intensively managed SRF plantation, 25 year rotation:All additional wood compared to counterfactual (50 wt% moisture):Leave forest in previous management | AD46: =Lists!G570 -> Miscanthus Pellets (10% moisture) | AE46: =Lists!G571 -> BioSNG | AF46: Miscanthus Pellets (10% moisture):BioSNG | AO46: =Lists!C279 -> LRF Broadleaf for wood products, residues unused:Conversion of LRF Broadleaf to SRC Willow over 3 y | AP46: =Lists!D279 -> No peat drainage | AQ46: LRF Broadleaf for wood products, residues unused:Conversion of LRF Broadleaf to SRC Willow over 3 y:No peat drainage
A47: Abandoned Annual Crop Land | B47: =Lists!F91 -> Land reverting to Temperate Shrub or Grassland | C47: Abandoned Annual Crop Land:Land reverting to Temperate Shrub or Grassland | E47: =E46 -> Unmanaged Tropical Peat Forest | F47: =Lists!Q112 -> South America (tropical wet region) | G47: Unmanaged Tropical Peat Forest:South America (tropical wet region) | I47: =Lists!A135 -> Newly Abandoned LRF Conifer, residues unused:Interior Canada | J47: =Lists!B135 -> LRF Conifer for Bioenergy, residues unused | K47: Newly Abandoned LRF Conifer, residues unused:Interior Canada:LRF Conifer for Bioenergy, residues unused | M47: =M46 -> LRF Broadleaf, rotation length reduced to 60y | N47: ='Land Data'!AM889 -> All additional non-saw log wood compared to counterfactual (50 wt% moisture). Saw logs to construction (window frame). | O47: LRF Broadleaf, rotation length reduced to 60y:All additional non-saw log wood compared to counterfactual (50 wt% moisture). Saw logs to construction (window frame). | P47: =Lists!C464 -> Conversion of LRF Conifer to SRC Willow over 3 y:All additional wood compared to counterfactual (50 wt% moisture) | Q47: =Lists!D464 -> Leave forest in previous management | R47: Conversion of LRF Conifer to SRC Willow over 3 y:All additional wood compared to counterfactual (50 wt% moisture):Leave forest in previous management | AD47: =AD46 -> Miscanthus Pellets (10% moisture) | AE47: =Lists!G572 -> BtL | AF47: Miscanthus Pellets (10% moisture):BtL | AO47: =AO46 -> LRF Broadleaf for wood products, residues unused:Conversion of LRF Broadleaf to SRC Willow over 3 y | AP47: =Lists!E279 -> Peat soil which requires drainage | AQ47: LRF Broadleaf for wood products, residues unused:Conversion of LRF Broadleaf to SRC Willow over 3 y:Peat soil which requires drainage
A48: Abandoned Annual Crop Land | B48: =Lists!F92 -> Land reverting to Boreal Coniferous Forest | C48: Abandoned Annual Crop Land:Land reverting to Boreal Coniferous Forest | E48: =E47 -> Unmanaged Tropical Peat Forest | F48: =Lists!Q113 -> Asia Continental (tropical wet region) | G48: Unmanaged Tropical Peat Forest:Asia Continental (tropical wet region) | I48: =I47 -> Newly Abandoned LRF Conifer, residues unused:Interior Canada | J48: =Lists!C135 -> SRC Willow Plantation | K48: Newly Abandoned LRF Conifer, residues unused:Interior Canada:SRC Willow Plantation | M48: ='Land Data'!A892 -> LRF Broadleaf for wood products and bioenergy; rotation stays the same | N48: ='Land Data'!AL893 -> All additional wood compared to counterfactual (50 wt% moisture) | O48: =M48&":"&N48 -> LRF Broadleaf for wood products and bioenergy; rotation stays the same:All additional wood compared to counterfactual (50 wt% moisture) | P48: =Lists!C465 -> Conversion of LRF Conifer to SRC Willow over 50 y:All additional wood compared to counterfactual (50 wt% moisture) | Q48: =Lists!D465 -> Leave forest in previous management | R48: Conversion of LRF Conifer to SRC Willow over 50 y:All additional wood compared to counterfactual (50 wt% moisture):Leave forest in previous management | AD48: =AD47 -> Miscanthus Pellets (10% moisture) | AE48: =Lists!G573 -> Ethanol | AF48: Miscanthus Pellets (10% moisture):Ethanol | AO48: =Lists!C280 -> LRF Broadleaf for wood products, residues unused:Conversion of LRF Broadleaf to SRC Willow over 70 y | AP48: =Lists!D280 -> No peat drainage | AQ48: LRF Broadleaf for wood products, residues unused:Conversion of LRF Broadleaf to SRC Willow over 70 y:No peat drainage
A49: Abandoned Annual Crop Land | B49: =Lists!F93 -> Land reverting to Boreal Tundra | C49: Abandoned Annual Crop Land:Land reverting to Boreal Tundra | E49: =E48 -> Unmanaged Tropical Peat Forest | F49: =Lists!Q114 -> Asia Insular (tropical wet region) | G49: Unmanaged Tropical Peat Forest:Asia Insular (tropical wet region) | I49: =I48 -> Newly Abandoned LRF Conifer, residues unused:Interior Canada | J49: =Lists!D135 -> Miscanthus Plantation | K49: Newly Abandoned LRF Conifer, residues unused:Interior Canada:Miscanthus Plantation | M49: ='Land Data'!A896 -> Newly Managed LRF Broadleaf | N49: ='Land Data'!AL897 -> All additional wood created by new management (50 wt% moisture) | O49: Newly Managed LRF Broadleaf:All additional wood created by new management (50 wt% moisture) | P49: =Lists!C466 -> Conversion of LRF Broadleaf to SRC Willow over 3 y:All additional wood compared to counterfactual (50 wt% moisture) | Q49: =Lists!D466 -> Leave forest in previous management | R49: Conversion of LRF Broadleaf to SRC Willow over 3 y:All additional wood compared to counterfactual (50 wt% moisture):Leave forest in previous management | AD49: Miscanthus Pellets (10% moisture) | AE49: =Lists!G574 -> Gas from Slow Pyrolysis (Biochar co-product) | AF49: Miscanthus Pellets (10% moisture):Gas from Slow Pyrolysis (Biochar co-product) | AO49: =AO48 -> LRF Broadleaf for wood products, residues unused:Conversion of LRF Broadleaf to SRC Willow over 70 y | AP49: =Lists!E280 -> Peat soil which requires drainage | AQ49: LRF Broadleaf for wood products, residues unused:Conversion of LRF Broadleaf to SRC Willow over 70 y:Peat soil which requires drainage
A50: Abandoned Annual Crop Land | B50: =Lists!F94 -> Land reverting to Boreal Mountain System | C50: Abandoned Annual Crop Land:Land reverting to Boreal Mountain System | E50: =Lists!R109 -> Unmanaged Tropical Non-Peat Rainforest | F50: =Lists!R110 -> Africa (tropical wet region) | G50: Unmanaged Tropical Non-Peat Rainforest:Africa (tropical wet region) | I50: Newly Abandoned LRF Conifer, residues unused:Interior Canada | J50: =Lists!E135 -> Maize Cropland | K50: Newly Abandoned LRF Conifer, residues unused:Interior Canada:Maize Cropland | M50: ='Land Data'!A900 -> SRC Willow Plantation | N50: ='Land Data'!AL901 -> SRC Chips (50 wt% moisture) | O50: SRC Willow Plantation:SRC Chips (50 wt% moisture) | P50: =Lists!C467 -> Conversion of LRF Broadleaf to SRC Willow over 70 y:All additional wood compared to counterfactual (50 wt% moisture) | Q50: =Lists!D467 -> Leave forest in previous management | R50: Conversion of LRF Broadleaf to SRC Willow over 70 y:All additional wood compared to counterfactual (50 wt% moisture):Leave forest in previous management | AD50: Miscanthus Pellets (10% moisture) | AE50: =Lists!G575 -> CHP | AF50: Miscanthus Pellets (10% moisture):CHP | AO50: =Lists!C281 -> LRF Broadleaf for wood products, residues unused:LRF Broadleaf, rotation length reduced to 60y | AP50: =Lists!D281 -> No peat drainage | AQ50: LRF Broadleaf for wood products, residues unused:LRF Broadleaf, rotation length reduced to 60y:No peat drainage
A51: =Lists!G82 -> Abandoned Perennial Cropland | B51: =Lists!G83 -> Land reverting to Tropical Rainforest | C51: Abandoned Perennial Cropland:Land reverting to Tropical Rainforest | E51: =E50 -> Unmanaged Tropical Non-Peat Rainforest | F51: =Lists!R111 -> North America (tropical wet region) | G51: Unmanaged Tropical Non-Peat Rainforest:North America (tropical wet region) | I51: =Lists!A136 -> Newly Abandoned LRF Conifer, residues unused:Boreal North Canada | J51: =Lists!B136 -> LRF Conifer for Bioenergy, residues unused | K51: Newly Abandoned LRF Conifer, residues unused:Boreal North Canada:LRF Conifer for Bioenergy, residues unused | M51: ='Land Data'!A988 -> Miscanthus Plantation | N51: ='Land Data'!AL989 -> Miscanthus Chips (30 wt% moisture) | O51: Miscanthus Plantation:Miscanthus Chips (30 wt% moisture) | P51: =Lists!C468 -> SRF Conifer, increased management intensity, 25 year rotation:All additional wood compared to counterfactual (50 wt% moisture) | Q51: =Lists!D468 -> Leave forest in previous management | R51: SRF Conifer, increased management intensity, 25 year rotation:All additional wood compared to counterfactual (50 wt% moisture):Leave forest in previous management | AD51: Miscanthus Pellets (10% moisture) | AE51: =Lists!G576 -> Heat from Biomass Boiler | AF51: Miscanthus Pellets (10% moisture):Heat from Biomass Boiler | AO51: =Lists!C282 -> LRF Broadleaf for wood products, 50% residues used:LRF Broadleaf, rotation length reduced to 50y | AP51: =Lists!D282 -> No peat drainage | AQ51: LRF Broadleaf for wood products, 50% residues used:LRF Broadleaf, rotation length reduced to 50y:No peat drainage
A52: =A51 -> Abandoned Perennial Cropland | B52: =Lists!G84 -> Land reverting to Tropical Moist Deciduous Forest | C52: Abandoned Perennial Cropland:Land reverting to Tropical Moist Deciduous Forest | E52: =E51 -> Unmanaged Tropical Non-Peat Rainforest | F52: =Lists!R112 -> South America (tropical wet region) | G52: Unmanaged Tropical Non-Peat Rainforest:South America (tropical wet region) | I52: =I51 -> Newly Abandoned LRF Conifer, residues unused:Boreal North Canada | J52: =Lists!C136 -> SRC Willow Plantation | K52: Newly Abandoned LRF Conifer, residues unused:Boreal North Canada:SRC Willow Plantation | M52: ='Land Data'!A1068 -> SRF Eucalyptus Plantation | N52: ='Land Data'!AL1069 -> Eucalyptus Roundwood (50 wt% moisture) | O52: SRF Eucalyptus Plantation:Eucalyptus Roundwood (50 wt% moisture) | P52: =Lists!C469 -> LRF Broadleaf for wood products and bioenergy:Saw logs (50 wt% moisture) | Q52: =Lists!D469 -> Sawn Timber (replacing upvc window), off cuts to particle board (replacing breeze blocks) | R52: =P52&":"&Q52 -> LRF Broadleaf for wood products and bioenergy:Saw logs (50 wt% moisture):Sawn Timber (replacing upvc window), off cuts to particle board (replacing breeze blocks) | AD52: Miscanthus Pellets (10% moisture) | AE52: =Lists!G577 -> Co-fire Bioelectricity | AF52: Miscanthus Pellets (10% moisture):Co-fire Bioelectricity | AO52: =Lists!C283 -> LRF Broadleaf for wood products, 50% residues used:LRF Broadleaf, rotation length reduced to 80y | AP52: =Lists!D283 -> No peat drainage | AQ52: LRF Broadleaf for wood products, 50% residues used:LRF Broadleaf, rotation length reduced to 80y:No peat drainage
A53: =A52 -> Abandoned Perennial Cropland | B53: =Lists!G85 -> Land reverting to Tropical Dry Forest | C53: Abandoned Perennial Cropland:Land reverting to Tropical Dry Forest | E53: Unmanaged Tropical Non-Peat Rainforest | F53: =Lists!R113 -> Asia Continental (tropical wet region) | G53: Unmanaged Tropical Non-Peat Rainforest:Asia Continental (tropical wet region) | I53: =I52 -> Newly Abandoned LRF Conifer, residues unused:Boreal North Canada | J53: =Lists!D136 -> Miscanthus Plantation | K53: Newly Abandoned LRF Conifer, residues unused:Boreal North Canada:Miscanthus Plantation | M53: ='Land Data'!A1148 -> Palm Plantation | N53: ='Land Data'!AL1149 -> Palm Fruit (34 wt% moisture) | O53: Palm Plantation:Palm Fruit (34 wt% moisture) | P53: =P52 -> LRF Broadleaf for wood products and bioenergy:Saw logs (50 wt% moisture) | Q53: =Lists!E469 -> Sawn Timber (replacing upvc window), off cuts to MDF (replacing plasterwork) | R53: LRF Broadleaf for wood products and bioenergy:Saw logs (50 wt% moisture):Sawn Timber (replacing upvc window), off cuts to MDF (replacing plasterwork) | AD53: Miscanthus Pellets (10% moisture) | AE53: =Lists!G578 -> Dedicated Bioelectricity | AF53: Miscanthus Pellets (10% moisture):Dedicated Bioelectricity | AO53: =Lists!C284 -> Newly Abandoned LRF Broadleaf, residues unused:LRF Broadleaf for bioenergy, residues unused | AP53: =Lists!D284 -> No peat drainage | AQ53: Newly Abandoned LRF Broadleaf, residues unused:LRF Broadleaf for bioenergy, residues unused:No peat drainage
A54: Abandoned Perennial Cropland | B54: =Lists!G86 -> Land reverting to Tropical Mountain System | C54: Abandoned Perennial Cropland:Land reverting to Tropical Mountain System | E54: Unmanaged Tropical Non-Peat Rainforest | F54: =Lists!R114 -> Asia Insular (tropical wet region) | G54: Unmanaged Tropical Non-Peat Rainforest:Asia Insular (tropical wet region) | I54: Newly Abandoned LRF Conifer, residues unused:Boreal North Canada | J54: =Lists!E136 -> Maize Cropland | K54: Newly Abandoned LRF Conifer, residues unused:Boreal North Canada:Maize Cropland | M54: ='Land Data'!A1228 -> Maize Cropland | N54: ='Land Data'!AL1229 -> Maize Whole Crop (70 wt% moisture) | O54: Maize Cropland:Maize Whole Crop (70 wt% moisture) | P54: =P53 -> LRF Broadleaf for wood products and bioenergy:Saw logs (50 wt% moisture) | Q54: =Lists!F469 -> Displacing imported wood products | R54: LRF Broadleaf for wood products and bioenergy:Saw logs (50 wt% moisture):Displacing imported wood products | AD54: Miscanthus Pellets (10% moisture) | AE54: =Lists!G579 -> Dedicated Bioelectricity with CCS | AF54: Miscanthus Pellets (10% moisture):Dedicated Bioelectricity with CCS | AO54: =Lists!C285 -> Newly Abandoned LRF Broadleaf, residues unused:SRC Willow Plantation | AP54: =Lists!D285 -> No peat drainage | AQ54: Newly Abandoned LRF Broadleaf, residues unused:SRC Willow Plantation:No peat drainage
A55: Abandoned Perennial Cropland | B55: =Lists!G87 -> Land reverting to Tropical Woody Savanna | C55: Abandoned Perennial Cropland:Land reverting to Tropical Woody Savanna | E55: =Lists!S109 -> Old Growth Fast Growing Conifer (> 200 years old) | F55: =Lists!S110 -> North West USA | G55: Old Growth Fast Growing Conifer (> 200 years old):North West USA | I55: =Lists!A137 -> LRF Conifer for wood products, 50% residues used:Pacific Canada | J55: =Lists!B137 -> LRF Conifer, rotation length reduced to 50y | K55: LRF Conifer for wood products, 50% residues used:Pacific Canada:LRF Conifer, rotation length reduced to 50y | P55: LRF Broadleaf for wood products and bioenergy:Saw logs (50 wt% moisture) | Q55: =Lists!G469 -> Remove from land and burn | R55: LRF Broadleaf for wood products and bioenergy:Saw logs (50 wt% moisture):Remove from land and burn | AD55: =Lists!H570 -> Wood Chips (25 wt% moisture) | AE55: =Lists!H571 -> BioSNG | AF55: Wood Chips (25 wt% moisture):BioSNG | AO55: =AO54 -> Newly Abandoned LRF Broadleaf, residues unused:SRC Willow Plantation | AP55: =Lists!E285 -> Peat soil which requires drainage | AQ55: Newly Abandoned LRF Broadleaf, residues unused:SRC Willow Plantation:Peat soil which requires drainage
A56: Abandoned Perennial Cropland | B56: =Lists!G88 -> Land reverting to Temperate Oceanic Forest | C56: Abandoned Perennial Cropland:Land reverting to Temperate Oceanic Forest | E56: =E55 -> Old Growth Fast Growing Conifer (> 200 years old) | F56: =Lists!S111 -> South USA | G56: Old Growth Fast Growing Conifer (> 200 years old):South USA | I56: =Lists!A138 -> LRF Conifer for wood products, 50% residues used:Interior Canada | J56: =Lists!B138 -> LRF Conifer, rotation length reduced to 50y | K56: LRF Conifer for wood products, 50% residues used:Interior Canada:LRF Conifer, rotation length reduced to 50y | P56: =Lists!C470 -> LRF Broadleaf for wood products and bioenergy:Small Roundwood (50 wt% moisture) | Q56: =Lists!D470 -> Particle board (replacing breeze blocks) | R56: LRF Broadleaf for wood products and bioenergy:Small Roundwood (50 wt% moisture):Particle board (replacing breeze blocks) | AD56: =AD55 -> Wood Chips (25 wt% moisture) | AE56: =Lists!H572 -> BtL | AF56: Wood Chips (25 wt% moisture):BtL | AO56: =Lists!C286 -> Newly Abandoned LRF Broadleaf, residues unused:Miscanthus Plantation | AP56: =Lists!D286 -> No peat drainage | AQ56: Newly Abandoned LRF Broadleaf, residues unused:Miscanthus Plantation:No peat drainage
A57: Abandoned Perennial Cropland | B57: =Lists!G89 -> Land reverting to Temperate Continental Forest | C57: Abandoned Perennial Cropland:Land reverting to Temperate Continental Forest | E57: =Lists!T109 -> Old Growth Slow Growing Conifer (> 200 years old) | F57: =Lists!T110 -> North West USA | G57: Old Growth Slow Growing Conifer (> 200 years old):North West USA | I57: =I56 -> LRF Conifer for wood products, 50% residues used:Interior Canada | J57: =Lists!C138 -> LRF Conifer, rotation length reduced to 80y | K57: LRF Conifer for wood products, 50% residues used:Interior Canada:LRF Conifer, rotation length reduced to 80y | P57: =P56 -> LRF Broadleaf for wood products and bioenergy:Small Roundwood (50 wt% moisture) | Q57: =Lists!E470 -> MDF (replacing plasterwork) | R57: LRF Broadleaf for wood products and bioenergy:Small Roundwood (50 wt% moisture):MDF (replacing plasterwork) | AD57: =AD56 -> Wood Chips (25 wt% moisture) | AE57: =Lists!H573 -> Ethanol | AF57: Wood Chips (25 wt% moisture):Ethanol | AO57: =AO56 -> Newly Abandoned LRF Broadleaf, residues unused:Miscanthus Plantation | AP57: =Lists!E286 -> Peat soil which requires drainage | AQ57: Newly Abandoned LRF Broadleaf, residues unused:Miscanthus Plantation:Peat soil which requires drainage
A58: Abandoned Perennial Cropland | B58: =Lists!G90 -> Land reverting to Temperate Mountain System | C58: Abandoned Perennial Cropland:Land reverting to Temperate Mountain System | E58: =Lists!U109 -> Northern Peatland | F58: =Lists!U110 -> Europe (boreal region) | G58: Northern Peatland:Europe (boreal region) | I58: =Lists!A139 -> LRF Conifer for wood products, 50% residues used:Boreal North Canada | J58: =Lists!B139 -> LRF Conifer, rotation length reduced to 50y | K58: LRF Conifer for wood products, 50% residues used:Boreal North Canada:LRF Conifer, rotation length reduced to 50y | P58: =P57 -> LRF Broadleaf for wood products and bioenergy:Small Roundwood (50 wt% moisture) | Q58: =Lists!F470 -> Fencing (replacing concrete fencing), off cuts Particle Board (replacing breeze blocks) | R58: LRF Broadleaf for wood products and bioenergy:Small Roundwood (50 wt% moisture):Fencing (replacing concrete fencing), off cuts Particle Board (replacing breeze blocks) | AD58: Wood Chips (25 wt% moisture) | AE58: =Lists!H574 -> Gas from Slow Pyrolysis (Biochar co-product) | AF58: Wood Chips (25 wt% moisture):Gas from Slow Pyrolysis (Biochar co-product) | AO58: =Lists!C287 -> Newly Abandoned LRF Broadleaf, residues unused:Maize Cropland | AP58: =Lists!D287 -> No peat drainage | AQ58: Newly Abandoned LRF Broadleaf, residues unused:Maize Cropland:No peat drainage
A59: Abandoned Perennial Cropland | B59: =Lists!G91 -> Land reverting to Temperate Shrub or Grassland | C59: Abandoned Perennial Cropland:Land reverting to Temperate Shrub or Grassland | E59: =E58 -> Northern Peatland | F59: =Lists!U111 -> North America (boreal region) | G59: Northern Peatland:North America (boreal region) | I59: =I58 -> LRF Conifer for wood products, 50% residues used:Boreal North Canada | J59: =Lists!C139 -> LRF Conifer, rotation length reduced to 80y | K59: LRF Conifer for wood products, 50% residues used:Boreal North Canada:LRF Conifer, rotation length reduced to 80y | P59: LRF Broadleaf for wood products and bioenergy:Small Roundwood (50 wt% moisture) | Q59: =Lists!G470 -> Fencing (replacing concrete fencing), off cuts MDF (replacing plaster work) | R59: LRF Broadleaf for wood products and bioenergy:Small Roundwood (50 wt% moisture):Fencing (replacing concrete fencing), off cuts MDF (replacing plaster work) | AD59: Wood Chips (25 wt% moisture) | AE59: =Lists!H575 -> CHP | AF59: Wood Chips (25 wt% moisture):CHP | AO59: =AO58 -> Newly Abandoned LRF Broadleaf, residues unused:Maize Cropland | AP59: =Lists!E287 -> Peat soil which requires drainage | AQ59: Newly Abandoned LRF Broadleaf, residues unused:Maize Cropland:Peat soil which requires drainage
A60: Abandoned Perennial Cropland | B60: =Lists!G92 -> Land reverting to Boreal Coniferous Forest | C60: Abandoned Perennial Cropland:Land reverting to Boreal Coniferous Forest | E60: =E59 -> Northern Peatland | F60: =Lists!U112 -> Asia Continental (boreal region) | G60: Northern Peatland:Asia Continental (boreal region) | I60: =Lists!A140 -> LRF Broadleaf for wood products, residues unused:UK | J60: =Lists!B140 -> LRF Broadleaf for wood products and bioenergy | K60: LRF Broadleaf for wood products, residues unused:UK:LRF Broadleaf for wood products and bioenergy | P60: LRF Broadleaf for wood products and bioenergy:Small Roundwood (50 wt% moisture) | Q60: =Lists!H470 -> Displacing imported wood products | R60: LRF Broadleaf for wood products and bioenergy:Small Roundwood (50 wt% moisture):Displacing imported wood products | AD60: Wood Chips (25 wt% moisture) | AE60: =Lists!H576 -> Heat from Biomass Boiler | AF60: Wood Chips (25 wt% moisture):Heat from Biomass Boiler | AO60: =Lists!C288 -> LRF Broadleaf for wood products, rotation length increasing:LRF Broadleaf for wood products and bioenergy; rotation stays the same | AP60: =Lists!D288 -> No peat drainage | AQ60: LRF Broadleaf for wood products, rotation length increasing:LRF Broadleaf for wood products and bioenergy; rotation stays the same:No peat drainage
A61: Abandoned Perennial Cropland | B61: =Lists!G93 -> Land reverting to Boreal Tundra | C61: Abandoned Perennial Cropland:Land reverting to Boreal Tundra | E61: =Lists!V109 -> Marsh and Swamp | F61: =Lists!V110 -> Africa (tropical wet region) | G61: Marsh and Swamp :Africa (tropical wet region) | I61: =Lists!A141 -> LRF Broadleaf for wood products, residues unused:North-East USA | J61: =Lists!B141 -> LRF Broadleaf for wood products and bioenergy | K61: LRF Broadleaf for wood products, residues unused:North-East USA:LRF Broadleaf for wood products and bioenergy | P61: LRF Broadleaf for wood products and bioenergy:Small Roundwood (50 wt% moisture) | Q61: =Lists!I470 -> Remove from land and burn | R61: LRF Broadleaf for wood products and bioenergy:Small Roundwood (50 wt% moisture):Remove from land and burn | AD61: Wood Chips (25 wt% moisture) | AE61: =Lists!H577 -> Co-fire Bioelectricity | AF61: Wood Chips (25 wt% moisture):Co-fire Bioelectricity | AO61: =Lists!C289 -> Unmanaged Temperate Broadleaf:Newly Managed LRF Broadleaf | AP61: =Lists!D289 -> No peat drainage | AQ61: Unmanaged Temperate Broadleaf:Newly Managed LRF Broadleaf:No peat drainage
A62: Abandoned Perennial Cropland | B62: =Lists!G94 -> Land reverting to Boreal Mountain System | C62: Abandoned Perennial Cropland:Land reverting to Boreal Mountain System | E62: =E61 -> Marsh and Swamp | F62: =Lists!V111 -> North America (tropical wet region) | G62: Marsh and Swamp :North America (tropical wet region) | I62: =Lists!A142 -> LRF Broadleaf for wood products, residues unused:North USA | J62: =Lists!B142 -> LRF Broadleaf for wood products and bioenergy | K62: LRF Broadleaf for wood products, residues unused:North USA:LRF Broadleaf for wood products and bioenergy | P62: =Lists!C471 -> LRF Broadleaf for wood products and bioenergy:Woody Debris (25 wt% moisture). Continuous removal. | Q62: =Lists!D471 -> Leave residues to decay in forest | R62: LRF Broadleaf for wood products and bioenergy:Woody Debris (25 wt% moisture). Continuous removal.:Leave residues to decay in forest | AD62: Wood Chips (25 wt% moisture) | AE62: =Lists!H578 -> Dedicated Bioelectricity | AF62: Wood Chips (25 wt% moisture):Dedicated Bioelectricity | AO62: =Lists!C290 -> Unmanaged Temperate Broadleaf:SRC Willow Plantation | AP62: =Lists!D290 -> No peat drainage | AQ62: Unmanaged Temperate Broadleaf:SRC Willow Plantation:No peat drainage
A63: =Lists!H82 -> Abandoned Pasture | B63: =Lists!H83 -> Land reverting to Tropical Rainforest | C63: Abandoned Pasture:Land reverting to Tropical Rainforest | E63: =E62 -> Marsh and Swamp | F63: =Lists!V112 -> South America (tropical wet region) | G63: Marsh and Swamp :South America (tropical wet region) | I63: =Lists!A143 -> LRF Broadleaf for wood products, residues unused:East Canada | J63: =Lists!B143 -> LRF Broadleaf for wood products and bioenergy | K63: LRF Broadleaf for wood products, residues unused:East Canada:LRF Broadleaf for wood products and bioenergy | P63: =P62 -> LRF Broadleaf for wood products and bioenergy:Woody Debris (25 wt% moisture). Continuous removal. | Q63: =Lists!E471 -> Remove from land and burn | R63: LRF Broadleaf for wood products and bioenergy:Woody Debris (25 wt% moisture). Continuous removal.:Remove from land and burn | AD63: Wood Chips (25 wt% moisture) | AE63: =Lists!H579 -> Dedicated Bioelectricity with CCS | AF63: Wood Chips (25 wt% moisture):Dedicated Bioelectricity with CCS | AO63: =AO62 -> Unmanaged Temperate Broadleaf:SRC Willow Plantation | AP63: =Lists!E290 -> Peat soil which requires drainage | AQ63: Unmanaged Temperate Broadleaf:SRC Willow Plantation:Peat soil which requires drainage
A64: =A63 -> Abandoned Pasture | B64: =Lists!H84 -> Land reverting to Tropical Moist Deciduous Forest | C64: Abandoned Pasture:Land reverting to Tropical Moist Deciduous Forest | E64: Marsh and Swamp | F64: =Lists!V113 -> Asia Continental (tropical wet region) | G64: Marsh and Swamp :Asia Continental (tropical wet region) | I64: =Lists!A144 -> LRF Broadleaf for wood products, residues unused:South USA | J64: =Lists!B144 -> LRF Broadleaf for wood products and bioenergy | K64: LRF Broadleaf for wood products, residues unused:South USA:LRF Broadleaf for wood products and bioenergy | P64: =Lists!C472 -> LRF Broadleaf for wood products and bioenergy:Woody Debris (25 wt% moisture). Remove for 15 years only. | Q64: =Lists!D472 -> Leave residues to decay in forest | R64: LRF Broadleaf for wood products and bioenergy:Woody Debris (25 wt% moisture). Remove for 15 years only.:Leave residues to decay in forest | AD64: =Lists!K570 -> Wood Pellets (7 wt% moisture) | AE64: =Lists!K571 -> BioSNG | AF64: Wood Pellets (7 wt% moisture):BioSNG | AO64: =Lists!C291 -> Unmanaged Tropical Peat Forest:SRF Eucalyptus Plantation | AP64: =Lists!D291 -> Peat soil which requires drainage | AQ64: Unmanaged Tropical Peat Forest:SRF Eucalyptus Plantation:Peat soil which requires drainage
A65: =A64 -> Abandoned Pasture | B65: =Lists!H85 -> Land reverting to Tropical Dry Forest | C65: Abandoned Pasture:Land reverting to Tropical Dry Forest | E65: Marsh and Swamp | F65: =Lists!V114 -> Asia Insular (tropical wet region) | G65: Marsh and Swamp :Asia Insular (tropical wet region) | I65: =I64 -> LRF Broadleaf for wood products, residues unused:South USA | J65: =Lists!C144 -> Conversion of LRF Broadleaf to intensively managed SRF plantation, 20 year rotation | K65: LRF Broadleaf for wood products, residues unused:South USA:Conversion of LRF Broadleaf to intensively managed SRF plantation, 20 year rotation | P65: =P64 -> LRF Broadleaf for wood products and bioenergy:Woody Debris (25 wt% moisture). Remove for 15 years only. | Q65: =Lists!E472 -> Remove from land and burn | R65: LRF Broadleaf for wood products and bioenergy:Woody Debris (25 wt% moisture). Remove for 15 years only.:Remove from land and burn | AD65: =AD64 -> Wood Pellets (7 wt% moisture) | AE65: =Lists!K572 -> BtL | AF65: Wood Pellets (7 wt% moisture):BtL | AO65: =Lists!C292 -> Unmanaged Tropical Peat Forest:Maize Cropland | AP65: =Lists!D292 -> Peat soil which requires drainage | AQ65: Unmanaged Tropical Peat Forest:Maize Cropland:Peat soil which requires drainage
A66: Abandoned Pasture | B66: =Lists!H86 -> Land reverting to Tropical Mountain System | C66: Abandoned Pasture:Land reverting to Tropical Mountain System | E66: =Lists!W109 -> Tundra Woodland | F66: =Lists!W110 -> Europe (boreal region) | G66: Tundra Woodland:Europe (boreal region) | I66: =I65 -> LRF Broadleaf for wood products, residues unused:South USA | J66: =Lists!D144 -> Conversion of LRF Broadleaf to intensively managed SRF plantation, 25 year rotation | K66: LRF Broadleaf for wood products, residues unused:South USA:Conversion of LRF Broadleaf to intensively managed SRF plantation, 25 year rotation | P66: =Lists!C473 -> LRF Broadleaf for bioenergy, residues unused:All the wood harvested over the rotation (50 wt% moisture) | Q66: =Lists!D473 -> Leave the land unharvested/unmanaged | R66: LRF Broadleaf for bioenergy, residues unused:All the wood harvested over the rotation (50 wt% moisture):Leave the land unharvested/unmanaged | AD66: =AD65 -> Wood Pellets (7 wt% moisture) | AE66: =Lists!K573 -> Ethanol | AF66: Wood Pellets (7 wt% moisture):Ethanol | AO66: =Lists!C293 -> Unmanaged Tropical Peat Forest:Palm Plantation | AP66: =Lists!D293 -> Peat soil which requires drainage | AQ66: Unmanaged Tropical Peat Forest:Palm Plantation:Peat soil which requires drainage
A67: Abandoned Pasture | B67: =Lists!H87 -> Land reverting to Tropical Woody Savanna | C67: Abandoned Pasture:Land reverting to Tropical Woody Savanna | E67: =E66 -> Tundra Woodland | F67: =Lists!W111 -> North America (boreal region) | G67: Tundra Woodland:North America (boreal region) | I67: LRF Broadleaf for wood products, residues unused:South USA | J67: =Lists!E144 -> Conversion of LRF Broadleaf to SRC Willow over 3 y | K67: LRF Broadleaf for wood products, residues unused:South USA:Conversion of LRF Broadleaf to SRC Willow over 3 y | P67: =Lists!C474 -> LRF Broadleaf, rotation length reduced to 50y:All additional wood compared to counterfactual (50 wt% moisture) | Q67: =Lists!D474 -> Leave forest in previous management | R67: LRF Broadleaf, rotation length reduced to 50y:All additional wood compared to counterfactual (50 wt% moisture):Leave forest in previous management | AD67: Wood Pellets (7 wt% moisture) | AE67: =Lists!K574 -> Gas from Slow Pyrolysis (Biochar co-product) | AF67: Wood Pellets (7 wt% moisture):Gas from Slow Pyrolysis (Biochar co-product) | AO67: =Lists!C294 -> Unmanaged Tropical Non-Peat Rainforest:SRF Eucalyptus Plantation | AP67: =Lists!D294 -> No peat drainage | AQ67: Unmanaged Tropical Non-Peat Rainforest:SRF Eucalyptus Plantation:No peat drainage
A68: Abandoned Pasture | B68: =Lists!H88 -> Land reverting to Temperate Oceanic Forest | C68: Abandoned Pasture:Land reverting to Temperate Oceanic Forest | E68: =E67 -> Tundra Woodland | F68: =Lists!W112 -> Asia Continental (boreal region) | G68: Tundra Woodland:Asia Continental (boreal region) | I68: LRF Broadleaf for wood products, residues unused:South USA | J68: =Lists!F144 -> Conversion of LRF Broadleaf to SRC Willow over 70 y | K68: LRF Broadleaf for wood products, residues unused:South USA:Conversion of LRF Broadleaf to SRC Willow over 70 y | P68: =Lists!C475 -> LRF Broadleaf, rotation length reduced to 50y:All additional non-saw log wood compared to counterfactual (50 wt% moisture). Saw logs to construction (window frame). | Q68: =Lists!D475 -> Leave forest in previous management | R68: LRF Broadleaf, rotation length reduced to 50y:All additional non-saw log wood compared to counterfactual (50 wt% moisture). Saw logs to construction (window frame).:Leave forest in previous management | AD68: Wood Pellets (7 wt% moisture) | AE68: =Lists!K575 -> CHP | AF68: Wood Pellets (7 wt% moisture):CHP | AO68: =Lists!C295 -> Unmanaged Tropical Non-Peat Rainforest:Maize Cropland | AP68: =Lists!D295 -> No peat drainage | AQ68: Unmanaged Tropical Non-Peat Rainforest:Maize Cropland:No peat drainage
A69: Abandoned Pasture | B69: =Lists!H89 -> Land reverting to Temperate Continental Forest | C69: Abandoned Pasture:Land reverting to Temperate Continental Forest | E69: =Lists!X109 -> Temperate shrub land | F69: =Lists!X110 -> Europe (temperate dry region) | G69: Temperate shrub land :Europe (temperate dry region) | I69: LRF Broadleaf for wood products, residues unused:South USA | J69: =Lists!G144 -> LRF Broadleaf, rotation length reduced to 60y | K69: LRF Broadleaf for wood products, residues unused:South USA:LRF Broadleaf, rotation length reduced to 60y | P69: =Lists!C476 -> LRF Broadleaf, rotation length reduced to 60y:All additional wood compared to counterfactual (50 wt% moisture) | Q69: =Lists!D476 -> Leave forest in previous management | R69: LRF Broadleaf, rotation length reduced to 60y:All additional wood compared to counterfactual (50 wt% moisture):Leave forest in previous management | AD69: Wood Pellets (7 wt% moisture) | AE69: =Lists!K576 -> Heat from Biomass Boiler | AF69: Wood Pellets (7 wt% moisture):Heat from Biomass Boiler | AO69: =Lists!C296 -> Unmanaged Tropical Non-Peat Rainforest:Palm Plantation | AP69: =Lists!D296 -> No peat drainage | AQ69: Unmanaged Tropical Non-Peat Rainforest:Palm Plantation:No peat drainage
A70: Abandoned Pasture | B70: =Lists!H90 -> Land reverting to Temperate Mountain System | C70: Abandoned Pasture:Land reverting to Temperate Mountain System | E70: =E69 -> Temperate shrub land | F70: =Lists!X111 -> North America (temperate dry region) | G70: Temperate shrub land :North America (temperate dry region) | I70: =Lists!A145 -> Newly Abandoned LRF Broadleaf, residues unused:North-East USA | J70: =Lists!B145 -> LRF Broadleaf for bioenergy, residues unused | K70: Newly Abandoned LRF Broadleaf, residues unused:North-East USA:LRF Broadleaf for bioenergy, residues unused | P70: =Lists!C477 -> LRF Broadleaf, rotation length reduced to 60y:All additional non-saw log wood compared to counterfactual (50 wt% moisture). Saw logs to construction (window frame). | Q70: =Lists!D477 -> Leave forest in previous management | R70: LRF Broadleaf, rotation length reduced to 60y:All additional non-saw log wood compared to counterfactual (50 wt% moisture). Saw logs to construction (window frame).:Leave forest in previous management | AD70: Wood Pellets (7 wt% moisture) | AE70: =Lists!K577 -> Co-fire Bioelectricity | AF70: Wood Pellets (7 wt% moisture):Co-fire Bioelectricity | AO70: =Lists!C297 -> Old Growth Fast Growing Conifer (> 200 years old):Newly Managed LRF Conifer (fast growing) | AP70: =Lists!D297 -> No peat drainage | AQ70: Old Growth Fast Growing Conifer (> 200 years old):Newly Managed LRF Conifer (fast growing):No peat drainage
A71: Abandoned Pasture | B71: =Lists!H91 -> Land reverting to Temperate Shrub or Grassland | C71: Abandoned Pasture:Land reverting to Temperate Shrub or Grassland | E71: =E70 -> Temperate shrub land | F71: =Lists!X112 -> New Zealand (temperate dry region) | G71: Temperate shrub land :New Zealand (temperate dry region) | I71: =I70 -> Newly Abandoned LRF Broadleaf, residues unused:North-East USA | J71: =Lists!C145 -> SRC Willow Plantation | K71: Newly Abandoned LRF Broadleaf, residues unused:North-East USA:SRC Willow Plantation | P71: =Lists!C478 -> LRF Broadleaf, rotation length reduced to 80y:All additional wood compared to counterfactual (50 wt% moisture) | Q71: =Lists!D478 -> Leave forest in previous management | R71: LRF Broadleaf, rotation length reduced to 80y:All additional wood compared to counterfactual (50 wt% moisture):Leave forest in previous management | AD71: Wood Pellets (7 wt% moisture) | AE71: =Lists!K578 -> Dedicated Bioelectricity | AF71: Wood Pellets (7 wt% moisture):Dedicated Bioelectricity | AO71: =Lists!C298 -> Old Growth Slow Growing Conifer (> 200 years old):Newly Managed LRF Conifer (slow growing) | AP71: =Lists!D298 -> No peat drainage | AQ71: Old Growth Slow Growing Conifer (> 200 years old):Newly Managed LRF Conifer (slow growing):No peat drainage
A72: Abandoned Pasture | B72: =Lists!H92 -> Land reverting to Boreal Coniferous Forest | C72: Abandoned Pasture:Land reverting to Boreal Coniferous Forest | E72: Temperate shrub land | F72: =Lists!X113 -> South America (temperate dry region) | G72: Temperate shrub land :South America (temperate dry region) | I72: =I71 -> Newly Abandoned LRF Broadleaf, residues unused:North-East USA | J72: =Lists!D145 -> Miscanthus Plantation | K72: Newly Abandoned LRF Broadleaf, residues unused:North-East USA:Miscanthus Plantation | P72: =Lists!C479 -> LRF Broadleaf, rotation length reduced to 80y:All additional non-saw log wood compared to counterfactual (50 wt% moisture). Saw logs to construction (window frame). | Q72: =Lists!D479 -> Leave forest in previous management | R72: LRF Broadleaf, rotation length reduced to 80y:All additional non-saw log wood compared to counterfactual (50 wt% moisture). Saw logs to construction (window frame).:Leave forest in previous management | AD72: Wood Pellets (7 wt% moisture) | AE72: =Lists!K579 -> Dedicated Bioelectricity with CCS | AF72: Wood Pellets (7 wt% moisture):Dedicated Bioelectricity with CCS | AO72: =Lists!C299 -> Northern Peatland:SRC Willow Plantation | AP72: =Lists!D299 -> Peat soil which requires drainage | AQ72: Northern Peatland:SRC Willow Plantation:Peat soil which requires drainage
A73: Abandoned Pasture | B73: =Lists!H93 -> Land reverting to Boreal Tundra | C73: Abandoned Pasture:Land reverting to Boreal Tundra | E73: =Lists!Y109 -> Temperate grassland (e.g. Steppes, grassland praires) | F73: =Lists!Y110 -> Europe (temperate dry region) | G73: Temperate grassland (e.g. Steppes, grassland praires):Europe (temperate dry region) | I73: Newly Abandoned LRF Broadleaf, residues unused:North-East USA | J73: =Lists!E145 -> Maize Cropland | K73: Newly Abandoned LRF Broadleaf, residues unused:North-East USA:Maize Cropland | P73: =Lists!C480 -> LRF Broadleaf for wood products and bioenergy; rotation stays the same:All additional wood compared to counterfactual (50 wt% moisture) | Q73: =Lists!D480 -> Leave forest in previous management | R73: LRF Broadleaf for wood products and bioenergy; rotation stays the same:All additional wood compared to counterfactual (50 wt% moisture):Leave forest in previous management | AO73: =Lists!C300 -> Northern Peatland:Miscanthus Plantation | AP73: =Lists!D300 -> Peat soil which requires drainage | AQ73: Northern Peatland:Miscanthus Plantation:Peat soil which requires drainage
A74: Abandoned Pasture | B74: =Lists!H94 -> Land reverting to Boreal Mountain System | C74: Abandoned Pasture:Land reverting to Boreal Mountain System | E74: =E73 -> Temperate grassland (e.g. Steppes, grassland praires) | F74: =Lists!Y111 -> North America (temperate dry region) | G74: Temperate grassland (e.g. Steppes, grassland praires):North America (temperate dry region) | I74: =Lists!A146 -> Newly Abandoned LRF Broadleaf, residues unused:North USA | J74: =Lists!B146 -> LRF Broadleaf for bioenergy, residues unused | K74: Newly Abandoned LRF Broadleaf, residues unused:North USA:LRF Broadleaf for bioenergy, residues unused | P74: =Lists!C481 -> Newly Managed LRF Broadleaf:All additional wood created by new management (50 wt% moisture) | Q74: =Lists!D481 -> Leave the land unharvested/unmanaged | R74: Newly Managed LRF Broadleaf:All additional wood created by new management (50 wt% moisture):Leave the land unharvested/unmanaged | AO74: =Lists!C301 -> Northern Peatland:Maize Cropland | AP74: =Lists!D301 -> Peat soil which requires drainage | AQ74: Northern Peatland:Maize Cropland:Peat soil which requires drainage
E75: =E74 -> Temperate grassland (e.g. Steppes, grassland praires) | F75: =Lists!Y112 -> New Zealand (temperate dry region) | G75: Temperate grassland (e.g. Steppes, grassland praires):New Zealand (temperate dry region) | I75: =I74 -> Newly Abandoned LRF Broadleaf, residues unused:North USA | J75: =Lists!C146 -> SRC Willow Plantation | K75: Newly Abandoned LRF Broadleaf, residues unused:North USA:SRC Willow Plantation | P75: =Lists!C482 -> SRC Willow Plantation:SRC Chips (50 wt% moisture) | Q75: =Lists!D482 -> Leave the land unharvested/unmanaged | R75: SRC Willow Plantation:SRC Chips (50 wt% moisture):Leave the land unharvested/unmanaged | AO75: =Lists!C302 -> Marsh and Swamp :SRF Eucalyptus Plantation | AP75: =Lists!D302 -> Peat soil which requires drainage | AQ75: Marsh and Swamp :SRF Eucalyptus Plantation:Peat soil which requires drainage
E76: Temperate grassland (e.g. Steppes, grassland praires) | F76: =Lists!Y113 -> South America (temperate dry region) | G76: Temperate grassland (e.g. Steppes, grassland praires):South America (temperate dry region) | I76: =I75 -> Newly Abandoned LRF Broadleaf, residues unused:North USA | J76: =Lists!D146 -> Miscanthus Plantation | K76: Newly Abandoned LRF Broadleaf, residues unused:North USA:Miscanthus Plantation | P76: =Lists!C483 -> SRF Eucalyptus Plantation:Eucalyptus Roundwood (50 wt% moisture) | Q76: =Lists!D483 -> Leave the land unharvested/unmanaged | R76: SRF Eucalyptus Plantation:Eucalyptus Roundwood (50 wt% moisture):Leave the land unharvested/unmanaged | AO76: =Lists!C303 -> Marsh and Swamp :Maize Cropland | AP76: =Lists!D303 -> Peat soil which requires drainage | AQ76: Marsh and Swamp :Maize Cropland:Peat soil which requires drainage
E77: =Lists!Z109 -> Tropical Woody Savannah | F77: =Lists!Z110 -> Africa (tropical dry region) | G77: Tropical Woody Savannah:Africa (tropical dry region) | I77: Newly Abandoned LRF Broadleaf, residues unused:North USA | J77: =Lists!E146 -> Maize Cropland | K77: Newly Abandoned LRF Broadleaf, residues unused:North USA:Maize Cropland | P77: =Lists!C484 -> Palm Plantation:Palm Fruit (34 wt% moisture) | Q77: =Lists!D484 -> Leave the land unharvested/unmanaged | R77: Palm Plantation:Palm Fruit (34 wt% moisture):Leave the land unharvested/unmanaged | AO77: =Lists!C304 -> Marsh and Swamp :Palm Plantation | AP77: =Lists!D304 -> Peat soil which requires drainage | AQ77: Marsh and Swamp :Palm Plantation:Peat soil which requires drainage
E78: =E77 -> Tropical Woody Savannah | F78: =Lists!Z111 -> North America (tropical dry region) | G78: =E78&":"&F78 -> Tropical Woody Savannah:North America (tropical dry region) | I78: =Lists!A147 -> Newly Abandoned LRF Broadleaf, residues unused:East Canada | J78: =Lists!B147 -> LRF Broadleaf for bioenergy, residues unused | K78: =I78&":"&J78 -> Newly Abandoned LRF Broadleaf, residues unused:East Canada:LRF Broadleaf for bioenergy, residues unused | P78: =Lists!C485 -> Maize Cropland:Maize Whole Crop (70 wt% moisture) | Q78: =Lists!D485 -> Leave the land unharvested/unmanaged | R78: Maize Cropland:Maize Whole Crop (70 wt% moisture):Leave the land unharvested/unmanaged | AO78: =Lists!C305 -> Tundra Woodland:SRC Willow Plantation | AP78: =Lists!D305 -> No peat drainage | AQ78: =AO78&":"&AP78 -> Tundra Woodland:SRC Willow Plantation:No peat drainage
E79: =E78 -> Tropical Woody Savannah | F79: =Lists!Z112 -> South America (tropical dry region) | G79: Tropical Woody Savannah:South America (tropical dry region) | I79: =I78 -> Newly Abandoned LRF Broadleaf, residues unused:East Canada | J79: =Lists!C147 -> SRC Willow Plantation | K79: Newly Abandoned LRF Broadleaf, residues unused:East Canada:SRC Willow Plantation | P79: =Lists!C486 -> Miscanthus Plantation:Miscanthus Chips (30 wt% moisture) | Q79: =Lists!D486 -> Leave the land unharvested/unmanaged | R79: Miscanthus Plantation:Miscanthus Chips (30 wt% moisture):Leave the land unharvested/unmanaged | AO79: =AO78 -> Tundra Woodland:SRC Willow Plantation | AP79: =Lists!E305 -> Peat soil which requires drainage | AQ79: Tundra Woodland:SRC Willow Plantation:Peat soil which requires drainage
E80: Tropical Woody Savannah | F80: =Lists!Z113 -> Asia Continental (tropical dry region) | G80: Tropical Woody Savannah:Asia Continental (tropical dry region) | I80: =I79 -> Newly Abandoned LRF Broadleaf, residues unused:East Canada | J80: =Lists!D147 -> Miscanthus Plantation | K80: Newly Abandoned LRF Broadleaf, residues unused:East Canada:Miscanthus Plantation | AO80: =Lists!C306 -> Tundra Woodland:Miscanthus Plantation | AP80: =Lists!D306 -> No peat drainage | AQ80: Tundra Woodland:Miscanthus Plantation:No peat drainage
E81: Tropical Woody Savannah | F81: =Lists!Z114 -> Asia Insular (tropical dry region) | G81: Tropical Woody Savannah:Asia Insular (tropical dry region) | I81: Newly Abandoned LRF Broadleaf, residues unused:East Canada | J81: =Lists!E147 -> Maize Cropland | K81: Newly Abandoned LRF Broadleaf, residues unused:East Canada:Maize Cropland | AO81: =AO80 -> Tundra Woodland:Miscanthus Plantation | AP81: =Lists!E306 -> Peat soil which requires drainage | AQ81: Tundra Woodland:Miscanthus Plantation:Peat soil which requires drainage
E82: =Lists!AA109 -> Tropical Grassland Savannah | F82: =Lists!AA110 -> Africa (tropical dry region) | G82: Tropical Grassland Savannah:Africa (tropical dry region) | I82: =Lists!A148 -> LRF Broadleaf for wood products, 50% residues used:East Canada | J82: =Lists!B148 -> LRF Broadleaf, rotation length reduced to 50y | K82: LRF Broadleaf for wood products, 50% residues used:East Canada:LRF Broadleaf, rotation length reduced to 50y | AO82: =Lists!C307 -> Tundra Woodland:Maize Cropland | AP82: =Lists!D307 -> No peat drainage | AQ82: Tundra Woodland:Maize Cropland:No peat drainage
E83: =E82 -> Tropical Grassland Savannah | F83: =Lists!AA111 -> North America (tropical dry region) | G83: Tropical Grassland Savannah:North America (tropical dry region) | I83: =I82 -> LRF Broadleaf for wood products, 50% residues used:East Canada | J83: =Lists!C148 -> LRF Broadleaf, rotation length reduced to 80y | K83: LRF Broadleaf for wood products, 50% residues used:East Canada:LRF Broadleaf, rotation length reduced to 80y | AO83: =AO82 -> Tundra Woodland:Maize Cropland | AP83: =Lists!E307 -> Peat soil which requires drainage | AQ83: Tundra Woodland:Maize Cropland:Peat soil which requires drainage
E84: =E83 -> Tropical Grassland Savannah | F84: =Lists!AA112 -> South America (tropical dry region) | G84: Tropical Grassland Savannah:South America (tropical dry region) | I84: =Lists!A149 -> LRF Broadleaf for wood products, rotation length increasing:South USA | J84: =Lists!B149 -> LRF Broadleaf for wood products and bioenergy; rotation stays the same | K84: LRF Broadleaf for wood products, rotation length increasing:South USA:LRF Broadleaf for wood products and bioenergy; rotation stays the same | AO84: =Lists!C308 -> Temperate shrub land :SRC Willow Plantation | AP84: =Lists!D308 -> No peat drainage | AQ84: Temperate shrub land :SRC Willow Plantation:No peat drainage
E85: Tropical Grassland Savannah | F85: =Lists!AA113 -> Asia Continental (tropical dry region) | G85: Tropical Grassland Savannah:Asia Continental (tropical dry region) | I85: =Lists!A150 -> Unmanaged Temperate Broadleaf:UK | J85: =Lists!B150 -> Newly Managed LRF Broadleaf | K85: Unmanaged Temperate Broadleaf:UK:Newly Managed LRF Broadleaf | AO85: =AO84 -> Temperate shrub land :SRC Willow Plantation | AP85: =Lists!E308 -> Peat soil which requires drainage | AQ85: Temperate shrub land :SRC Willow Plantation:Peat soil which requires drainage
E86: Tropical Grassland Savannah | F86: =Lists!AA114 -> Asia Insular (tropical dry region) | G86: Tropical Grassland Savannah:Asia Insular (tropical dry region) | I86: =I85 -> Unmanaged Temperate Broadleaf:UK | J86: =Lists!C150 -> SRC Willow Plantation | K86: Unmanaged Temperate Broadleaf:UK:SRC Willow Plantation | AO86: =Lists!C309 -> Temperate shrub land :Miscanthus Plantation | AP86: =Lists!D309 -> No peat drainage | AQ86: Temperate shrub land :Miscanthus Plantation:No peat drainage
E87: =Lists!AB109 -> Land reverting to Tropical Rainforest | F87: =Lists!AB110 -> Africa (tropical wet region) | G87: Land reverting to Tropical Rainforest:Africa (tropical wet region) | I87: =Lists!A151 -> Unmanaged Tropical Peat Forest:Africa (tropical wet region) | J87: =Lists!B151 -> SRF Eucalyptus Plantation | K87: Unmanaged Tropical Peat Forest:Africa (tropical wet region):SRF Eucalyptus Plantation | AO87: =AO86 -> Temperate shrub land :Miscanthus Plantation | AP87: =Lists!E309 -> Peat soil which requires drainage | AQ87: Temperate shrub land :Miscanthus Plantation:Peat soil which requires drainage
E88: =E87 -> Land reverting to Tropical Rainforest | F88: =Lists!AB111 -> North America (tropical wet region) | G88: Land reverting to Tropical Rainforest:North America (tropical wet region) | I88: =I87 -> Unmanaged Tropical Peat Forest:Africa (tropical wet region) | J88: =Lists!C151 -> Maize Cropland | K88: Unmanaged Tropical Peat Forest:Africa (tropical wet region):Maize Cropland | AO88: =Lists!C310 -> Temperate shrub land :Maize Cropland | AP88: =Lists!D310 -> No peat drainage | AQ88: Temperate shrub land :Maize Cropland:No peat drainage
E89: =E88 -> Land reverting to Tropical Rainforest | F89: =Lists!AB112 -> South America (tropical wet region) | G89: Land reverting to Tropical Rainforest:South America (tropical wet region) | I89: =I88 -> Unmanaged Tropical Peat Forest:Africa (tropical wet region) | J89: =Lists!D151 -> Palm Plantation | K89: Unmanaged Tropical Peat Forest:Africa (tropical wet region):Palm Plantation | AO89: =AO88 -> Temperate shrub land :Maize Cropland | AP89: =Lists!E310 -> Peat soil which requires drainage | AQ89: Temperate shrub land :Maize Cropland:Peat soil which requires drainage
E90: Land reverting to Tropical Rainforest | F90: =Lists!AB113 -> Asia Continental (tropical wet region) | G90: Land reverting to Tropical Rainforest:Asia Continental (tropical wet region) | I90: =Lists!A152 -> Unmanaged Tropical Peat Forest:North America (tropical wet region) | J90: =Lists!B152 -> SRF Eucalyptus Plantation | K90: Unmanaged Tropical Peat Forest:North America (tropical wet region):SRF Eucalyptus Plantation | AO90: =Lists!C311 -> Temperate grassland (e.g. Steppes, grassland praires):SRC Willow Plantation | AP90: =Lists!D311 -> No peat drainage | AQ90: Temperate grassland (e.g. Steppes, grassland praires):SRC Willow Plantation:No peat drainage
E91: Land reverting to Tropical Rainforest | F91: =Lists!AB114 -> Asia Insular (tropical wet region) | G91: Land reverting to Tropical Rainforest:Asia Insular (tropical wet region) | I91: =I90 -> Unmanaged Tropical Peat Forest:North America (tropical wet region) | J91: =Lists!C152 -> Maize Cropland | K91: Unmanaged Tropical Peat Forest:North America (tropical wet region):Maize Cropland | AO91: =AO90 -> Temperate grassland (e.g. Steppes, grassland praires):SRC Willow Plantation | AP91: =Lists!E311 -> Peat soil which requires drainage | AQ91: Temperate grassland (e.g. Steppes, grassland praires):SRC Willow Plantation:Peat soil which requires drainage
E92: =Lists!AC109 -> Land reverting to Tropical Moist Deciduous Forest | F92: =Lists!AC110 -> Africa (tropical moist region) | G92: Land reverting to Tropical Moist Deciduous Forest:Africa (tropical moist region) | I92: =I91 -> Unmanaged Tropical Peat Forest:North America (tropical wet region) | J92: =Lists!D152 -> Palm Plantation | K92: Unmanaged Tropical Peat Forest:North America (tropical wet region):Palm Plantation | AO92: =Lists!C312 -> Temperate grassland (e.g. Steppes, grassland praires):Miscanthus Plantation | AP92: =Lists!D312 -> No peat drainage | AQ92: Temperate grassland (e.g. Steppes, grassland praires):Miscanthus Plantation:No peat drainage
E93: =E92 -> Land reverting to Tropical Moist Deciduous Forest | F93: =Lists!AC111 -> North America (tropical moist region) | G93: Land reverting to Tropical Moist Deciduous Forest:North America (tropical moist region) | I93: =Lists!A153 -> Unmanaged Tropical Peat Forest:South America (tropical wet region) | J93: =Lists!B153 -> SRF Eucalyptus Plantation | K93: Unmanaged Tropical Peat Forest:South America (tropical wet region):SRF Eucalyptus Plantation | AO93: =AO92 -> Temperate grassland (e.g. Steppes, grassland praires):Miscanthus Plantation | AP93: =Lists!E312 -> Peat soil which requires drainage | AQ93: Temperate grassland (e.g. Steppes, grassland praires):Miscanthus Plantation:Peat soil which requires drainage
E94: =E93 -> Land reverting to Tropical Moist Deciduous Forest | F94: =Lists!AC112 -> South America (tropical moist region) | G94: Land reverting to Tropical Moist Deciduous Forest:South America (tropical moist region) | I94: =I93 -> Unmanaged Tropical Peat Forest:South America (tropical wet region) | J94: =Lists!C153 -> Maize Cropland | K94: Unmanaged Tropical Peat Forest:South America (tropical wet region):Maize Cropland | AO94: =Lists!C313 -> Temperate grassland (e.g. Steppes, grassland praires):Maize Cropland | AP94: =Lists!D313 -> No peat drainage | AQ94: Temperate grassland (e.g. Steppes, grassland praires):Maize Cropland:No peat drainage
E95: Land reverting to Tropical Moist Deciduous Forest | F95: =Lists!AC113 -> Asia Continental (tropical moist region) | G95: Land reverting to Tropical Moist Deciduous Forest:Asia Continental (tropical moist region) | I95: =I94 -> Unmanaged Tropical Peat Forest:South America (tropical wet region) | J95: =Lists!D153 -> Palm Plantation | K95: Unmanaged Tropical Peat Forest:South America (tropical wet region):Palm Plantation | AO95: =AO94 -> Temperate grassland (e.g. Steppes, grassland praires):Maize Cropland | AP95: =Lists!E313 -> Peat soil which requires drainage | AQ95: Temperate grassland (e.g. Steppes, grassland praires):Maize Cropland:Peat soil which requires drainage
E96: Land reverting to Tropical Moist Deciduous Forest | F96: =Lists!AC114 -> Asia Insular (tropical moist region) | G96: Land reverting to Tropical Moist Deciduous Forest:Asia Insular (tropical moist region) | I96: =Lists!A154 -> Unmanaged Tropical Peat Forest:Asia Continental (tropical wet region) | J96: =Lists!B154 -> SRF Eucalyptus Plantation | K96: Unmanaged Tropical Peat Forest:Asia Continental (tropical wet region):SRF Eucalyptus Plantation | AO96: =Lists!C314 -> Tropical Woody Savannah:SRF Eucalyptus Plantation | AP96: =Lists!D314 -> No peat drainage | AQ96: Tropical Woody Savannah:SRF Eucalyptus Plantation:No peat drainage
E97: =Lists!AD109 -> Land reverting to Tropical Dry Forest | F97: =Lists!AD110 -> Africa (tropical dry region) | G97: Land reverting to Tropical Dry Forest:Africa (tropical dry region) | I97: =I96 -> Unmanaged Tropical Peat Forest:Asia Continental (tropical wet region) | J97: =Lists!C154 -> Maize Cropland | K97: Unmanaged Tropical Peat Forest:Asia Continental (tropical wet region):Maize Cropland | AO97: =AO96 -> Tropical Woody Savannah:SRF Eucalyptus Plantation | AP97: =Lists!E314 -> Peat soil which requires drainage | AQ97: Tropical Woody Savannah:SRF Eucalyptus Plantation:Peat soil which requires drainage
E98: =E97 -> Land reverting to Tropical Dry Forest | F98: =Lists!AD111 -> North America (tropical dry region) | G98: Land reverting to Tropical Dry Forest:North America (tropical dry region) | I98: =I97 -> Unmanaged Tropical Peat Forest:Asia Continental (tropical wet region) | J98: =Lists!D154 -> Palm Plantation | K98: Unmanaged Tropical Peat Forest:Asia Continental (tropical wet region):Palm Plantation | AO98: =Lists!C315 -> Tropical Woody Savannah:Maize Cropland | AP98: =Lists!D315 -> No peat drainage | AQ98: Tropical Woody Savannah:Maize Cropland:No peat drainage
E99: =E98 -> Land reverting to Tropical Dry Forest | F99: =Lists!AD112 -> South America (tropical dry region) | G99: Land reverting to Tropical Dry Forest:South America (tropical dry region) | I99: =Lists!A155 -> Unmanaged Tropical Peat Forest:Asia Insular (tropical wet region) | J99: =Lists!B155 -> SRF Eucalyptus Plantation | K99: Unmanaged Tropical Peat Forest:Asia Insular (tropical wet region):SRF Eucalyptus Plantation | AO99: =AO98 -> Tropical Woody Savannah:Maize Cropland | AP99: =Lists!E315 -> Peat soil which requires drainage | AQ99: Tropical Woody Savannah:Maize Cropland:Peat soil which requires drainage
E100: Land reverting to Tropical Dry Forest | F100: =Lists!AD113 -> Asia Continental (tropical dry region) | G100: Land reverting to Tropical Dry Forest:Asia Continental (tropical dry region) | I100: =I99 -> Unmanaged Tropical Peat Forest:Asia Insular (tropical wet region) | J100: =Lists!C155 -> Maize Cropland | K100: Unmanaged Tropical Peat Forest:Asia Insular (tropical wet region):Maize Cropland | AO100: =Lists!C316 -> Tropical Woody Savannah:Palm Plantation | AP100: =Lists!D316 -> No peat drainage | AQ100: Tropical Woody Savannah:Palm Plantation:No peat drainage
E101: Land reverting to Tropical Dry Forest | F101: =Lists!AD114 -> Asia Insular (tropical dry region) | G101: Land reverting to Tropical Dry Forest:Asia Insular (tropical dry region) | I101: =I100 -> Unmanaged Tropical Peat Forest:Asia Insular (tropical wet region) | J101: =Lists!D155 -> Palm Plantation | K101: Unmanaged Tropical Peat Forest:Asia Insular (tropical wet region):Palm Plantation | AO101: =AO100 -> Tropical Woody Savannah:Palm Plantation | AP101: =Lists!E316 -> Peat soil which requires drainage | AQ101: Tropical Woody Savannah:Palm Plantation:Peat soil which requires drainage
E102: =Lists!AE109 -> Land reverting to Tropical Mountain System | F102: =Lists!AE110 -> Africa (tropical montane region) | G102: Land reverting to Tropical Mountain System:Africa (tropical montane region) | I102: =Lists!A156 -> Unmanaged Tropical Non-Peat Rainforest:Africa (tropical wet region) | J102: =Lists!B156 -> SRF Eucalyptus Plantation | K102: Unmanaged Tropical Non-Peat Rainforest:Africa (tropical wet region):SRF Eucalyptus Plantation | AO102: =Lists!C317 -> Tropical Grassland Savannah:SRF Eucalyptus Plantation | AP102: =Lists!D317 -> No peat drainage | AQ102: Tropical Grassland Savannah:SRF Eucalyptus Plantation:No peat drainage
E103: =E102 -> Land reverting to Tropical Mountain System | F103: =Lists!AE111 -> North America (tropical montane region) | G103: Land reverting to Tropical Mountain System:North America (tropical montane region) | I103: =I102 -> Unmanaged Tropical Non-Peat Rainforest:Africa (tropical wet region) | J103: =Lists!C156 -> Maize Cropland | K103: Unmanaged Tropical Non-Peat Rainforest:Africa (tropical wet region):Maize Cropland | AO103: =AO102 -> Tropical Grassland Savannah:SRF Eucalyptus Plantation | AP103: =Lists!E317 -> Peat soil which requires drainage | AQ103: Tropical Grassland Savannah:SRF Eucalyptus Plantation:Peat soil which requires drainage
E104: =E103 -> Land reverting to Tropical Mountain System | F104: =Lists!AE112 -> South America (tropical montane region) | G104: Land reverting to Tropical Mountain System:South America (tropical montane region) | I104: =I103 -> Unmanaged Tropical Non-Peat Rainforest:Africa (tropical wet region) | J104: =Lists!D156 -> Palm Plantation | K104: Unmanaged Tropical Non-Peat Rainforest:Africa (tropical wet region):Palm Plantation | AO104: =Lists!C318 -> Tropical Grassland Savannah:Maize Cropland | AP104: =Lists!D318 -> No peat drainage | AQ104: Tropical Grassland Savannah:Maize Cropland:No peat drainage
E105: Land reverting to Tropical Mountain System | F105: =Lists!AE113 -> Asia Continental (tropical montane region) | G105: Land reverting to Tropical Mountain System:Asia Continental (tropical montane region) | I105: =Lists!A157 -> Unmanaged Tropical Non-Peat Rainforest:North America (tropical wet region) | J105: =Lists!B157 -> SRF Eucalyptus Plantation | K105: Unmanaged Tropical Non-Peat Rainforest:North America (tropical wet region):SRF Eucalyptus Plantation | AO105: =AO104 -> Tropical Grassland Savannah:Maize Cropland | AP105: =Lists!E318 -> Peat soil which requires drainage | AQ105: Tropical Grassland Savannah:Maize Cropland:Peat soil which requires drainage
E106: Land reverting to Tropical Mountain System | F106: =Lists!AE114 -> Asia Insular (tropical montane region) | G106: Land reverting to Tropical Mountain System:Asia Insular (tropical montane region) | I106: =I105 -> Unmanaged Tropical Non-Peat Rainforest:North America (tropical wet region) | J106: =Lists!C157 -> Maize Cropland | K106: Unmanaged Tropical Non-Peat Rainforest:North America (tropical wet region):Maize Cropland | AO106: =Lists!C319 -> Tropical Grassland Savannah:Palm Plantation | AP106: =Lists!D319 -> No peat drainage | AQ106: Tropical Grassland Savannah:Palm Plantation:No peat drainage
E107: =Lists!AF109 -> Land reverting to Tropical Woody Savanna | F107: =Lists!AF110 -> Africa (tropical dry region) | G107: Land reverting to Tropical Woody Savanna:Africa (tropical dry region) | I107: =I106 -> Unmanaged Tropical Non-Peat Rainforest:North America (tropical wet region) | J107: =Lists!D157 -> Palm Plantation | K107: Unmanaged Tropical Non-Peat Rainforest:North America (tropical wet region):Palm Plantation | AO107: =AO106 -> Tropical Grassland Savannah:Palm Plantation | AP107: =Lists!E319 -> Peat soil which requires drainage | AQ107: Tropical Grassland Savannah:Palm Plantation:Peat soil which requires drainage
E108: =E107 -> Land reverting to Tropical Woody Savanna | F108: =Lists!AF111 -> North America (tropical dry region) | G108: Land reverting to Tropical Woody Savanna:North America (tropical dry region) | I108: =Lists!A158 -> Unmanaged Tropical Non-Peat Rainforest:South America (tropical wet region) | J108: =Lists!B158 -> SRF Eucalyptus Plantation | K108: Unmanaged Tropical Non-Peat Rainforest:South America (tropical wet region):SRF Eucalyptus Plantation | AO108: =Lists!C320 -> Land reverting to Tropical Rainforest:SRF Eucalyptus Plantation | AP108: =Lists!D320 -> No peat drainage | AQ108: Land reverting to Tropical Rainforest:SRF Eucalyptus Plantation:No peat drainage
E109: =E108 -> Land reverting to Tropical Woody Savanna | F109: =Lists!AF112 -> South America (tropical dry region) | G109: Land reverting to Tropical Woody Savanna:South America (tropical dry region) | I109: =I108 -> Unmanaged Tropical Non-Peat Rainforest:South America (tropical wet region) | J109: =Lists!C158 -> Maize Cropland | K109: Unmanaged Tropical Non-Peat Rainforest:South America (tropical wet region):Maize Cropland | AO109: =Lists!C321 -> Land reverting to Tropical Rainforest:Maize Cropland | AP109: =Lists!D321 -> No peat drainage | AQ109: Land reverting to Tropical Rainforest:Maize Cropland:No peat drainage
E110: Land reverting to Tropical Woody Savanna | F110: =Lists!AF113 -> Asia Continental (tropical dry region) | G110: Land reverting to Tropical Woody Savanna:Asia Continental (tropical dry region) | I110: =I109 -> Unmanaged Tropical Non-Peat Rainforest:South America (tropical wet region) | J110: =Lists!D158 -> Palm Plantation | K110: Unmanaged Tropical Non-Peat Rainforest:South America (tropical wet region):Palm Plantation | AO110: =Lists!C322 -> Land reverting to Tropical Rainforest:Palm Plantation | AP110: =Lists!D322 -> No peat drainage | AQ110: Land reverting to Tropical Rainforest:Palm Plantation:No peat drainage
E111: Land reverting to Tropical Woody Savanna | F111: =Lists!AF114 -> Asia Insular (tropical dry region) | G111: Land reverting to Tropical Woody Savanna:Asia Insular (tropical dry region) | I111: =Lists!A159 -> Unmanaged Tropical Non-Peat Rainforest:Asia Continental (tropical wet region) | J111: =Lists!B159 -> SRF Eucalyptus Plantation | K111: Unmanaged Tropical Non-Peat Rainforest:Asia Continental (tropical wet region):SRF Eucalyptus Plantation | AO111: =Lists!C323 -> Land reverting to Tropical Moist Deciduous Forest:SRF Eucalyptus Plantation | AP111: =Lists!D323 -> No peat drainage | AQ111: Land reverting to Tropical Moist Deciduous Forest:SRF Eucalyptus Plantation:No peat drainage
E112: =Lists!AG109 -> Land reverting to Temperate Oceanic Forest | F112: =Lists!AG110 -> Europe (temperate moist region) | G112: Land reverting to Temperate Oceanic Forest:Europe (temperate moist region) | I112: =I111 -> Unmanaged Tropical Non-Peat Rainforest:Asia Continental (tropical wet region) | J112: =Lists!C159 -> Maize Cropland | K112: Unmanaged Tropical Non-Peat Rainforest:Asia Continental (tropical wet region):Maize Cropland | AO112: =Lists!C324 -> Land reverting to Tropical Moist Deciduous Forest:Maize Cropland | AP112: =Lists!D324 -> No peat drainage | AQ112: Land reverting to Tropical Moist Deciduous Forest:Maize Cropland:No peat drainage
E113: =E112 -> Land reverting to Temperate Oceanic Forest | F113: =Lists!AG111 -> North America (temperate moist region) | G113: Land reverting to Temperate Oceanic Forest:North America (temperate moist region) | I113: =I112 -> Unmanaged Tropical Non-Peat Rainforest:Asia Continental (tropical wet region) | J113: =Lists!D159 -> Palm Plantation | K113: Unmanaged Tropical Non-Peat Rainforest:Asia Continental (tropical wet region):Palm Plantation | AO113: =Lists!C325 -> Land reverting to Tropical Moist Deciduous Forest:Palm Plantation | AP113: =Lists!D325 -> No peat drainage | AQ113: Land reverting to Tropical Moist Deciduous Forest:Palm Plantation:No peat drainage
E114: =E113 -> Land reverting to Temperate Oceanic Forest | F114: =Lists!AG112 -> New Zealand (temperate moist region) | G114: Land reverting to Temperate Oceanic Forest:New Zealand (temperate moist region) | I114: =Lists!A160 -> Unmanaged Tropical Non-Peat Rainforest:Asia Insular (tropical wet region) | J114: =Lists!B160 -> SRF Eucalyptus Plantation | K114: Unmanaged Tropical Non-Peat Rainforest:Asia Insular (tropical wet region):SRF Eucalyptus Plantation | AO114: =Lists!C326 -> Land reverting to Tropical Moist Deciduous Forest:SRC Willow Plantation | AP114: =Lists!D326 -> No peat drainage | AQ114: Land reverting to Tropical Moist Deciduous Forest:SRC Willow Plantation:No peat drainage
E115: Land reverting to Temperate Oceanic Forest | F115: =Lists!AG113 -> South America (temperate moist region) | G115: Land reverting to Temperate Oceanic Forest:South America (temperate moist region) | I115: =I114 -> Unmanaged Tropical Non-Peat Rainforest:Asia Insular (tropical wet region) | J115: =Lists!C160 -> Maize Cropland | K115: Unmanaged Tropical Non-Peat Rainforest:Asia Insular (tropical wet region):Maize Cropland | AO115: =Lists!C327 -> Land reverting to Tropical Moist Deciduous Forest:Newly Established Intensively managed SRF Conifer, 20 years rotation | AP115: =Lists!D327 -> No peat drainage | AQ115: Land reverting to Tropical Moist Deciduous Forest:Newly Established Intensively managed SRF Conifer, 20 years rotation:No peat drainage
E116: =Lists!AH109 -> Land reverting to Temperate Continental Forest | F116: =Lists!AH110 -> Europe (temperate dry region) | G116: Land reverting to Temperate Continental Forest:Europe (temperate dry region) | I116: =I115 -> Unmanaged Tropical Non-Peat Rainforest:Asia Insular (tropical wet region) | J116: =Lists!D160 -> Palm Plantation | K116: Unmanaged Tropical Non-Peat Rainforest:Asia Insular (tropical wet region):Palm Plantation | AO116: =Lists!C328 -> Land reverting to Tropical Moist Deciduous Forest:Newly Established Intensively managed SRF Conifer, 25 years rotation | AP116: =Lists!D328 -> No peat drainage | AQ116: Land reverting to Tropical Moist Deciduous Forest:Newly Established Intensively managed SRF Conifer, 25 years rotation:No peat drainage
E117: =E116 -> Land reverting to Temperate Continental Forest | F117: =Lists!AH111 -> North America (temperate dry region) | G117: Land reverting to Temperate Continental Forest:North America (temperate dry region) | I117: =Lists!A161 -> Old Growth Fast Growing Conifer (> 200 years old):North West USA | J117: =Lists!B161 -> Newly Managed LRF Conifer (fast growing) | K117: Old Growth Fast Growing Conifer (> 200 years old):North West USA:Newly Managed LRF Conifer (fast growing) | AO117: =Lists!C329 -> Land reverting to Tropical Dry Forest:SRF Eucalyptus Plantation | AP117: =Lists!D329 -> No peat drainage | AQ117: Land reverting to Tropical Dry Forest:SRF Eucalyptus Plantation:No peat drainage
E118: =E117 -> Land reverting to Temperate Continental Forest | F118: =Lists!AH112 -> New Zealand (temperate dry region) | G118: Land reverting to Temperate Continental Forest:New Zealand (temperate dry region) | I118: =Lists!A162 -> Old Growth Fast Growing Conifer (> 200 years old):South USA | J118: =Lists!B162 -> Newly Managed LRF Conifer (fast growing) | K118: Old Growth Fast Growing Conifer (> 200 years old):South USA:Newly Managed LRF Conifer (fast growing) | AO118: =Lists!C330 -> Land reverting to Tropical Dry Forest:Maize Cropland | AP118: =Lists!D330 -> No peat drainage | AQ118: Land reverting to Tropical Dry Forest:Maize Cropland:No peat drainage
E119: Land reverting to Temperate Continental Forest | F119: =Lists!AH113 -> South America (temperate dry region) | G119: Land reverting to Temperate Continental Forest:South America (temperate dry region) | I119: =Lists!A163 -> Old Growth Slow Growing Conifer (> 200 years old):North West USA | J119: =Lists!B163 -> Newly Managed LRF Conifer (slow growing) | K119: Old Growth Slow Growing Conifer (> 200 years old):North West USA:Newly Managed LRF Conifer (slow growing) | AO119: =Lists!C331 -> Land reverting to Tropical Dry Forest:Palm Plantation | AP119: =Lists!D331 -> No peat drainage | AQ119: Land reverting to Tropical Dry Forest:Palm Plantation:No peat drainage
E120: =Lists!AI109 -> Land reverting to Temperate Mountain System | F120: =Lists!AI110 -> Europe (temperate moist region) | G120: Land reverting to Temperate Mountain System:Europe (temperate moist region) | I120: =Lists!A164 -> Northern Peatland:Europe (boreal region) | J120: =Lists!B164 -> SRC Willow Plantation | K120: Northern Peatland:Europe (boreal region):SRC Willow Plantation | AO120: =Lists!C332 -> Land reverting to Tropical Mountain System:SRF Eucalyptus Plantation | AP120: =Lists!D332 -> No peat drainage | AQ120: Land reverting to Tropical Mountain System:SRF Eucalyptus Plantation:No peat drainage
E121: =E120 -> Land reverting to Temperate Mountain System | F121: =Lists!AI111 -> North America (temperate moist region) | G121: Land reverting to Temperate Mountain System:North America (temperate moist region) | I121: =I120 -> Northern Peatland:Europe (boreal region) | J121: =Lists!C164 -> Miscanthus Plantation | K121: Northern Peatland:Europe (boreal region):Miscanthus Plantation | AO121: =Lists!C333 -> Land reverting to Tropical Mountain System:Maize Cropland | AP121: =Lists!D333 -> No peat drainage | AQ121: Land reverting to Tropical Mountain System:Maize Cropland:No peat drainage
E122: =E121 -> Land reverting to Temperate Mountain System | F122: =Lists!AI112 -> New Zealand (temperate moist region) | G122: Land reverting to Temperate Mountain System:New Zealand (temperate moist region) | I122: =I121 -> Northern Peatland:Europe (boreal region) | J122: =Lists!D164 -> Maize Cropland | K122: Northern Peatland:Europe (boreal region):Maize Cropland | AO122: =Lists!C334 -> Land reverting to Tropical Mountain System:Palm Plantation | AP122: =Lists!D334 -> No peat drainage | AQ122: Land reverting to Tropical Mountain System:Palm Plantation:No peat drainage
E123: Land reverting to Temperate Mountain System | F123: =Lists!AI113 -> South America (temperate moist region) | G123: Land reverting to Temperate Mountain System:South America (temperate moist region) | I123: =Lists!A165 -> Northern Peatland:North America (boreal region) | J123: =Lists!B165 -> SRC Willow Plantation | K123: Northern Peatland:North America (boreal region):SRC Willow Plantation | AO123: =Lists!C335 -> Land reverting to Tropical Mountain System:SRC Willow Plantation | AP123: =Lists!D335 -> No peat drainage | AQ123: Land reverting to Tropical Mountain System:SRC Willow Plantation:No peat drainage
E124: =Lists!AJ109 -> Land reverting to Temperate Shrub or Grassland | F124: =Lists!AJ110 -> Europe (temperate dry region) | G124: Land reverting to Temperate Shrub or Grassland:Europe (temperate dry region) | I124: =I123 -> Northern Peatland:North America (boreal region) | J124: =Lists!C165 -> Miscanthus Plantation | K124: Northern Peatland:North America (boreal region):Miscanthus Plantation | AO124: =Lists!C336 -> Land reverting to Tropical Mountain System:Newly Established Intensively managed SRF Conifer, 20 years rotation | AP124: =Lists!D336 -> No peat drainage | AQ124: Land reverting to Tropical Mountain System:Newly Established Intensively managed SRF Conifer, 20 years rotation:No peat drainage
E125: =E124 -> Land reverting to Temperate Shrub or Grassland | F125: =Lists!AJ111 -> North America (temperate dry region) | G125: Land reverting to Temperate Shrub or Grassland:North America (temperate dry region) | I125: =I124 -> Northern Peatland:North America (boreal region) | J125: =Lists!D165 -> Maize Cropland | K125: Northern Peatland:North America (boreal region):Maize Cropland | AO125: =Lists!C337 -> Land reverting to Tropical Mountain System:Newly Established Intensively managed SRF Conifer, 25 years rotation | AP125: =Lists!D337 -> No peat drainage | AQ125: Land reverting to Tropical Mountain System:Newly Established Intensively managed SRF Conifer, 25 years rotation:No peat drainage
E126: =E125 -> Land reverting to Temperate Shrub or Grassland | F126: =Lists!AJ112 -> New Zealand (temperate dry region) | G126: Land reverting to Temperate Shrub or Grassland:New Zealand (temperate dry region) | I126: =Lists!A166 -> Northern Peatland:Asia Continental (boreal region) | J126: =Lists!B166 -> SRC Willow Plantation | K126: Northern Peatland:Asia Continental (boreal region):SRC Willow Plantation | AO126: =Lists!C338 -> Land reverting to Tropical Woody Savanna:SRF Eucalyptus Plantation | AP126: =Lists!D338 -> No peat drainage | AQ126: Land reverting to Tropical Woody Savanna:SRF Eucalyptus Plantation:No peat drainage
E127: Land reverting to Temperate Shrub or Grassland | F127: =Lists!AJ113 -> South America (temperate dry region) | G127: Land reverting to Temperate Shrub or Grassland:South America (temperate dry region) | I127: =I126 -> Northern Peatland:Asia Continental (boreal region) | J127: =Lists!C166 -> Miscanthus Plantation | K127: Northern Peatland:Asia Continental (boreal region):Miscanthus Plantation | AO127: =Lists!C339 -> Land reverting to Tropical Woody Savanna:Maize Cropland | AP127: =Lists!D339 -> No peat drainage | AQ127: Land reverting to Tropical Woody Savanna:Maize Cropland:No peat drainage
E128: =Lists!AK109 -> Land reverting to Boreal Coniferous Forest | F128: =Lists!AK110 -> Europe (boreal region) | G128: Land reverting to Boreal Coniferous Forest:Europe (boreal region) | I128: =I127 -> Northern Peatland:Asia Continental (boreal region) | J128: =Lists!D166 -> Maize Cropland | K128: Northern Peatland:Asia Continental (boreal region):Maize Cropland | AO128: =Lists!C340 -> Land reverting to Tropical Woody Savanna:Palm Plantation | AP128: =Lists!D340 -> No peat drainage | AQ128: Land reverting to Tropical Woody Savanna:Palm Plantation:No peat drainage
E129: =E128 -> Land reverting to Boreal Coniferous Forest | F129: =Lists!AK111 -> North America (boreal region) | G129: Land reverting to Boreal Coniferous Forest:North America (boreal region) | I129: =Lists!A167 -> Marsh and Swamp :Africa (tropical wet region) | J129: =Lists!B167 -> SRF Eucalyptus Plantation | K129: Marsh and Swamp :Africa (tropical wet region):SRF Eucalyptus Plantation | AO129: =Lists!C341 -> Land reverting to Temperate Oceanic Forest:SRC Willow Plantation | AP129: =Lists!D341 -> No peat drainage | AQ129: Land reverting to Temperate Oceanic Forest:SRC Willow Plantation:No peat drainage
E130: =E129 -> Land reverting to Boreal Coniferous Forest | F130: =Lists!AK112 -> Asia Continental (boreal region) | G130: Land reverting to Boreal Coniferous Forest:Asia Continental (boreal region) | I130: =I129 -> Marsh and Swamp :Africa (tropical wet region) | J130: =Lists!C167 -> Maize Cropland | K130: Marsh and Swamp :Africa (tropical wet region):Maize Cropland | AO130: =Lists!C342 -> Land reverting to Temperate Oceanic Forest:Miscanthus Plantation | AP130: =Lists!D342 -> No peat drainage | AQ130: Land reverting to Temperate Oceanic Forest:Miscanthus Plantation:No peat drainage
E131: =Lists!AL109 -> Land reverting to Boreal Tundra | F131: =Lists!AL110 -> Europe (boreal region) | G131: Land reverting to Boreal Tundra:Europe (boreal region) | I131: =I130 -> Marsh and Swamp :Africa (tropical wet region) | J131: =Lists!D167 -> Palm Plantation | K131: Marsh and Swamp :Africa (tropical wet region):Palm Plantation | AO131: =Lists!C343 -> Land reverting to Temperate Oceanic Forest:Maize Cropland | AP131: =Lists!D343 -> No peat drainage | AQ131: Land reverting to Temperate Oceanic Forest:Maize Cropland:No peat drainage
E132: =E131 -> Land reverting to Boreal Tundra | F132: =Lists!AL111 -> North America (boreal region) | G132: Land reverting to Boreal Tundra:North America (boreal region) | I132: =Lists!A168 -> Marsh and Swamp :North America (tropical wet region) | J132: =Lists!B168 -> SRF Eucalyptus Plantation | K132: Marsh and Swamp :North America (tropical wet region):SRF Eucalyptus Plantation | AO132: =Lists!C344 -> Land reverting to Temperate Oceanic Forest:Newly Established Intensively managed SRF Conifer, 20 years rotation | AP132: =Lists!D344 -> No peat drainage | AQ132: Land reverting to Temperate Oceanic Forest:Newly Established Intensively managed SRF Conifer, 20 years rotation:No peat drainage
E133: =E132 -> Land reverting to Boreal Tundra | F133: =Lists!AL112 -> Asia Continental (boreal region) | G133: Land reverting to Boreal Tundra:Asia Continental (boreal region) | I133: =I132 -> Marsh and Swamp :North America (tropical wet region) | J133: =Lists!C168 -> Maize Cropland | K133: Marsh and Swamp :North America (tropical wet region):Maize Cropland | AO133: =Lists!C345 -> Land reverting to Temperate Oceanic Forest:Newly Established Intensively managed SRF Conifer, 25 years rotation | AP133: =Lists!D345 -> No peat drainage | AQ133: Land reverting to Temperate Oceanic Forest:Newly Established Intensively managed SRF Conifer, 25 years rotation:No peat drainage
I134: =I133 -> Marsh and Swamp :North America (tropical wet region) | J134: =Lists!D168 -> Palm Plantation | K134: Marsh and Swamp :North America (tropical wet region):Palm Plantation | AO134: =Lists!C346 -> Land reverting to Temperate Continental Forest:SRC Willow Plantation | AP134: =Lists!D346 -> No peat drainage | AQ134: Land reverting to Temperate Continental Forest:SRC Willow Plantation:No peat drainage
I135: =Lists!A169 -> Marsh and Swamp :South America (tropical wet region) | J135: =Lists!B169 -> SRF Eucalyptus Plantation | K135: Marsh and Swamp :South America (tropical wet region):SRF Eucalyptus Plantation | AO135: =Lists!C347 -> Land reverting to Temperate Continental Forest:Miscanthus Plantation | AP135: =Lists!D347 -> No peat drainage | AQ135: Land reverting to Temperate Continental Forest:Miscanthus Plantation:No peat drainage
I136: =I135 -> Marsh and Swamp :South America (tropical wet region) | J136: =Lists!C169 -> Maize Cropland | K136: Marsh and Swamp :South America (tropical wet region):Maize Cropland | AO136: =Lists!C348 -> Land reverting to Temperate Continental Forest:Maize Cropland | AP136: =Lists!D348 -> No peat drainage | AQ136: Land reverting to Temperate Continental Forest:Maize Cropland:No peat drainage
I137: =I136 -> Marsh and Swamp :South America (tropical wet region) | J137: =Lists!D169 -> Palm Plantation | K137: Marsh and Swamp :South America (tropical wet region):Palm Plantation | AO137: =Lists!C349 -> Land reverting to Temperate Mountain System:SRC Willow Plantation | AP137: =Lists!D349 -> No peat drainage | AQ137: Land reverting to Temperate Mountain System:SRC Willow Plantation:No peat drainage
I138: =Lists!A170 -> Marsh and Swamp :Asia Continental (tropical wet region) | J138: =Lists!B170 -> SRF Eucalyptus Plantation | K138: Marsh and Swamp :Asia Continental (tropical wet region):SRF Eucalyptus Plantation | AO138: =Lists!C350 -> Land reverting to Temperate Mountain System:Miscanthus Plantation | AP138: =Lists!D350 -> No peat drainage | AQ138: Land reverting to Temperate Mountain System:Miscanthus Plantation:No peat drainage
I139: =I138 -> Marsh and Swamp :Asia Continental (tropical wet region) | J139: =Lists!C170 -> Maize Cropland | K139: Marsh and Swamp :Asia Continental (tropical wet region):Maize Cropland | AO139: =Lists!C351 -> Land reverting to Temperate Mountain System:Maize Cropland | AP139: =Lists!D351 -> No peat drainage | AQ139: Land reverting to Temperate Mountain System:Maize Cropland:No peat drainage
I140: =I139 -> Marsh and Swamp :Asia Continental (tropical wet region) | J140: =Lists!D170 -> Palm Plantation | K140: Marsh and Swamp :Asia Continental (tropical wet region):Palm Plantation | AO140: =Lists!C352 -> Land reverting to Temperate Mountain System:Newly Established Intensively managed SRF Conifer, 20 years rotation | AP140: =Lists!D352 -> No peat drainage | AQ140: Land reverting to Temperate Mountain System:Newly Established Intensively managed SRF Conifer, 20 years rotation:No peat drainage
I141: =Lists!A171 -> Marsh and Swamp :Asia Insular (tropical wet region) | J141: =Lists!B171 -> SRF Eucalyptus Plantation | K141: Marsh and Swamp :Asia Insular (tropical wet region):SRF Eucalyptus Plantation | AO141: =Lists!C353 -> Land reverting to Temperate Mountain System:Newly Established Intensively managed SRF Conifer, 25 years rotation | AP141: =Lists!D353 -> No peat drainage | AQ141: Land reverting to Temperate Mountain System:Newly Established Intensively managed SRF Conifer, 25 years rotation:No peat drainage
I142: =I141 -> Marsh and Swamp :Asia Insular (tropical wet region) | J142: =Lists!C171 -> Maize Cropland | K142: =I142&":"&J142 -> Marsh and Swamp :Asia Insular (tropical wet region):Maize Cropland | AO142: =Lists!C354 -> Land reverting to Temperate Shrub or Grassland:SRC Willow Plantation | AP142: =Lists!D354 -> No peat drainage | AQ142: =AO142&":"&AP142 -> Land reverting to Temperate Shrub or Grassland:SRC Willow Plantation:No peat drainage
I143: =I142 -> Marsh and Swamp :Asia Insular (tropical wet region) | J143: =Lists!D171 -> Palm Plantation | K143: Marsh and Swamp :Asia Insular (tropical wet region):Palm Plantation | AO143: =Lists!C355 -> Land reverting to Temperate Shrub or Grassland:Miscanthus Plantation | AP143: =Lists!D355 -> No peat drainage | AQ143: Land reverting to Temperate Shrub or Grassland:Miscanthus Plantation:No peat drainage
I144: =Lists!A172 -> Tundra Woodland:Europe (boreal region) | J144: =Lists!B172 -> SRC Willow Plantation | K144: Tundra Woodland:Europe (boreal region):SRC Willow Plantation | AO144: =Lists!C356 -> Land reverting to Temperate Shrub or Grassland:Maize Cropland | AP144: =Lists!D356 -> No peat drainage | AQ144: Land reverting to Temperate Shrub or Grassland:Maize Cropland:No peat drainage
I145: =I144 -> Tundra Woodland:Europe (boreal region) | J145: =Lists!C172 -> Miscanthus Plantation | K145: Tundra Woodland:Europe (boreal region):Miscanthus Plantation | AO145: =Lists!C357 -> Land reverting to Temperate Shrub or Grassland:Newly Established Intensively managed SRF Conifer, 20 years rotation | AP145: =Lists!D357 -> No peat drainage | AQ145: Land reverting to Temperate Shrub or Grassland:Newly Established Intensively managed SRF Conifer, 20 years rotation:No peat drainage
I146: =I145 -> Tundra Woodland:Europe (boreal region) | J146: =Lists!D172 -> Maize Cropland | K146: Tundra Woodland:Europe (boreal region):Maize Cropland | AO146: =Lists!C358 -> Land reverting to Temperate Shrub or Grassland:Newly Established Intensively managed SRF Conifer, 25 years rotation | AP146: =Lists!D358 -> No peat drainage | AQ146: Land reverting to Temperate Shrub or Grassland:Newly Established Intensively managed SRF Conifer, 25 years rotation:No peat drainage
I147: =Lists!A173 -> Tundra Woodland:North America (boreal region) | J147: =Lists!B173 -> SRC Willow Plantation | K147: Tundra Woodland:North America (boreal region):SRC Willow Plantation | AO147: =Lists!C359 -> Land reverting to Boreal Coniferous Forest:SRC Willow Plantation | AP147: =Lists!D359 -> No peat drainage | AQ147: Land reverting to Boreal Coniferous Forest:SRC Willow Plantation:No peat drainage
I148: =I147 -> Tundra Woodland:North America (boreal region) | J148: =Lists!C173 -> Miscanthus Plantation | K148: Tundra Woodland:North America (boreal region):Miscanthus Plantation | AO148: =Lists!C360 -> Land reverting to Boreal Coniferous Forest:Miscanthus Plantation | AP148: =Lists!D360 -> No peat drainage | AQ148: Land reverting to Boreal Coniferous Forest:Miscanthus Plantation:No peat drainage
I149: =I148 -> Tundra Woodland:North America (boreal region) | J149: =Lists!D173 -> Maize Cropland | K149: Tundra Woodland:North America (boreal region):Maize Cropland | AO149: =Lists!C361 -> Land reverting to Boreal Coniferous Forest:Maize Cropland | AP149: =Lists!D361 -> No peat drainage | AQ149: Land reverting to Boreal Coniferous Forest:Maize Cropland:No peat drainage
I150: =Lists!A174 -> Tundra Woodland:Asia Continental (boreal region) | J150: =Lists!B174 -> SRC Willow Plantation | K150: Tundra Woodland:Asia Continental (boreal region):SRC Willow Plantation | AO150: =Lists!C362 -> Land reverting to Boreal Tundra:SRC Willow Plantation | AP150: =Lists!D362 -> No peat drainage | AQ150: Land reverting to Boreal Tundra:SRC Willow Plantation:No peat drainage
I151: =I150 -> Tundra Woodland:Asia Continental (boreal region) | J151: =Lists!C174 -> Miscanthus Plantation | K151: Tundra Woodland:Asia Continental (boreal region):Miscanthus Plantation | AO151: =Lists!C363 -> Land reverting to Boreal Tundra:Miscanthus Plantation | AP151: =Lists!D363 -> No peat drainage | AQ151: Land reverting to Boreal Tundra:Miscanthus Plantation:No peat drainage
I152: =I151 -> Tundra Woodland:Asia Continental (boreal region) | J152: =Lists!D174 -> Maize Cropland | K152: Tundra Woodland:Asia Continental (boreal region):Maize Cropland | AO152: =Lists!C364 -> Land reverting to Boreal Tundra:Maize Cropland | AP152: =Lists!D364 -> No peat drainage | AQ152: Land reverting to Boreal Tundra:Maize Cropland:No peat drainage
I153: =Lists!A175 -> Temperate shrub land :Europe (temperate dry region) | J153: =Lists!B175 -> SRC Willow Plantation | K153: Temperate shrub land :Europe (temperate dry region):SRC Willow Plantation
I154: =I153 -> Temperate shrub land :Europe (temperate dry region) | J154: =Lists!C175 -> Miscanthus Plantation | K154: Temperate shrub land :Europe (temperate dry region):Miscanthus Plantation
I155: =I154 -> Temperate shrub land :Europe (temperate dry region) | J155: =Lists!D175 -> Maize Cropland | K155: Temperate shrub land :Europe (temperate dry region):Maize Cropland
I156: =Lists!A176 -> Temperate shrub land :North America (temperate dry region) | J156: =Lists!B176 -> SRC Willow Plantation | K156: Temperate shrub land :North America (temperate dry region):SRC Willow Plantation
I157: =I156 -> Temperate shrub land :North America (temperate dry region) | J157: =Lists!C176 -> Miscanthus Plantation | K157: Temperate shrub land :North America (temperate dry region):Miscanthus Plantation
I158: =I157 -> Temperate shrub land :North America (temperate dry region) | J158: =Lists!D176 -> Maize Cropland | K158: Temperate shrub land :North America (temperate dry region):Maize Cropland
I159: =Lists!A177 -> Temperate shrub land :New Zealand (temperate dry region) | J159: =Lists!B177 -> SRC Willow Plantation | K159: Temperate shrub land :New Zealand (temperate dry region):SRC Willow Plantation
I160: =I159 -> Temperate shrub land :New Zealand (temperate dry region) | J160: =Lists!C177 -> Miscanthus Plantation | K160: Temperate shrub land :New Zealand (temperate dry region):Miscanthus Plantation
I161: =I160 -> Temperate shrub land :New Zealand (temperate dry region) | J161: =Lists!D177 -> Maize Cropland | K161: Temperate shrub land :New Zealand (temperate dry region):Maize Cropland
I162: =Lists!A178 -> Temperate shrub land :South America (temperate dry region) | J162: =Lists!B178 -> SRC Willow Plantation | K162: Temperate shrub land :South America (temperate dry region):SRC Willow Plantation
I163: =I162 -> Temperate shrub land :South America (temperate dry region) | J163: =Lists!C178 -> Miscanthus Plantation | K163: Temperate shrub land :South America (temperate dry region):Miscanthus Plantation
I164: =I163 -> Temperate shrub land :South America (temperate dry region) | J164: =Lists!D178 -> Maize Cropland | K164: Temperate shrub land :South America (temperate dry region):Maize Cropland
I165: =Lists!A179 -> Temperate grassland (e.g. Steppes, grassland praires):Europe (temperate dry region) | J165: =Lists!B179 -> SRC Willow Plantation | K165: Temperate grassland (e.g. Steppes, grassland praires):Europe (temperate dry region):SRC Willow Plantation
I166: =I165 -> Temperate grassland (e.g. Steppes, grassland praires):Europe (temperate dry region) | J166: =Lists!C179 -> Miscanthus Plantation | K166: Temperate grassland (e.g. Steppes, grassland praires):Europe (temperate dry region):Miscanthus Plantation
I167: =I166 -> Temperate grassland (e.g. Steppes, grassland praires):Europe (temperate dry region) | J167: =Lists!D179 -> Maize Cropland | K167: Temperate grassland (e.g. Steppes, grassland praires):Europe (temperate dry region):Maize Cropland
I168: =Lists!A180 -> Temperate grassland (e.g. Steppes, grassland praires):North America (temperate dry region) | J168: =Lists!B180 -> SRC Willow Plantation | K168: Temperate grassland (e.g. Steppes, grassland praires):North America (temperate dry region):SRC Willow Plantation
I169: =I168 -> Temperate grassland (e.g. Steppes, grassland praires):North America (temperate dry region) | J169: =Lists!C180 -> Miscanthus Plantation | K169: Temperate grassland (e.g. Steppes, grassland praires):North America (temperate dry region):Miscanthus Plantation
I170: =I169 -> Temperate grassland (e.g. Steppes, grassland praires):North America (temperate dry region) | J170: =Lists!D180 -> Maize Cropland | K170: Temperate grassland (e.g. Steppes, grassland praires):North America (temperate dry region):Maize Cropland
I171: =Lists!A181 -> Temperate grassland (e.g. Steppes, grassland praires):New Zealand (temperate dry region) | J171: =Lists!B181 -> SRC Willow Plantation | K171: Temperate grassland (e.g. Steppes, grassland praires):New Zealand (temperate dry region):SRC Willow Plantation
I172: =I171 -> Temperate grassland (e.g. Steppes, grassland praires):New Zealand (temperate dry region) | J172: =Lists!C181 -> Miscanthus Plantation | K172: Temperate grassland (e.g. Steppes, grassland praires):New Zealand (temperate dry region):Miscanthus Plantation
I173: =I172 -> Temperate grassland (e.g. Steppes, grassland praires):New Zealand (temperate dry region) | J173: =Lists!D181 -> Maize Cropland | K173: Temperate grassland (e.g. Steppes, grassland praires):New Zealand (temperate dry region):Maize Cropland
I174: =Lists!A182 -> Temperate grassland (e.g. Steppes, grassland praires):South America (temperate dry region) | J174: =Lists!B182 -> SRC Willow Plantation | K174: Temperate grassland (e.g. Steppes, grassland praires):South America (temperate dry region):SRC Willow Plantation
I175: =I174 -> Temperate grassland (e.g. Steppes, grassland praires):South America (temperate dry region) | J175: =Lists!C182 -> Miscanthus Plantation | K175: Temperate grassland (e.g. Steppes, grassland praires):South America (temperate dry region):Miscanthus Plantation
I176: =I175 -> Temperate grassland (e.g. Steppes, grassland praires):South America (temperate dry region) | J176: =Lists!D182 -> Maize Cropland | K176: Temperate grassland (e.g. Steppes, grassland praires):South America (temperate dry region):Maize Cropland
I177: =Lists!A183 -> Tropical Woody Savannah:Africa (tropical dry region) | J177: =Lists!B183 -> SRF Eucalyptus Plantation | K177: Tropical Woody Savannah:Africa (tropical dry region):SRF Eucalyptus Plantation
I178: =I177 -> Tropical Woody Savannah:Africa (tropical dry region) | J178: =Lists!C183 -> Maize Cropland | K178: Tropical Woody Savannah:Africa (tropical dry region):Maize Cropland
I179: =I178 -> Tropical Woody Savannah:Africa (tropical dry region) | J179: =Lists!D183 -> Palm Plantation | K179: Tropical Woody Savannah:Africa (tropical dry region):Palm Plantation
I180: =Lists!A184 -> Tropical Woody Savannah:North America (tropical dry region) | J180: =Lists!B184 -> SRF Eucalyptus Plantation | K180: Tropical Woody Savannah:North America (tropical dry region):SRF Eucalyptus Plantation
I181: =I180 -> Tropical Woody Savannah:North America (tropical dry region) | J181: =Lists!C184 -> Maize Cropland | K181: Tropical Woody Savannah:North America (tropical dry region):Maize Cropland
I182: =I181 -> Tropical Woody Savannah:North America (tropical dry region) | J182: =Lists!D184 -> Palm Plantation | K182: Tropical Woody Savannah:North America (tropical dry region):Palm Plantation
I183: =Lists!A185 -> Tropical Woody Savannah:South America (tropical dry region) | J183: =Lists!B185 -> SRF Eucalyptus Plantation | K183: Tropical Woody Savannah:South America (tropical dry region):SRF Eucalyptus Plantation
I184: =I183 -> Tropical Woody Savannah:South America (tropical dry region) | J184: =Lists!C185 -> Maize Cropland | K184: Tropical Woody Savannah:South America (tropical dry region):Maize Cropland
I185: =I184 -> Tropical Woody Savannah:South America (tropical dry region) | J185: =Lists!D185 -> Palm Plantation | K185: Tropical Woody Savannah:South America (tropical dry region):Palm Plantation
I186: =Lists!A186 -> Tropical Woody Savannah:Asia Continental (tropical dry region) | J186: =Lists!B186 -> SRF Eucalyptus Plantation | K186: Tropical Woody Savannah:Asia Continental (tropical dry region):SRF Eucalyptus Plantation
I187: =I186 -> Tropical Woody Savannah:Asia Continental (tropical dry region) | J187: =Lists!C186 -> Maize Cropland | K187: Tropical Woody Savannah:Asia Continental (tropical dry region):Maize Cropland
I188: =I187 -> Tropical Woody Savannah:Asia Continental (tropical dry region) | J188: =Lists!D186 -> Palm Plantation | K188: Tropical Woody Savannah:Asia Continental (tropical dry region):Palm Plantation
I189: =Lists!A187 -> Tropical Woody Savannah:Asia Insular (tropical dry region) | J189: =Lists!B187 -> SRF Eucalyptus Plantation | K189: Tropical Woody Savannah:Asia Insular (tropical dry region):SRF Eucalyptus Plantation
I190: =I189 -> Tropical Woody Savannah:Asia Insular (tropical dry region) | J190: =Lists!C187 -> Maize Cropland | K190: Tropical Woody Savannah:Asia Insular (tropical dry region):Maize Cropland
I191: =I190 -> Tropical Woody Savannah:Asia Insular (tropical dry region) | J191: =Lists!D187 -> Palm Plantation | K191: Tropical Woody Savannah:Asia Insular (tropical dry region):Palm Plantation
I192: =Lists!A188 -> Tropical Grassland Savannah:Africa (tropical dry region) | J192: =Lists!B188 -> SRF Eucalyptus Plantation | K192: Tropical Grassland Savannah:Africa (tropical dry region):SRF Eucalyptus Plantation
I193: =I192 -> Tropical Grassland Savannah:Africa (tropical dry region) | J193: =Lists!C188 -> Maize Cropland | K193: Tropical Grassland Savannah:Africa (tropical dry region):Maize Cropland
I194: =I193 -> Tropical Grassland Savannah:Africa (tropical dry region) | J194: =Lists!D188 -> Palm Plantation | K194: Tropical Grassland Savannah:Africa (tropical dry region):Palm Plantation
I195: =Lists!A189 -> Tropical Grassland Savannah:North America (tropical dry region) | J195: =Lists!B189 -> SRF Eucalyptus Plantation | K195: Tropical Grassland Savannah:North America (tropical dry region):SRF Eucalyptus Plantation
I196: =I195 -> Tropical Grassland Savannah:North America (tropical dry region) | J196: =Lists!C189 -> Maize Cropland | K196: Tropical Grassland Savannah:North America (tropical dry region):Maize Cropland
I197: =I196 -> Tropical Grassland Savannah:North America (tropical dry region) | J197: =Lists!D189 -> Palm Plantation | K197: Tropical Grassland Savannah:North America (tropical dry region):Palm Plantation
I198: =Lists!A190 -> Tropical Grassland Savannah:South America (tropical dry region) | J198: =Lists!B190 -> SRF Eucalyptus Plantation | K198: Tropical Grassland Savannah:South America (tropical dry region):SRF Eucalyptus Plantation
I199: =I198 -> Tropical Grassland Savannah:South America (tropical dry region) | J199: =Lists!C190 -> Maize Cropland | K199: Tropical Grassland Savannah:South America (tropical dry region):Maize Cropland
I200: =I199 -> Tropical Grassland Savannah:South America (tropical dry region) | J200: =Lists!D190 -> Palm Plantation | K200: Tropical Grassland Savannah:South America (tropical dry region):Palm Plantation
I201: =Lists!A191 -> Tropical Grassland Savannah:Asia Continental (tropical dry region) | J201: =Lists!B191 -> SRF Eucalyptus Plantation | K201: Tropical Grassland Savannah:Asia Continental (tropical dry region):SRF Eucalyptus Plantation
I202: =I201 -> Tropical Grassland Savannah:Asia Continental (tropical dry region) | J202: =Lists!C191 -> Maize Cropland | K202: Tropical Grassland Savannah:Asia Continental (tropical dry region):Maize Cropland
I203: =I202 -> Tropical Grassland Savannah:Asia Continental (tropical dry region) | J203: =Lists!D191 -> Palm Plantation | K203: Tropical Grassland Savannah:Asia Continental (tropical dry region):Palm Plantation
I204: =Lists!A192 -> Tropical Grassland Savannah:Asia Insular (tropical dry region) | J204: =Lists!B192 -> SRF Eucalyptus Plantation | K204: Tropical Grassland Savannah:Asia Insular (tropical dry region):SRF Eucalyptus Plantation
... 155 more rows

Sheet Land Data
A1: Land Data Tables
A2: Previous Land Use
A3: Selected Data for Previous Land Use (selected from Land Table 1)
A4: Previous Land Use Lookup name | B4: =Chosen_land_category_biopathways&":"&Chosen_Previous_Land_type_biopathways&":"&Results_Biopathways!C25&":"&Results_Biopathways!C20 -> Long Rotation Forestry (LRF):LRF Conifer for wood products, residues unused:UK:40
B5: Mean | C5: Units | D5: Error
A6: Soil carbon | B6: =INDEX(lookup_soil_previous_land,MATCH(Lookupname_Previous_Land_Use,Lookup_previous_land_names,0)) -> 72.54545455 | C6: t C/ha | D6: =INDEX(lookup_soilerror_previous_land,MATCH(Lookupname_Previous_Land_Use,Lookup_previous_land_names,0)) -> 32.64545455
A7: Flu (IPCC Land Management Factor) | B7: =INDEX(lookup_flu_previousland,MATCH(Lookupname_Previous_Land_Use,Lookup_previous_land_names,0)) -> 1 | C7: - | D7: =INDEX(lookup_flu_error_previousland,MATCH(Lookupname_Previous_Land_Use,Lookup_previous_land_names,0)) -> 0
A8: Number of stands | B8: =INDEX(No_stands_previous,MATCH(Lookupname_Previous_Land_Use,Lookup_previous_land_names,0)) -> 59
A9: Non Soil Carbon Stock | B9: =INDEX(lookup_carbonstocks_previousland,MATCH(Lookupname_Previous_Land_Use,Lookup_previous_land_names,0)) -> 69.5 | C9: t C/ha
A10: Carbon Stock change over time frame, if land were to stay in its previous state (no disturbances) | B10: =INDEX(lookup_forgone_CO2max_previousland,MATCH(Lookupname_Previous_Land_Use,Lookup_previous_land_names,0)) -> 0 | C10: t CO2/ha/y | D10: =INDEX(lookup_forgone_CO2maxerror_previousland,MATCH(Lookupname_Previous_Land_Use,Lookup_previous_land_names,0)) -> 0
A11: Carbon Stock change over time frame, if land were to stay in its previous state (with disturbances) | B11: =INDEX(lookup_forgone_CO2predicted_previousland,MATCH(Lookupname_Previous_Land_Use,Lookup_previous_land_names,0)) -> 0 | C11: t CO2/ha/y | D11: =INDEX(lookup_forgone_CO2predictederror_previousland,MATCH(Lookupname_Previous_Land_Use,Lookup_previous_land_names,0)) -> 0
A12: Biomass Produced | B12: =INDEX(lookup_previousland_biomas_out,MATCH(Lookupname_Previous_Land_Use,Lookup_previous_land_names,0)) -> 3.449 | C12: odt/ha/y
A13: of which
A14: Saw Logs | B14: =INDEX(lookup_previousland_proportion_sawlogs,MATCH(Lookupname_Previous_Land_Use,Lookup_previous_land_names,0)) -> 0.7185
A15: Small Roundwood | B15: =INDEX(lookup_previousland_proportion_smallroundwood,MATCH(Lookupname_Previous_Land_Use,Lookup_previous_land_names,0)) -> 0.2815
A16: Residues | B16: =INDEX(lookup_previousland_proportion_branchwood,MATCH(Lookupname_Previous_Land_Use,Lookup_previous_land_names,0)) -> 0
A17: Nitrogen fertiliser application | B17: =INDEX(NFert_recommend_previous_land,MATCH(Lookupname_Previous_Land_Use,Lookup_previous_land_names,0)) -> 0 | C17: kg N/ha/y
A18: Carbon Impact from land management, excluding irrigation | B18: =INDEX(lookup_landmanagement_CO2_previousland,MATCH(Lookupname_Previous_Land_Use,Lookup_previous_land_names,0)) -> 0.07452847787 | C18: t CO2/ha/y
A19: Additional Carbon Impact from residue removal | B19: =INDEX(lookup_branchremoval_CO2_previousland,MATCH(Lookupname_Previous_Land_Use,Lookup_previous_land_names,0)) -> 0 | C19: t CO2/ha/y
A20: Direct energy requirement from land management, excluding irrigation | B20: =INDEX(lookup_landmanagement_Energy_previousland,MATCH(Lookupname_Previous_Land_Use,Lookup_previous_land_names,0)) -> 0.2300301772 | C20: MWh/ha/y
A21: Primary energy requirement from land management, excluding irrigation | B21: =INDEX(X32:X673,MATCH(Lookupname_Previous_Land_Use,Lookup_previous_land_names,0)) -> 0.2452689649 | C21: MWh/ha/y
A22: Additional direct energy requirment from residue removal (if not included above) | B22: =INDEX(lookup_branchremoval_Energy_previousland,MATCH(Lookupname_Previous_Land_Use,Lookup_previous_land_names,0)) -> 0 | C22: MWh/ha/y
A23: Additional primary energy requirment from residue removal (if not included above) | B23: =INDEX(lookup_primry_energy_residues_previouslanduse,MATCH(Lookupname_Previous_Land_Use,Lookup_previous_land_names,0)) -> 0 | C23: MWh/ha/y
A24: N2O emissions from land, excluding from fertilisers | B24: =INDEX(lookup_N2O_land_previous,MATCH(Lookupname_Previous_Land_Use,Lookup_previous_land_names,0)) -> 0.001144 | C24: t N2O/ha/y | D24: =INDEX(lookup_N2Oerror_land_previous,MATCH(Lookupname_Previous_Land_Use,Lookup_previous_land_names,0)) -> 0.001584
A25: CH4 emissions from land | B25: =INDEX(lookup_CH4_land_previous,MATCH(Lookupname_Previous_Land_Use,Lookup_previous_land_names,0)) -> -0.003613504 | C25: t CH4/ha/y | D25: =INDEX(lookup_CH4error_land_previous,MATCH(Lookupname_Previous_Land_Use,Lookup_previous_land_names,0)) -> 0.001806752
A26: Exponential decay factor for coarse residues | B26: =INDEX(lookup_decay_previousland,MATCH(Lookupname_Previous_Land_Use,Lookup_previous_land_names,0)) -> 0.028 | C26: y-1 | E26: =INDEX(Assumptions_coarse_residues,MATCH(Lookupname_Previous_Land_Use,Lookup_previous_land_names,0)) -> Chambers et al., 2000. Specific to forests in Pacific North USA. No data for UK, therefore assume similar to Pacific North West USA, as both temperate climtes.
A27: Exponential decay factor for fine residues | B27: =INDEX(lookup_decay_fine_previousland,MATCH(Lookupname_Previous_Land_Use,Lookup_previous_land_names,0)) -> 0.185 | C27: y-1 | E27: =INDEX(Assumptions_fine_residues,MATCH(Lookupname_Previous_Land_Use,Lookup_previous_land_names,0)) -> Mattson, 1987. Specific to South East USA, however, decay rate of fine residues not shown to vary with location in temperate regions.
A29: Land Data Table 1: Previous Land Use
A30: Land Category | B30: Land Use | C30: Country | D30: Time | E30: Lookup Name | F30: Soil Carbon at t=0, for Mineral Soils, top 30 cm | H30: Error in SOC | I30: Reference | J30: Flu (IPCC Land Management factor) | K30: Flu error | L30: No. Stands (1 harvested each year) | M30: Carbon Stock at t=0 (Above and Below Ground, Litter). | N30: Note and Reference | O30: Biomass Out When in Production | P30: Proportion Sawlogs | Q30: Proportion Small Roundwood | R30: Proportion Total Roundwood | S30: Proportion Branchwood | T30: Note and Reference | U30: N Fertiliser Application | V30: CO2 emissions from land management. Excluding irrigation and N fertilisation | W30: Direct Energy Requirement from land management. Excluding irrigation | X30: Primary Energy Requirement from land management. Excluding irrigation | Y30: CO2 emissions from residue harvest. | Z30: Additional Direct Energy Requirement from residue harvest, if not included in left column. | AA30: Additional Primary Energy Requirement from residue harvest, if not included in left column. | AB30: Note and Reference | AC30: N2O emissions from land (excluding from fertiliser) | AD30: N2O Emissions error | AE30: Note and Reference | AF30: CH4 emissions from land (excluding fertilsier) | AG30: CH4 emissions error | AH30: Note and Reference | AI30: CO2 emissions from changing carbon stock (no disturbances) | AJ30: Error | AK30: CO2 emissions if forest left (with disturbances) | AL30: Error | AM30: Disturbance details | AO30: Exponential Decay function (k) for Coarse Woody Debris (> 10 cm diameter) | AP30: Reference | AQ30: Exponential Decay function (k) for Fine Woody Debris (< 10 cm diameter) | AR30: Reference
D31: years | F31: t CO2/ha | G31: t C/ha | H31: t C/ha | K31: % | M31: t C/ha | O31: odt/ha/y | U31: kg N/Ha/y | V31: t CO2/ha/y | W31: MWh/ha/y | X31: MWh/ha/y | Y31: t CO2/ha/y | Z31: MWh/ha/y | AA31: MWh/ha/y | AC31: t N2O/ha/y | AD31: t N2O/ha/y | AF31: t CH4/ha/y | AG31: t CH4/ha/y | AI31: t CO2/ha/y | AJ31: t CO2/ha/y | AK31: t CO2/ha/y | AL31: t CO2/ha/y
A32: =Lists!$B$82 -> Long Rotation Forestry (LRF) | B32: =Lists!B9 -> LRF Conifer for wood products, residues unused | C32: =Lists!B110 -> UK | D32: 20 | E32: =A32&":"&B32&":"&C32&":"&D32 -> Long Rotation Forestry (LRF):LRF Conifer for wood products, residues unused:UK:20 | F32: 266 | G32: =F32*MM_C/MM_CO2 -> 72.54545455 | H32: =error_SOC*G32 -> 32.64545455 | I32: Winrock, 2011 | J32: 1 | K32: 0 | L32: 59 | M32: 69.5 | N32: Forest Research C-SORT model. Modelled as Sitka Spruce, Yield Class 12, Management Table Thinning, 59 year rotation. | O32: 3.449 | P32: 0.7185 | Q32: 0.2815 | R32: =P32+Q32 -> 1 | S32: 0 | T32: Planted forest. Forest Research C-SORT model. | U32: 0 | V32: =('Land Data'!O32/density_SW*(LCA_En_Woodharvest*EF_diesel)+(LCA_En_landprep*EF_diesel+Seedling_No/1000*EF_Seedlings+Herbicide_quantity*EF_Pest)/'Land Data'!L32)/Conv_te_kg -> 0.07452847787 | W32: =('Land Data'!O32/density_SW*(LCA_En_Woodharvest*En_F_diesel)+(LCA_En_landprep*En_F_diesel+Seedling_No/1000*En_Seedlings+Herbicide_quantity*En_F_Pest)/'Land Data'!L32)/Conv_MWh_KWh -> 0.2300301772 | X32: =('Land Data'!O32/density_SW*(LCA_En_Woodharvest*En_F_diesel*Prim_En_Diesel)+(LCA_En_landprep*En_F_diesel*Prim_En_Diesel+Seedling_No/1000*En_Seedlings*Prim_En_Seedlings+Herbicide_quantity*En_F_Pest*Prim_En_CropProtect)/'Land Data'!L32)/Conv_MWh_KWh -> 0.2452689649 | Y32: 0 | Z32: 0 | AA32: 0 | AB32: See constants tab for assumptions of energy requirements | AC32: ='Reference Data'!$D$134/Conv_te_kg -> 0.001144 | AD32: ='Reference Data'!$E$134/Conv_te_kg -> 0.001584 | AE32: Anderson-Teixei and Delucia, 2011. Includes N2O emissions from residues and debris. | AF32: ='Reference Data'!$D$158 -> -0.003613504 | AG32: ='Reference Data'!$E$158 -> 0.001806752 | AH32: Anderson-Teixei and Delucia, 2011. Includes N2O emissions from residues and debris. | AI32: 0 | AK32: 0 | AM32: Private Communication with UK Forestry Commission. Windthrow causes tree to fall when it reaches 29m (Wind Hazard Class 2.5). Forest Gales Manual. | AO32: 0.028 | AP32: Chambers et al., 2000. Specific to forests in Pacific North USA. No data for UK, therefore assume similar to Pacific North West USA, as both temperate climtes. | AQ32: 0.185 | AR32: Mattson, 1987. Specific to South East USA, however, decay rate of fine residues not shown to vary with location in temperate regions.
A33: =Lists!$B$82 -> Long Rotation Forestry (LRF) | B33: =B32 -> LRF Conifer for wood products, residues unused | C33: UK | D33: 40 | E33: =A33&":"&B33&":"&C33&":"&D33 -> Long Rotation Forestry (LRF):LRF Conifer for wood products, residues unused:UK:40 | F33: 266 | G33: 72.54545455 | H33: 32.64545455 | I33: Winrock, 2011 | J33: 1 | K33: 0 | L33: 59 | M33: 69.5 | N33: Forest Research C-SORT model. Modelled as Sitka Spruce, Yield Class 12, Management Table Thinning, 59 year rotation. | O33: 3.449 | P33: 0.7185 | Q33: 0.2815 | R33: 1 | S33: 0 | T33: Planted forest. Forest Research C-SORT model. | U33: 0 | V33: =('Land Data'!O33/density_SW*(LCA_En_Woodharvest*EF_diesel)+(LCA_En_landprep*EF_diesel+Seedling_No/1000*EF_Seedlings+Herbicide_quantity*EF_Pest)/'Land Data'!L33)/Conv_te_kg -> 0.07452847787 | W33: =('Land Data'!O33/density_SW*(LCA_En_Woodharvest*En_F_diesel)+(LCA_En_landprep*En_F_diesel+Seedling_No/1000*En_Seedlings+Herbicide_quantity*En_F_Pest)/'Land Data'!L33)/Conv_MWh_KWh -> 0.2300301772 | X33: =('Land Data'!O33/density_SW*(LCA_En_Woodharvest*En_F_diesel*Prim_En_Diesel)+(LCA_En_landprep*En_F_diesel*Prim_En_Diesel+Seedling_No/1000*En_Seedlings*Prim_En_Seedlings+Herbicide_quantity*En_F_Pest*Prim_En_CropProtect)/'Land Data'!L33)/Conv_MWh_KWh -> 0.2452689649 | Y33: 0 | Z33: 0 | AA33: 0 | AB33: See constants tab for assumptions of energy requirements | AC33: ='Reference Data'!$D$134/Conv_te_kg -> 0.001144 | AD33: ='Reference Data'!$E$134/Conv_te_kg -> 0.001584 | AE33: Anderson-Teixei and Delucia, 2011. Includes N2O emissions from residues and debris. | AF33: ='Reference Data'!$D$158 -> -0.003613504 | AG33: ='Reference Data'!$E$158 -> 0.001806752 | AH33: Anderson-Teixei and Delucia, 2011. Includes N2O emissions from residues and debris. | AI33: 0 | AK33: 0 | AM33: Private Communication with UK Forestry Commission. Windthrow causes tree to fall when it reaches 29m (Wind Hazard Class 2.5). Forest Gales Manual. | AO33: 0.028 | AP33: Chambers et al., 2000. Specific to forests in Pacific North USA. No data for UK, therefore assume similar to Pacific North West USA, as both temperate climtes. | AQ33: 0.185 | AR33: Mattson, 1987. Specific to South East USA, however, decay rate of fine residues not shown to vary with location in temperate regions.
A34: =Lists!$B$82 -> Long Rotation Forestry (LRF) | B34: LRF Conifer for wood products, residues unused | C34: UK | D34: 100 | E34: Long Rotation Forestry (LRF):LRF Conifer for wood products, residues unused:UK:100 | F34: 266 | G34: 72.54545455 | H34: 32.64545455 | I34: Winrock, 2011 | J34: 1 | K34: 0 | L34: 59 | M34: 69.5 | N34: Forest Research C-SORT model. Modelled as Sitka Spruce, Yield Class 12, Management Table Thinning, 59 year rotation. | O34: 3.449 | P34: 0.7185 | Q34: 0.2815 | R34: 1 | S34: 0 | T34: Planted forest. Forest Research C-SORT model. | U34: 0 | V34: =('Land Data'!O34/density_SW*(LCA_En_Woodharvest*EF_diesel)+(LCA_En_landprep*EF_diesel+Seedling_No/1000*EF_Seedlings+Herbicide_quantity*EF_Pest)/'Land Data'!L34)/Conv_te_kg -> 0.07452847787 | W34: =('Land Data'!O34/density_SW*(LCA_En_Woodharvest*En_F_diesel)+(LCA_En_landprep*En_F_diesel+Seedling_No/1000*En_Seedlings+Herbicide_quantity*En_F_Pest)/'Land Data'!L34)/Conv_MWh_KWh -> 0.2300301772 | X34: =('Land Data'!O34/density_SW*(LCA_En_Woodharvest*En_F_diesel*Prim_En_Diesel)+(LCA_En_landprep*En_F_diesel*Prim_En_Diesel+Seedling_No/1000*En_Seedlings*Prim_En_Seedlings+Herbicide_quantity*En_F_Pest*Prim_En_CropProtect)/'Land Data'!L34)/Conv_MWh_KWh -> 0.2452689649 | Y34: 0 | Z34: 0 | AA34: 0 | AB34: See constants tab for assumptions of energy requirements | AC34: ='Reference Data'!$D$134/Conv_te_kg -> 0.001144 | AD34: ='Reference Data'!$E$134/Conv_te_kg -> 0.001584 | AE34: Anderson-Teixei and Delucia, 2011. Includes N2O emissions from residues and debris. | AF34: ='Reference Data'!$D$158 -> -0.003613504 | AG34: ='Reference Data'!$E$158 -> 0.001806752 | AH34: Anderson-Teixei and Delucia, 2011. Includes N2O emissions from residues and debris. | AI34: 0 | AK34: 0 | AM34: Private Communication with UK Forestry Commission. Windthrow causes tree to fall when it reaches 29m (Wind Hazard Class 2.5). Forest Gales Manual. | AO34: 0.028 | AP34: Chambers et al., 2000. Specific to forests in Pacific North USA. No data for UK, therefore assume similar to Pacific North West USA, as both temperate climtes. | AQ34: 0.185 | AR34: Mattson, 1987. Specific to South East USA, however, decay rate of fine residues not shown to vary with location in temperate regions.
A35: =Lists!$B$82 -> Long Rotation Forestry (LRF) | B35: =B34 -> LRF Conifer for wood products, residues unused | C35: =Lists!B111 -> South USA | D35: 20 | E35: Long Rotation Forestry (LRF):LRF Conifer for wood products, residues unused:South USA:20 | F35: 147 | G35: 40.09090909 | H35: 18.04090909 | I35: Winrock, 2011 | J35: 1 | K35: 0 | L35: 50 | M35: 69.64 | N35: Smith et al., 2006. Modelled as loblolly pine natural timberland, with natural regeneration, harvested every 50 years. | O35: 1.795 | P35: 0.6 | Q35: =1-P35 -> 0.4 | R35: 1 | S35: 0 | T35: Naturally regenerated forest. Smith et al., 2006 | U35: 0 | V35: =('Land Data'!O35/density_SW*(LCA_En_Woodharvest*EF_diesel))/Conv_te_kg -> 0.03464913394 | W35: =('Land Data'!O35/density_SW*(LCA_En_Woodharvest*En_F_diesel))/Conv_MWh_KWh -> 0.1067934472 | X35: =('Land Data'!O35/density_SW*(LCA_En_Woodharvest*En_F_diesel*Prim_En_Diesel)/Conv_MWh_KWh) -> 0.1145893688 | Y35: 0 | Z35: 0 | AA35: 0 | AB35: See constants tab for assumptions of energy requirements | AC35: ='Reference Data'!$D$134/Conv_te_kg -> 0.001144 | AD35: ='Reference Data'!$E$134/Conv_te_kg -> 0.001584 | AE35: Anderson-Teixei and Delucia, 2011. Includes N2O emissions from residues and debris. | AF35: ='Reference Data'!$D$158 -> -0.003613504 | AG35: ='Reference Data'!$E$158 -> 0.001806752 | AH35: Anderson-Teixei and Delucia, 2011. Includes N2O emissions from residues and debris. | AI35: 0 | AK35: 0 | AM35: Mitchell et al., 2012. Surface fires every 10 years combusting 30% of available debris. Lightening, disease and crown fires result in loblolly lifespan in region being 100years. | AO35: 0.083 | AP35: Mattson, 1987. Specific to forests in South East USA. | AQ35: 0.185 | AR35: Mattson, 1987. Specific to South East USA.
A36: =Lists!$B$82 -> Long Rotation Forestry (LRF) | B36: LRF Conifer for wood products, residues unused | C36: =C35 -> South USA | D36: 40 | E36: Long Rotation Forestry (LRF):LRF Conifer for wood products, residues unused:South USA:40 | F36: 147 | G36: 40.09090909 | H36: 18.04090909 | I36: Winrock, 2011 | J36: 1 | K36: 0 | L36: 50 | M36: 69.64 | N36: Smith et al., 2006. Modelled as loblolly pine natural timberland, with natural regeneration, harvested every 50 years. | O36: 1.795 | P36: 0.6 | Q36: =1-P36 -> 0.4 | R36: 1 | S36: 0 | T36: Naturally regenerated forest. Smith et al., 2007 | U36: 0 | V36: =('Land Data'!O36/density_SW*(LCA_En_Woodharvest*EF_diesel))/Conv_te_kg -> 0.03464913394 | W36: =('Land Data'!O36/density_SW*(LCA_En_Woodharvest*En_F_diesel))/Conv_MWh_KWh -> 0.1067934472 | X36: =('Land Data'!O36/density_SW*(LCA_En_Woodharvest*En_F_diesel*Prim_En_Diesel)/Conv_MWh_KWh) -> 0.1145893688 | Y36: 0 | Z36: 0 | AA36: 0 | AB36: See constants tab for assumptions of energy requirements | AC36: ='Reference Data'!$D$134/Conv_te_kg -> 0.001144 | AD36: ='Reference Data'!$E$134/Conv_te_kg -> 0.001584 | AE36: Anderson-Teixei and Delucia, 2011. Includes N2O emissions from residues and debris. | AF36: ='Reference Data'!$D$158 -> -0.003613504 | AG36: ='Reference Data'!$E$158 -> 0.001806752 | AH36: Anderson-Teixei and Delucia, 2011. Includes N2O emissions from residues and debris. | AI36: 0 | AK36: 0 | AM36: Mitchell et al., 2012. Surface fires every 10 years combusting 30% of available debris. Lightening, disease and crown fires result in loblolly lifespan in region being 100years. | AO36: 0.083 | AP36: Mattson, 1987. Specific to forests in South East USA. | AQ36: 0.185 | AR36: Mattson, 1987. Specific to South East USA.
A37: =Lists!$B$82 -> Long Rotation Forestry (LRF) | B37: LRF Conifer for wood products, residues unused | C37: =C36 -> South USA | D37: 100 | E37: Long Rotation Forestry (LRF):LRF Conifer for wood products, residues unused:South USA:100 | F37: 147 | G37: 40.09090909 | H37: 18.04090909 | I37: Winrock, 2011 | J37: 1 | K37: 0 | L37: 50 | M37: 69.64 | N37: Smith et al., 2006. Modelled as loblolly pine natural timberland, with natural regeneration, harvested every 50 years. | O37: 1.795 | P37: 0.6 | Q37: =1-P37 -> 0.4 | R37: 1 | S37: 0 | T37: Naturally regenerated forest. Smith et al., 2008 | U37: 0 | V37: =('Land Data'!O37/density_SW*(LCA_En_Woodharvest*EF_diesel))/Conv_te_kg -> 0.03464913394 | W37: =('Land Data'!O37/density_SW*(LCA_En_Woodharvest*En_F_diesel))/Conv_MWh_KWh -> 0.1067934472 | X37: =('Land Data'!O37/density_SW*(LCA_En_Woodharvest*En_F_diesel*Prim_En_Diesel)/Conv_MWh_KWh) -> 0.1145893688 | Y37: 0 | Z37: 0 | AA37: 0 | AB37: See constants tab for assumptions of energy requirements | AC37: ='Reference Data'!$D$134/Conv_te_kg -> 0.001144 | AD37: ='Reference Data'!$E$134/Conv_te_kg -> 0.001584 | AE37: Anderson-Teixei and Delucia, 2011. Includes N2O emissions from residues and debris. | AF37: ='Reference Data'!$D$158 -> -0.003613504 | AG37: ='Reference Data'!$E$158 -> 0.001806752 | AH37: Anderson-Teixei and Delucia, 2011. Includes N2O emissions from residues and debris. | AI37: 0 | AK37: 0 | AM37: Mitchell et al., 2012. Surface fires every 10 years combusting 30% of available debris. Lightening, disease and crown fires result in loblolly lifespan in region being 100years. | AO37: 0.083 | AP37: Mattson, 1987. Specific to forests in South East USA. | AQ37: 0.185 | AR37: Mattson, 1987. Specific to South East USA.
A38: =Lists!$B$82 -> Long Rotation Forestry (LRF) | B38: LRF Conifer for wood products, residues unused | C38: =Lists!B112 -> North West USA | D38: 20 | E38: Long Rotation Forestry (LRF):LRF Conifer for wood products, residues unused:North West USA:20 | F38: 414 | G38: 112.9090909 | H38: 50.80909091 | I38: Winrock, 2011 | J38: 1 | K38: 0 | L38: 100 | M38: 118.78 | N38: Forest Research C-SORT model. Modelled as Douglas Fir, Yield Class 12, Sole thin at age 15y, 70 y rotation. | O38: 4.016 | P38: 0.7416 | Q38: 0.2584 | R38: 1 | S38: 0 | T38: Planted forest. Forest Research C-SORT model. | U38: 0 | V38: =('Land Data'!O38/density_SW*(LCA_En_Woodharvest*EF_diesel)+(LCA_En_landprep*EF_diesel+Seedling_No/1000*EF_Seedlings+Herbicide_quantity*EF_Pest)/'Land Data'!L38)/Conv_te_kg -> 0.08221305696 | W38: =('Land Data'!O38/density_SW*(LCA_En_Woodharvest*En_F_diesel))/Conv_MWh_KWh -> 0.2389317459 | X38: =('Land Data'!O38/density_SW*(LCA_En_Woodharvest*En_F_diesel*Prim_En_Diesel)/Conv_MWh_KWh) -> 0.2563737634 | Y38: 0 | Z38: 0 | AA38: 0 | AB38: See constants tab for assumptions of energy requirements | AC38: ='Reference Data'!$D$134/Conv_te_kg -> 0.001144 | AD38: ='Reference Data'!$E$134/Conv_te_kg -> 0.001584 | AE38: Anderson-Teixei and Delucia, 2011. Includes N2O emissions from residues and debris. | AF38: ='Reference Data'!$D$158 -> -0.003613504 | AG38: ='Reference Data'!$E$158 -> 0.001806752 | AH38: Anderson-Teixei and Delucia, 2011. Includes N2O emissions from residues and debris. | AI38: 0 | AK38: 0 | AM38: Mitchell et al., 2012. Disturbances by major fire every 250 years. All trees die whilst 20% of biomass combusted. | AO38: 0.028 | AP38: Chambers et al., 2000. Specific to forests in Pacific North USA. | AQ38: 0.185 | AR38: Mattson, 1987. Specific to South East USA, however, decay rate of fine residues not shown to vary with location in temperate regions.
A39: =Lists!$B$82 -> Long Rotation Forestry (LRF) | B39: LRF Conifer for wood products, residues unused | C39: =C38 -> North West USA | D39: 40 | E39: Long Rotation Forestry (LRF):LRF Conifer for wood products, residues unused:North West USA:40 | F39: 414 | G39: 112.9090909 | H39: 50.80909091 | I39: Winrock, 2011 | J39: 1 | K39: 0 | L39: 100 | M39: 118.78 | N39: Forest Research C-SORT model. Modelled as Douglas Fir, Yield Class 12, Sole thin at age 15y, 70 y rotation. | O39: 4.016 | P39: 0.7416 | Q39: 0.2584 | R39: 1 | S39: 0 | T39: Planted forest. Forest Research C-SORT model. | U39: 0 | V39: =('Land Data'!O39/density_SW*(LCA_En_Woodharvest*EF_diesel)+(LCA_En_landprep*EF_diesel+Seedling_No/1000*EF_Seedlings+Herbicide_quantity*EF_Pest)/'Land Data'!L39)/Conv_te_kg -> 0.08221305696 | W39: =('Land Data'!O39/density_SW*(LCA_En_Woodharvest*En_F_diesel))/Conv_MWh_KWh -> 0.2389317459 | X39: =('Land Data'!O39/density_SW*(LCA_En_Woodharvest*En_F_diesel*Prim_En_Diesel)/Conv_MWh_KWh) -> 0.2563737634 | Y39: 0 | Z39: 0 | AA39: 0 | AB39: See constants tab for assumptions of energy requirements | AC39: ='Reference Data'!$D$134/Conv_te_kg -> 0.001144 | AD39: ='Reference Data'!$E$134/Conv_te_kg -> 0.001584 | AE39: Anderson-Teixei and Delucia, 2011. Includes N2O emissions from residues and debris. | AF39: ='Reference Data'!$D$158 -> -0.003613504 | AG39: ='Reference Data'!$E$158 -> 0.001806752 | AH39: Anderson-Teixei and Delucia, 2011. Includes N2O emissions from residues and debris. | AI39: 0 | AK39: 0 | AM39: Mitchell et al., 2012. Disturbances by major fire every 250 years. All trees die whilst 20% of biomass combusted. | AO39: 0.028 | AP39: Chambers et al., 2000. Specific to forests in Pacific North USA. | AQ39: 0.185 | AR39: Mattson, 1987. Specific to South East USA, however, decay rate of fine residues not shown to vary with location in temperate regions.
A40: =Lists!$B$82 -> Long Rotation Forestry (LRF) | B40: LRF Conifer for wood products, residues unused | C40: =C39 -> North West USA | D40: 100 | E40: Long Rotation Forestry (LRF):LRF Conifer for wood products, residues unused:North West USA:100 | F40: 414 | G40: 112.9090909 | H40: 50.80909091 | I40: Winrock, 2011 | J40: 1 | K40: 0 | L40: 100 | M40: 118.78 | N40: Forest Research C-SORT model. Modelled as Douglas Fir, Yield Class 12, Sole thin at age 15y, 70 y rotation. | O40: 4.016 | P40: 0.7416 | Q40: 0.2584 | R40: 1 | S40: 0 | T40: Planted forest. Forest Research C-SORT model. | U40: 0 | V40: =('Land Data'!O40/density_SW*(LCA_En_Woodharvest*EF_diesel)+(LCA_En_landprep*EF_diesel+Seedling_No/1000*EF_Seedlings+Herbicide_quantity*EF_Pest)/'Land Data'!L40)/Conv_te_kg -> 0.08221305696 | W40: =('Land Data'!O40/density_SW*(LCA_En_Woodharvest*En_F_diesel))/Conv_MWh_KWh -> 0.2389317459 | X40: =('Land Data'!O40/density_SW*(LCA_En_Woodharvest*En_F_diesel*Prim_En_Diesel)/Conv_MWh_KWh) -> 0.2563737634 | Y40: 0 | Z40: 0 | AA40: 0 | AB40: See constants tab for assumptions of energy requirements | AC40: ='Reference Data'!$D$134/Conv_te_kg -> 0.001144 | AD40: ='Reference Data'!$E$134/Conv_te_kg -> 0.001584 | AE40: Anderson-Teixei and Delucia, 2011. Includes N2O emissions from residues and debris. | AF40: ='Reference Data'!$D$158 -> -0.003613504 | AG40: ='Reference Data'!$E$158 -> 0.001806752 | AH40: Anderson-Teixei and Delucia, 2011. Includes N2O emissions from residues and debris. | AI40: 0 | AK40: 0 | AM40: Mitchell et al., 2012. Disturbances by major fire every 250 years. All trees die whilst 20% of biomass combusted. | AO40: 0.028 | AP40: Chambers et al., 2000. Specific to forests in Pacific North USA. | AQ40: 0.185 | AR40: Mattson, 1987. Specific to South East USA, however, decay rate of fine residues not shown to vary with location in temperate regions.
A41: =Lists!$B$82 -> Long Rotation Forestry (LRF) | B41: LRF Conifer for wood products, residues unused | C41: =Lists!B113 -> Pacific Canada | D41: 20 | E41: Long Rotation Forestry (LRF):LRF Conifer for wood products, residues unused:Pacific Canada:20 | F41: 265 | G41: 72.27272727 | H41: 32.52272727 | I41: Winrock, 2011 | J41: 1 | K41: 0 | L41: 100 | M41: 118.78 | N41: Forest Research C-SORT model. Modelled as Douglas Fir, Yield Class 12, Sole thin at age 15y, 70 y rotation. | O41: 4.016 | P41: 0.7416 | Q41: 0.2584 | R41: 1 | S41: 0 | T41: Naturally regenerated forest. Forest Research C-SORT model. | U41: 0 | V41: =('Land Data'!O41/density_SW*(LCA_En_Woodharvest*EF_diesel))/Conv_te_kg -> 0.07752140496 | W41: =('Land Data'!O41/density_SW*(LCA_En_Woodharvest*En_F_diesel))/Conv_MWh_KWh -> 0.2389317459 | X41: =('Land Data'!O41/density_SW*(LCA_En_Woodharvest*En_F_diesel*Prim_En_Diesel)/Conv_MWh_KWh) -> 0.2563737634 | Y41: 0 | Z41: 0 | AA41: 0 | AB41: See constants tab for assumptions of energy requirements | AC41: ='Reference Data'!$D$134/Conv_te_kg -> 0.001144 | AD41: ='Reference Data'!$E$134/Conv_te_kg -> 0.001584 | AE41: Anderson-Teixei and Delucia, 2011. Includes N2O emissions from residues and debris. | AF41: ='Reference Data'!$D$158 -> -0.003613504 | AG41: ='Reference Data'!$E$158 -> 0.001806752 | AH41: Anderson-Teixei and Delucia, 2011. Includes N2O emissions from residues and debris. | AI41: 0 | AK41: 0 | AM41: Mitchell et al., 2012. Disturbances by major fire every 250 years. All trees die whilst 20% of biomass combusted. | AO41: 0.028 | AP41: Chambers et al., 2000. Specific to forests in Pacific North USA. | AQ41: =AVERAGE(0.066,0.127) -> 0.0965 | AR41: Vavrova, 2009. Specific to Boreal conditions in Finland, decaying fine residues with diameter > 1 cm.
A42: =Lists!$B$82 -> Long Rotation Forestry (LRF) | B42: LRF Conifer for wood products, residues unused | C42: =C41 -> Pacific Canada | D42: 40 | E42: Long Rotation Forestry (LRF):LRF Conifer for wood products, residues unused:Pacific Canada:40 | F42: 265 | G42: 72.27272727 | H42: 32.52272727 | I42: Winrock, 2011 | J42: 1 | K42: 0 | L42: 100 | M42: 118.78 | N42: Forest Research C-SORT model. Modelled as Douglas Fir, Yield Class 12, Sole thin at age 15y, 70 y rotation. | O42: 4.016 | P42: 0.7416 | Q42: 0.2584 | R42: 1 | S42: 0 | T42: Naturally regenerated forest. Forest Research C-SORT model. | U42: 0 | V42: =('Land Data'!O42/density_SW*(LCA_En_Woodharvest*EF_diesel))/Conv_te_kg -> 0.07752140496 | W42: =('Land Data'!O42/density_SW*(LCA_En_Woodharvest*En_F_diesel))/Conv_MWh_KWh -> 0.2389317459 | X42: =('Land Data'!O42/density_SW*(LCA_En_Woodharvest*En_F_diesel*Prim_En_Diesel)/Conv_MWh_KWh) -> 0.2563737634 | Y42: 0 | Z42: 0 | AA42: 0 | AB42: See constants tab for assumptions of energy requirements | AC42: ='Reference Data'!$D$134/Conv_te_kg -> 0.001144 | AD42: ='Reference Data'!$E$134/Conv_te_kg -> 0.001584 | AE42: Anderson-Teixei and Delucia, 2011. Includes N2O emissions from residues and debris. | AF42: ='Reference Data'!$D$158 -> -0.003613504 | AG42: ='Reference Data'!$E$158 -> 0.001806752 | AH42: Anderson-Teixei and Delucia, 2011. Includes N2O emissions from residues and debris. | AI42: 0 | AK42: 0 | AM42: Mitchell et al., 2012. Disturbances by major fire every 250 years. All trees die whilst 20% of biomass combusted. | AO42: 0.028 | AP42: Chambers et al., 2000. Specific to forests in Pacific North USA. | AQ42: 0.0965 | AR42: Vavrova, 2009. Specific to Boreal conditions in Finland, decaying fine residues with diameter > 1 cm.
A43: =Lists!$B$82 -> Long Rotation Forestry (LRF) | B43: LRF Conifer for wood products, residues unused | C43: =C42 -> Pacific Canada | D43: 100 | E43: Long Rotation Forestry (LRF):LRF Conifer for wood products, residues unused:Pacific Canada:100 | F43: 265 | G43: 72.27272727 | H43: 32.52272727 | I43: Winrock, 2011 | J43: 1 | K43: 0 | L43: 100 | M43: 118.78 | N43: Forest Research C-SORT model. Modelled as Douglas Fir, Yield Class 12, Sole thin at age 15y, 70 y rotation. | O43: 4.016 | P43: 0.7416 | Q43: 0.2584 | R43: 1 | S43: 0 | T43: Naturally regenerated forest. Forest Research C-SORT model. | U43: 0 | V43: =('Land Data'!O43/density_SW*(LCA_En_Woodharvest*EF_diesel))/Conv_te_kg -> 0.07752140496 | W43: =('Land Data'!O43/density_SW*(LCA_En_Woodharvest*En_F_diesel))/Conv_MWh_KWh -> 0.2389317459 | X43: =('Land Data'!O43/density_SW*(LCA_En_Woodharvest*En_F_diesel*Prim_En_Diesel)/Conv_MWh_KWh) -> 0.2563737634 | Y43: 0 | Z43: 0 | AA43: 0 | AB43: See constants tab for assumptions of energy requirements | AC43: ='Reference Data'!$D$134/Conv_te_kg -> 0.001144 | AD43: ='Reference Data'!$E$134/Conv_te_kg -> 0.001584 | AE43: Anderson-Teixei and Delucia, 2011. Includes N2O emissions from residues and debris. | AF43: ='Reference Data'!$D$158 -> -0.003613504 | AG43: ='Reference Data'!$E$158 -> 0.001806752 | AH43: Anderson-Teixei and Delucia, 2011. Includes N2O emissions from residues and debris. | AI43: 0 | AK43: 0 | AM43: Mitchell et al., 2012. Disturbances by major fire every 250 years. All trees die whilst 20% of biomass combusted. | AO43: 0.028 | AP43: Chambers et al., 2000. Specific to forests in Pacific North USA. | AQ43: 0.0965 | AR43: Vavrova, 2009. Specific to Boreal conditions in Finland, decaying fine residues with diameter > 1 cm.
A44: =Lists!$B$82 -> Long Rotation Forestry (LRF) | B44: LRF Conifer for wood products, residues unused | C44: =Lists!B114 -> Interior Canada | D44: 20 | E44: Long Rotation Forestry (LRF):LRF Conifer for wood products, residues unused:Interior Canada:20 | F44: 205 | G44: 55.90909091 | H44: 25.15909091 | I44: Winrock, 2011 | J44: 1 | K44: 0 | L44: 100 | M44: 73.78 | N44: Forest Research C-SORT model. Modelled as Lodgepole Pine, Yield Class 4, No thinning, 100 year rotation | O44: 1.297 | P44: 0.2504 | Q44: 0.7496 | R44: 1 | S44: 0 | T44: Naturally regenerated forest. Forest Research C-SORT model. | U44: 0 | V44: =('Land Data'!O44/density_SW*(LCA_En_Woodharvest*EF_diesel))/Conv_te_kg -> 0.02503617088 | W44: =('Land Data'!O44/density_SW*(LCA_En_Woodharvest*En_F_diesel))/Conv_MWh_KWh -> 0.07716495878 | X44: =('Land Data'!O44/density_SW*(LCA_En_Woodharvest*En_F_diesel*Prim_En_Diesel)/Conv_MWh_KWh) -> 0.08279800077 | Y44: 0 | Z44: 0 | AA44: 0 | AB44: See constants tab for assumptions of energy requirements | AC44: ='Reference Data'!$D$135/Conv_te_kg -> 0.001144 | AD44: ='Reference Data'!$E$135/Conv_te_kg -> 0.001584 | AE44: Anderson-Teixei and Delucia, 2011. Includes N2O emissions from residues and debris. | AF44: ='Reference Data'!$D$159 -> -0.003613504 | AG44: ='Reference Data'!$E$159 -> 0.001806752 | AH44: Anderson-Teixei and Delucia, 2011. Includes N2O emissions from residues and debris. | AI44: 0 | AK44: 0 | AM44: Mitchell et al., 2012. Disturbances by major fire every 250 years. All trees die whilst 20% of biomass combusted. | AO44: 0.011 | AP44: Chambers et al., 2000. Specific to forests in Canadian Rocky Mountains | AQ44: 0.0965 | AR44: Vavrova, 2009. Specific to Boreal conditions in Finland, decaying fine residues with diameter > 1 cm.
A45: =Lists!$B$82 -> Long Rotation Forestry (LRF) | B45: LRF Conifer for wood products, residues unused | C45: =C44 -> Interior Canada | D45: 40 | E45: Long Rotation Forestry (LRF):LRF Conifer for wood products, residues unused:Interior Canada:40 | F45: 205 | G45: 55.90909091 | H45: 25.15909091 | I45: Winrock, 2011 | J45: 1 | K45: 0 | L45: 100 | M45: 73.78 | N45: Forest Research C-SORT model. Modelled as Lodgepole Pine, Yield Class 4, No thinning, 100 year rotation | O45: 1.297 | P45: 0.2504 | Q45: 0.7496 | R45: 1 | S45: 0 | T45: Naturally regenerated forest. Forest Research C-SORT model. | U45: 0 | V45: =('Land Data'!O45/density_SW*(LCA_En_Woodharvest*EF_diesel))/Conv_te_kg -> 0.02503617088 | W45: =('Land Data'!O45/density_SW*(LCA_En_Woodharvest*En_F_diesel))/Conv_MWh_KWh -> 0.07716495878 | X45: =('Land Data'!O45/density_SW*(LCA_En_Woodharvest*En_F_diesel*Prim_En_Diesel)/Conv_MWh_KWh) -> 0.08279800077 | Y45: 0 | Z45: 0 | AA45: 0 | AB45: See constants tab for assumptions of energy requirements | AC45: ='Reference Data'!$D$135/Conv_te_kg -> 0.001144 | AD45: ='Reference Data'!$E$135/Conv_te_kg -> 0.001584 | AE45: Anderson-Teixei and Delucia, 2011. Includes N2O emissions from residues and debris. | AF45: ='Reference Data'!$D$159 -> -0.003613504 | AG45: ='Reference Data'!$E$159 -> 0.001806752 | AH45: Anderson-Teixei and Delucia, 2011. Includes N2O emissions from residues and debris. | AI45: 0 | AK45: 0 | AM45: Mitchell et al., 2012. Disturbances by major fire every 250 years. All trees die whilst 20% of biomass combusted. | AO45: 0.011 | AP45: Chambers et al., 2000. Specific to forests in Canadian Rocky Mountains | AQ45: 0.0965 | AR45: Vavrova, 2009. Specific to Boreal conditions in Finland, decaying fine residues with diameter > 1 cm.
A46: =Lists!$B$82 -> Long Rotation Forestry (LRF) | B46: LRF Conifer for wood products, residues unused | C46: =C45 -> Interior Canada | D46: 100 | E46: Long Rotation Forestry (LRF):LRF Conifer for wood products, residues unused:Interior Canada:100 | F46: 205 | G46: 55.90909091 | H46: 25.15909091 | I46: Winrock, 2011 | J46: 1 | K46: 0 | L46: 100 | M46: 73.78 | N46: Forest Research C-SORT model. Modelled as Lodgepole Pine, Yield Class 4, No thinning, 100 year rotation | O46: 1.297 | P46: 0.2504 | Q46: 0.7496 | R46: 1 | S46: 0 | T46: Naturally regenerated forest. Forest Research C-SORT model. | U46: 0 | V46: =('Land Data'!O46/density_SW*(LCA_En_Woodharvest*EF_diesel))/Conv_te_kg -> 0.02503617088 | W46: =('Land Data'!O46/density_SW*(LCA_En_Woodharvest*En_F_diesel))/Conv_MWh_KWh -> 0.07716495878 | X46: =('Land Data'!O46/density_SW*(LCA_En_Woodharvest*En_F_diesel*Prim_En_Diesel)/Conv_MWh_KWh) -> 0.08279800077 | Y46: 0 | Z46: 0 | AA46: 0 | AB46: See constants tab for assumptions of energy requirements | AC46: ='Reference Data'!$D$135/Conv_te_kg -> 0.001144 | AD46: ='Reference Data'!$E$135/Conv_te_kg -> 0.001584 | AE46: Anderson-Teixei and Delucia, 2011. Includes N2O emissions from residues and debris. | AF46: ='Reference Data'!$D$159 -> -0.003613504 | AG46: ='Reference Data'!$E$159 -> 0.001806752 | AH46: Anderson-Teixei and Delucia, 2011. Includes N2O emissions from residues and debris. | AI46: 0 | AK46: 0 | AM46: Mitchell et al., 2012. Disturbances by major fire every 250 years. All trees die whilst 20% of biomass combusted. | AO46: 0.011 | AP46: Chambers et al., 2000. Specific to forests in Canadian Rocky Mountains | AQ46: 0.0965 | AR46: Vavrova, 2009. Specific to Boreal conditions in Finland, decaying fine residues with diameter > 1 cm.
A47: =Lists!$B$82 -> Long Rotation Forestry (LRF) | B47: LRF Conifer for wood products, residues unused | C47: =Lists!B115 -> Boreal North Canada | D47: 20 | E47: Long Rotation Forestry (LRF):LRF Conifer for wood products, residues unused:Boreal North Canada:20 | F47: 218 | G47: 59.45454545 | H47: 26.75454545 | I47: Winrock, 2011 | J47: 1 | K47: 0 | L47: 100 | M47: 73.78 | N47: Forest Research C-SORT model. Modelled as Lodgepole Pine, Yield Class 4, No thinning, 100 year rotation | O47: 1.297 | P47: 0.2504 | Q47: 0.7496 | R47: 1 | S47: 0 | T47: Naturally regenerated forest. Forest Research C-SORT model. | U47: 0 | V47: =('Land Data'!O47/density_SW*(LCA_En_Woodharvest*EF_diesel))/Conv_te_kg -> 0.02503617088 | W47: =('Land Data'!O47/density_SW*(LCA_En_Woodharvest*En_F_diesel))/Conv_MWh_KWh -> 0.07716495878 | X47: =('Land Data'!O47/density_SW*(LCA_En_Woodharvest*En_F_diesel*Prim_En_Diesel)/Conv_MWh_KWh) -> 0.08279800077 | Y47: 0 | Z47: 0 | AA47: 0 | AB47: See constants tab for assumptions of energy requirements | AC47: ='Reference Data'!$D$135/Conv_te_kg -> 0.001144 | AD47: ='Reference Data'!$E$135/Conv_te_kg -> 0.001584 | AE47: Anderson-Teixei and Delucia, 2011. Includes N2O emissions from residues and debris. | AF47: ='Reference Data'!$D$159 -> -0.003613504 | AG47: ='Reference Data'!$E$159 -> 0.001806752 | AH47: Anderson-Teixei and Delucia, 2011. Includes N2O emissions from residues and debris. | AI47: 0 | AK47: 0 | AM47: Mitchell et al., 2012. Disturbances by major fire every 250 years. All trees die whilst 20% of biomass combusted. | AO47: 0.011 | AP47: Chambers et al., 2000. Specific to forests in Canadian Rocky Mountains | AQ47: 0.0965 | AR47: Vavrova, 2009. Specific to Boreal conditions in Finland, decaying fine residues with diameter > 1 cm.
A48: =Lists!$B$82 -> Long Rotation Forestry (LRF) | B48: LRF Conifer for wood products, residues unused | C48: =C47 -> Boreal North Canada | D48: 40 | E48: Long Rotation Forestry (LRF):LRF Conifer for wood products, residues unused:Boreal North Canada:40 | F48: 218 | G48: 59.45454545 | H48: 26.75454545 | I48: Winrock, 2011 | J48: 1 | K48: 0 | L48: 100 | M48: 73.78 | N48: Forest Research C-SORT model. Modelled as Lodgepole Pine, Yield Class 4, No thinning, 100 year rotation | O48: 1.297 | P48: 0.2504 | Q48: 0.7496 | R48: 1 | S48: 0 | T48: Naturally regenerated forest. Forest Research C-SORT model. | U48: 0 | V48: =('Land Data'!O48/density_SW*(LCA_En_Woodharvest*EF_diesel))/Conv_te_kg -> 0.02503617088 | W48: =('Land Data'!O48/density_SW*(LCA_En_Woodharvest*En_F_diesel))/Conv_MWh_KWh -> 0.07716495878 | X48: =('Land Data'!O48/density_SW*(LCA_En_Woodharvest*En_F_diesel*Prim_En_Diesel)/Conv_MWh_KWh) -> 0.08279800077 | Y48: 0 | Z48: 0 | AA48: 0 | AB48: See constants tab for assumptions of energy requirements | AC48: ='Reference Data'!$D$135/Conv_te_kg -> 0.001144 | AD48: ='Reference Data'!$E$135/Conv_te_kg -> 0.001584 | AE48: Anderson-Teixei and Delucia, 2011. Includes N2O emissions from residues and debris. | AF48: ='Reference Data'!$D$159 -> -0.003613504 | AG48: ='Reference Data'!$E$159 -> 0.001806752 | AH48: Anderson-Teixei and Delucia, 2011. Includes N2O emissions from residues and debris. | AI48: 0 | AK48: 0 | AM48: Mitchell et al., 2012. Disturbances by major fire every 250 years. All trees die whilst 20% of biomass combusted. | AO48: 0.011 | AP48: Chambers et al., 2000. Specific to forests in Canadian Rocky Mountains | AQ48: 0.0965 | AR48: Vavrova, 2009. Specific to Boreal conditions in Finland, decaying fine residues with diameter > 1 cm.
A49: =Lists!$B$82 -> Long Rotation Forestry (LRF) | B49: LRF Conifer for wood products, residues unused | C49: =C48 -> Boreal North Canada | D49: 100 | E49: Long Rotation Forestry (LRF):LRF Conifer for wood products, residues unused:Boreal North Canada:100 | F49: 218 | G49: 59.45454545 | H49: 26.75454545 | I49: Winrock, 2011 | J49: 1 | K49: 0 | L49: 100 | M49: 73.78 | N49: Forest Research C-SORT model. Modelled as Lodgepole Pine, Yield Class 4, No thinning, 100 year rotation | O49: 1.297 | P49: 0.2504 | Q49: 0.7496 | R49: 1 | S49: 0 | T49: Naturally regenerated forest. Forest Research C-SORT model. | U49: 0 | V49: =('Land Data'!O49/density_SW*(LCA_En_Woodharvest*EF_diesel))/Conv_te_kg -> 0.02503617088 | W49: =('Land Data'!O49/density_SW*(LCA_En_Woodharvest*En_F_diesel))/Conv_MWh_KWh -> 0.07716495878 | X49: =('Land Data'!O49/density_SW*(LCA_En_Woodharvest*En_F_diesel*Prim_En_Diesel)/Conv_MWh_KWh) -> 0.08279800077 | Y49: 0 | Z49: 0 | AA49: 0 | AB49: See constants tab for assumptions of energy requirements | AC49: ='Reference Data'!$D$135/Conv_te_kg -> 0.001144 | AD49: ='Reference Data'!$E$135/Conv_te_kg -> 0.001584 | AE49: Anderson-Teixei and Delucia, 2011. Includes N2O emissions from residues and debris. | AF49: ='Reference Data'!$D$159 -> -0.003613504 | AG49: ='Reference Data'!$E$159 -> 0.001806752 | AH49: Anderson-Teixei and Delucia, 2011. Includes N2O emissions from residues and debris. | AI49: 0 | AK49: 0 | AM49: Mitchell et al., 2012. Disturbances by major fire every 250 years. All trees die whilst 20% of biomass combusted. | AO49: 0.011 | AP49: Chambers et al., 2000. Specific to forests in Canadian Rocky Mountains | AQ49: 0.0965 | AR49: Vavrova, 2009. Specific to Boreal conditions in Finland, decaying fine residues with diameter > 1 cm.
A50: =Lists!$B$82 -> Long Rotation Forestry (LRF) | B50: =Lists!B10 -> LRF Conifer for wood products, 50% residues used | C50: ='Transport Data'!A13 -> Pacific Canada | D50: 20 | E50: Long Rotation Forestry (LRF):LRF Conifer for wood products, 50% residues used:Pacific Canada:20 | F50: 265 | G50: 72.27272727 | H50: 32.52272727 | I50: Winrock, 2011 | J50: 1 | K50: 0 | L50: 70 | M50: 114.32 | N50: Forest Research C-SORT model. Modelled as Douglas Fir, Yield Class 12, 70 year rotation. | O50: 4.386 | P50: 0.6863 | Q50: 0.2394 | R50: 0.9257 | S50: 0.0743 | T50: Naturally regenerated forest. Forest Research C-SORT model. | U50: 0 | V50: =('Land Data'!O50/density_SW*(LCA_En_Woodharvest*EF_diesel))/Conv_te_kg -> 0.08466356628 | W50: =('Land Data'!O50/density_SW*(LCA_En_Woodharvest*En_F_diesel))/Conv_MWh_KWh -> 0.2609448799 | X50: =('Land Data'!O50/density_SW*(LCA_En_Woodharvest*En_F_diesel*Prim_En_Diesel)/Conv_MWh_KWh) -> 0.2799938561 | Y50: 0 | Z50: 0 | AA50: 0 | AB50: See constants tab for assumptions of energy requirements | AC50: ='Reference Data'!$D$134/Conv_te_kg -> 0.001144 | AD50: ='Reference Data'!$E$134/Conv_te_kg -> 0.001584 | AE50: Anderson-Teixei and Delucia, 2011. Includes N2O emissions from residues and debris. | AF50: ='Reference Data'!$D$158 -> -0.003613504 | AG50: ='Reference Data'!$E$158 -> 0.001806752 | AH50: Anderson-Teixei and Delucia, 2011. Includes N2O emissions from residues and debris. | AI50: 0 | AK50: 0 | AO50: 0.028 | AP50: Chambers et al., 2000. Specific to forests in Pacific North USA. | AQ50: 0.0965 | AR50: Vavrova, 2009. Specific to Boreal conditions in Finland, decaying fine residues with diameter > 1 cm.
A51: =Lists!$B$82 -> Long Rotation Forestry (LRF) | B51: =B50 -> LRF Conifer for wood products, 50% residues used | C51: =C50 -> Pacific Canada | D51: 40 | E51: Long Rotation Forestry (LRF):LRF Conifer for wood products, 50% residues used:Pacific Canada:40 | F51: 265 | G51: 72.27272727 | H51: 32.52272727 | I51: Winrock, 2011 | J51: 1 | K51: 0 | L51: 70 | M51: 114.32 | N51: Forest Research C-SORT model. Modelled as Douglas Fir, Yield Class 12, 70 year rotation. | O51: 4.386 | P51: 0.6863 | Q51: 0.2394 | R51: 0.9257 | S51: 0.0743 | T51: Naturally regenerated forest. Forest Research C-SORT model. | U51: 0 | V51: =('Land Data'!O51/density_SW*(LCA_En_Woodharvest*EF_diesel))/Conv_te_kg -> 0.08466356628 | W51: =('Land Data'!O51/density_SW*(LCA_En_Woodharvest*En_F_diesel))/Conv_MWh_KWh -> 0.2609448799 | X51: =('Land Data'!O51/density_SW*(LCA_En_Woodharvest*En_F_diesel*Prim_En_Diesel)/Conv_MWh_KWh) -> 0.2799938561 | Y51: 0 | Z51: 0 | AA51: 0 | AB51: See constants tab for assumptions of energy requirements | AC51: ='Reference Data'!$D$134/Conv_te_kg -> 0.001144 | AD51: ='Reference Data'!$E$134/Conv_te_kg -> 0.001584 | AE51: Anderson-Teixei and Delucia, 2011. Includes N2O emissions from residues and debris. | AF51: ='Reference Data'!$D$158 -> -0.003613504 | AG51: ='Reference Data'!$E$158 -> 0.001806752 | AH51: Anderson-Teixei and Delucia, 2011. Includes N2O emissions from residues and debris. | AI51: 0 | AK51: 0 | AO51: 0.028 | AP51: Chambers et al., 2000. Specific to forests in Pacific North USA. | AQ51: 0.0965 | AR51: Vavrova, 2009. Specific to Boreal conditions in Finland, decaying fine residues with diameter > 1 cm.
A52: =Lists!$B$82 -> Long Rotation Forestry (LRF) | B52: =B51 -> LRF Conifer for wood products, 50% residues used | C52: =C50 -> Pacific Canada | D52: 100 | E52: Long Rotation Forestry (LRF):LRF Conifer for wood products, 50% residues used:Pacific Canada:100 | F52: 265 | G52: 72.27272727 | H52: 32.52272727 | I52: Winrock, 2011 | J52: 1 | K52: 0 | L52: 70 | M52: 114.32 | N52: Forest Research C-SORT model. Modelled as Douglas Fir, Yield Class 12, 70 year rotation. | O52: 4.386 | P52: 0.6863 | Q52: 0.2394 | R52: 0.9257 | S52: 0.0743 | T52: Naturally regenerated forest. Forest Research C-SORT model. | U52: 0 | V52: =('Land Data'!O52/density_SW*(LCA_En_Woodharvest*EF_diesel))/Conv_te_kg -> 0.08466356628 | W52: =('Land Data'!O52/density_SW*(LCA_En_Woodharvest*En_F_diesel))/Conv_MWh_KWh -> 0.2609448799 | X52: =('Land Data'!O52/density_SW*(LCA_En_Woodharvest*En_F_diesel*Prim_En_Diesel)/Conv_MWh_KWh) -> 0.2799938561 | Y52: 0 | Z52: 0 | AA52: 0 | AB52: See constants tab for assumptions of energy requirements | AC52: ='Reference Data'!$D$134/Conv_te_kg -> 0.001144 | AD52: ='Reference Data'!$E$134/Conv_te_kg -> 0.001584 | AE52: Anderson-Teixei and Delucia, 2011. Includes N2O emissions from residues and debris. | AF52: ='Reference Data'!$D$158 -> -0.003613504 | AG52: ='Reference Data'!$E$158 -> 0.001806752 | AH52: Anderson-Teixei and Delucia, 2011. Includes N2O emissions from residues and debris. | AI52: 0 | AK52: 0 | AO52: 0.028 | AP52: Chambers et al., 2000. Specific to forests in Pacific North USA. | AQ52: 0.0965 | AR52: Vavrova, 2009. Specific to Boreal conditions in Finland, decaying fine residues with diameter > 1 cm.
A53: =Lists!$B$82 -> Long Rotation Forestry (LRF) | B53: LRF Conifer for wood products, 50% residues used | C53: ='Transport Data'!A14 -> Interior Canada | D53: 20 | E53: Long Rotation Forestry (LRF):LRF Conifer for wood products, 50% residues used:Interior Canada:20 | F53: 205 | G53: 55.90909091 | H53: 25.15909091 | I53: Winrock, 2011 | J53: 1 | K53: 0 | L53: 100 | M53: 67.74 | N53: Forest Research C-SORT model. Modelled as Lodgepole Pine, Yield Class 4, 100 year rotation | O53: 1.526 | P53: 0.1883 | Q53: 0.6486 | R53: 0.8369 | S53: 0.1631 | T53: Naturally regenerated forest. Forest Research C-SORT model. | U53: 0 | V53: =('Land Data'!O53/density_SW*(LCA_En_Woodharvest*EF_diesel))/Conv_te_kg -> 0.02945658964 | W53: =('Land Data'!O53/density_SW*(LCA_En_Woodharvest*En_F_diesel))/Conv_MWh_KWh -> 0.09078930385 | X53: =('Land Data'!O53/density_SW*(LCA_En_Woodharvest*En_F_diesel*Prim_En_Diesel)/Conv_MWh_KWh) -> 0.09741692303 | Y53: 0 | Z53: 0 | AA53: 0 | AB53: See constants tab for assumptions of energy requirements | AC53: ='Reference Data'!$D$134/Conv_te_kg -> 0.001144 | AD53: ='Reference Data'!$E$134/Conv_te_kg -> 0.001584 | AE53: Anderson-Teixei and Delucia, 2011. Includes N2O emissions from residues and debris. | AF53: ='Reference Data'!$D$158 -> -0.003613504 | AG53: ='Reference Data'!$E$158 -> 0.001806752 | AH53: Anderson-Teixei and Delucia, 2011. Includes N2O emissions from residues and debris. | AI53: 0 | AK53: 0 | AO53: 0.011 | AP53: Chambers et al., 2000. Specific to forests in Canadian Rocky Mountains | AQ53: 0.0965 | AR53: Vavrova, 2009. Specific to Boreal conditions in Finland, decaying fine residues with diameter > 1 cm.
A54: =Lists!$B$82 -> Long Rotation Forestry (LRF) | B54: LRF Conifer for wood products, 50% residues used | C54: =C53 -> Interior Canada | D54: 40 | E54: Long Rotation Forestry (LRF):LRF Conifer for wood products, 50% residues used:Interior Canada:40 | F54: 205 | G54: 55.90909091 | H54: 25.15909091 | I54: Winrock, 2011 | J54: 1 | K54: 0 | L54: 100 | M54: 67.74 | N54: Forest Research C-SORT model. Modelled as Lodgepole Pine, Yield Class 4, 100 year rotation | O54: 1.526 | P54: 0.1883 | Q54: 0.6486 | R54: 0.8369 | S54: 0.1631 | T54: Naturally regenerated forest. Forest Research C-SORT model. | U54: 0 | V54: =('Land Data'!O54/density_SW*(LCA_En_Woodharvest*EF_diesel))/Conv_te_kg -> 0.02945658964 | W54: =('Land Data'!O54/density_SW*(LCA_En_Woodharvest*En_F_diesel))/Conv_MWh_KWh -> 0.09078930385 | X54: =('Land Data'!O54/density_SW*(LCA_En_Woodharvest*En_F_diesel*Prim_En_Diesel)/Conv_MWh_KWh) -> 0.09741692303 | Y54: 0 | Z54: 0 | AA54: 0 | AB54: See constants tab for assumptions of energy requirements | AC54: ='Reference Data'!$D$134/Conv_te_kg -> 0.001144 | AD54: ='Reference Data'!$E$134/Conv_te_kg -> 0.001584 | AE54: Anderson-Teixei and Delucia, 2011. Includes N2O emissions from residues and debris. | AF54: ='Reference Data'!$D$158 -> -0.003613504 | AG54: ='Reference Data'!$E$158 -> 0.001806752 | AH54: Anderson-Teixei and Delucia, 2011. Includes N2O emissions from residues and debris. | AI54: 0 | AK54: 0 | AO54: 0.011 | AP54: Chambers et al., 2000. Specific to forests in Canadian Rocky Mountains | AQ54: 0.0965 | AR54: Vavrova, 2009. Specific to Boreal conditions in Finland, decaying fine residues with diameter > 1 cm.
A55: =Lists!$B$82 -> Long Rotation Forestry (LRF) | B55: LRF Conifer for wood products, 50% residues used | C55: =C53 -> Interior Canada | D55: 100 | E55: Long Rotation Forestry (LRF):LRF Conifer for wood products, 50% residues used:Interior Canada:100 | F55: 205 | G55: 55.90909091 | H55: 25.15909091 | I55: Winrock, 2011 | J55: 1 | K55: 0 | L55: 100 | M55: 67.74 | N55: Forest Research C-SORT model. Modelled as Lodgepole Pine, Yield Class 4, 100 year rotation | O55: 1.526 | P55: 0.1883 | Q55: 0.6486 | R55: 0.8369 | S55: 0.1631 | T55: Naturally regenerated forest. Forest Research C-SORT model. | U55: 0 | V55: =('Land Data'!O55/density_SW*(LCA_En_Woodharvest*EF_diesel))/Conv_te_kg -> 0.02945658964 | W55: =('Land Data'!O55/density_SW*(LCA_En_Woodharvest*En_F_diesel))/Conv_MWh_KWh -> 0.09078930385 | X55: =('Land Data'!O55/density_SW*(LCA_En_Woodharvest*En_F_diesel*Prim_En_Diesel)/Conv_MWh_KWh) -> 0.09741692303 | Y55: 0 | Z55: 0 | AA55: 0 | AB55: See constants tab for assumptions of energy requirements | AC55: ='Reference Data'!$D$134/Conv_te_kg -> 0.001144 | AD55: ='Reference Data'!$E$134/Conv_te_kg -> 0.001584 | AE55: Anderson-Teixei and Delucia, 2011. Includes N2O emissions from residues and debris. | AF55: ='Reference Data'!$D$158 -> -0.003613504 | AG55: ='Reference Data'!$E$158 -> 0.001806752 | AH55: Anderson-Teixei and Delucia, 2011. Includes N2O emissions from residues and debris. | AI55: 0 | AK55: 0 | AO55: 0.011 | AP55: Chambers et al., 2000. Specific to forests in Canadian Rocky Mountains | AQ55: 0.0965 | AR55: Vavrova, 2009. Specific to Boreal conditions in Finland, decaying fine residues with diameter > 1 cm.
A56: =Lists!$B$82 -> Long Rotation Forestry (LRF) | B56: LRF Conifer for wood products, 50% residues used | C56: ='Transport Data'!A15 -> Boreal North Canada | D56: 20 | E56: Long Rotation Forestry (LRF):LRF Conifer for wood products, 50% residues used:Boreal North Canada:20 | F56: 218 | G56: 59.45454545 | H56: 26.75454545 | I56: Winrock, 2011 | J56: 1 | K56: 0 | L56: 100 | M56: 67.74 | N56: Forest Research C-SORT model. Modelled as Lodgepole Pine, Yield Class 4, 100 year rotation | O56: 1.526 | P56: 0.1883 | Q56: 0.6486 | R56: 0.8369 | S56: 0.1631 | T56: Naturally regenerated forest. Forest Research C-SORT model. | U56: 0 | V56: =('Land Data'!O56/density_SW*(LCA_En_Woodharvest*EF_diesel))/Conv_te_kg -> 0.02945658964 | W56: =('Land Data'!O56/density_SW*(LCA_En_Woodharvest*En_F_diesel))/Conv_MWh_KWh -> 0.09078930385 | X56: =('Land Data'!O56/density_SW*(LCA_En_Woodharvest*En_F_diesel*Prim_En_Diesel)/Conv_MWh_KWh) -> 0.09741692303 | Y56: 0 | Z56: 0 | AA56: 0 | AB56: See constants tab for assumptions of energy requirements | AC56: ='Reference Data'!$D$134/Conv_te_kg -> 0.001144 | AD56: ='Reference Data'!$E$134/Conv_te_kg -> 0.001584 | AE56: Anderson-Teixei and Delucia, 2011. Includes N2O emissions from residues and debris. | AF56: ='Reference Data'!$D$158 -> -0.003613504 | AG56: ='Reference Data'!$E$158 -> 0.001806752 | AH56: Anderson-Teixei and Delucia, 2011. Includes N2O emissions from residues and debris. | AI56: 0 | AK56: 0 | AO56: 0.011 | AP56: Chambers et al., 2000. Specific to forests in Canadian Rocky Mountains | AQ56: 0.0965 | AR56: Vavrova, 2009. Specific to Boreal conditions in Finland, decaying fine residues with diameter > 1 cm.
